OrganisationNameLabel,OrganisationURI,EffectiveDate,Directorate/ServiceWhereExpenditureIncurred,ServiceCategoryLabel,ServiceCategoryURI,Supplier,SupplierRegisteredCompany Number,PaymentDate,TransactionNumber,NetAmount,IrrecoverableVAT,PurposeOfSpend,PurposeOfSpend,Procurement (Me,ProcurementClassification:ProclassLabel,ProcrementClassification:ProClassCode
South Lakeland District Council,http://opendatacommunities.org/id/district-council/south-lakeland,30/11/2016,Business Support Community Services,Cultural Environmental Regulatory & Planning Services,http://opendatacommunities.org/def/concept/finance/sercop/objective/104,CUMBRIA WASTE RECYCLING LTD,3162439,07/11/2016,60282,130,0,Delivery of 1st skip to Rawthey Bridge,Delivery of 1st skip to Rawthey Bridge,Hired Services,182012,Environment Waste Management Recycling
South Lakeland District Council,http://opendatacommunities.org/id/district-council/south-lakeland,30/11/2016,Development Implementation,Central Services,http://opendatacommunities.org/def/concept/finance/sercop/objective/102,NPS NORTH WEST LTD,6614601,09/11/2016,61336,1308.11,0,Kendal Town Hall - Inspection of,Kendal Town Hall - Inspection of,Contract payments,391110,Construction Buildings Construction
South Lakeland District Council,http://opendatacommunities.org/id/district-council/south-lakeland,30/11/2016,Human Resources,Central Services,http://opendatacommunities.org/def/concept/finance/sercop/objective/102,CUMBRIA COUNTY COUNCIL,,14/11/2016,61810,54,0,DBS Checks to Cumbria County Council,DBS Checks to Cumbria County Council,Criminal Records Bureau,908000,Public Bodies Council support services
South Lakeland District Council,http://opendatacommunities.org/id/district-council/south-lakeland,30/11/2016,Business Support Community Services,Internal Trading Accounts,,Preston Trade Parts Specialists,,07/11/2016,61835,75.68,0,Tank,Tank,Transport-Uninsured Damage,381400,Vehicle Mgt Maintenance
South Lakeland District Council,http://opendatacommunities.org/id/district-council/south-lakeland,30/11/2016,Human Resources,Central Services,http://opendatacommunities.org/def/concept/finance/sercop/objective/102,WEIGHTMANS LLP,OC326117,02/11/2016,61932,564,0,Bankruptcy - ,Bankruptcy - Mr D Rigg,Legal & Counsels Fees,281300,Legal Services Legal Opinion
South Lakeland District Council,http://opendatacommunities.org/id/district-council/south-lakeland,30/11/2016,Business Support Community Services,Internal Trading Accounts,,RIBBLESDALE AUTO ELECTRICS 1992 LTD,2732686,07/11/2016,62086,12.87,0,Bulbs,Bulbs,Transport-Repair & Maintenance,381500,Vehicle Mgt Parts
South Lakeland District Council,http://opendatacommunities.org/id/district-council/south-lakeland,30/11/2016,Business Support Community Services,SLDC as Agent,,CUMBRIA COUNTY COUNCIL,,16/11/2016,62099,54,0,DBS Checks,DBS Checks,Criminal Records Bureau,908000,Public Bodies Council support services
South Lakeland District Council,http://opendatacommunities.org/id/district-council/south-lakeland,30/11/2016,Leisure and Wellbeing,Highways & Transport Services,http://opendatacommunities.org/def/concept/finance/sercop/objective/107,Cleartrack (EvL) Ltd,3881690,28/11/2016,62180,1100,0,Fell vandalised Birch tree at Ferry Nab,Fell vandalised Birch tree at Ferry Nab,Arboricultural Work,199999,Facilities Not Elsewhere Classified
South Lakeland District Council,http://opendatacommunities.org/id/district-council/south-lakeland,30/11/2016,Development Implementation,Transport,http://opendatacommunities.org/def/concept/finance/sercop/objective/107,R G PARKINS & PARTNERS LTD,4107150,07/11/2016,62202,1692.7,0,Advice re - Ulverston Car Park Culvert,Advice re - Ulverston Car Park Culvert,Contract payments,152200,Consultancy Technical & Feasibility
South Lakeland District Council,http://opendatacommunities.org/id/district-council/south-lakeland,30/11/2016,Environment and Housing,Housing,http://opendatacommunities.org/def/concept/finance/sercop/objective/108,SOUTH LAKES HOUSING,IP031419,07/11/2016,62430,968905,0,"RTB Grant - Waterside, Kendal","RTB Grant - Waterside, Kendal",Grant Payments,191700,Facilities Property Management
South Lakeland District Council,http://opendatacommunities.org/id/district-council/south-lakeland,30/11/2016,Human Resources,Central Services,http://opendatacommunities.org/def/concept/finance/sercop/objective/102,WEIGHTMANS LLP,OC326117,02/11/2016,62481,432,0,Bankruptcy - ,Bankruptcy - Mr D Rigg,Legal & Counsels Fees,281300,Legal Services Legal Opinion
South Lakeland District Council,http://opendatacommunities.org/id/district-council/south-lakeland,30/11/2016,ICT Group,Central Services,http://opendatacommunities.org/def/concept/finance/sercop/objective/102,Insight Direct (Uk) Ltd,2579852,07/11/2016,62483,39.35,0,Insight Part Number: 0005723393,Insight Part Number: 0005723393,Computer-Supplies,271200,ICT Hardware
South Lakeland District Council,http://opendatacommunities.org/id/district-council/south-lakeland,30/11/2016,ICT Group,Central Services,http://opendatacommunities.org/def/concept/finance/sercop/objective/102,Insight Direct (Uk) Ltd,2579852,07/11/2016,62483,2041.3,0,Insight Part Number: 0005723393,Insight Part Number: 0005723393,Purchase of IT Equipment,271200,ICT Hardware
South Lakeland District Council,http://opendatacommunities.org/id/district-council/south-lakeland,30/11/2016,ICT Group,Central Services,http://opendatacommunities.org/def/concept/finance/sercop/objective/102,DAISY COMMUNICATIONS LTD,4145329,07/11/2016,62614,679.96,0,Daisy Line Rental Charges,Daisy Line Rental Charges,Telephones-Rentals,271700,ICT Telecommunications Fixed
South Lakeland District Council,http://opendatacommunities.org/id/district-council/south-lakeland,30/11/2016,Development Implementation,Planning and Development,,NPS NORTH WEST LTD,6614601,09/11/2016,62680,2466.16,0,Market Place Improvement Project - Fees,Market Place Improvement Project - Fees,Contract payments,391110,Construction Buildings Construction
South Lakeland District Council,http://opendatacommunities.org/id/district-council/south-lakeland,30/11/2016,Development Implementation,Planning and Development,,NPS NORTH WEST LTD,6614601,09/11/2016,62682,1395,0,Approval & Easement for Improved,Approval & Easement for Improved,Contract payments,391110,Construction Buildings Construction
South Lakeland District Council,http://opendatacommunities.org/id/district-council/south-lakeland,30/11/2016,Business Support Community Services,Internal Trading Accounts,,FUCHS LUBRICANTS (UK) PLC,2412689,14/11/2016,62715,2220.6,0,Oil,Oil,Fuel,381100,Vehicle Mgt Fuel
South Lakeland District Council,http://opendatacommunities.org/id/district-council/south-lakeland,30/11/2016,Development Management,Cultural Environmental Regulatory & Planning Services,http://opendatacommunities.org/def/concept/finance/sercop/objective/104,CHRIS BOWKER LTD,1642561,02/11/2016,62781,30,0,Check of electrical installation to,Check of electrical installation to,Electrican Inspection,101100,Building Electrical
South Lakeland District Council,http://opendatacommunities.org/id/district-council/south-lakeland,30/11/2016,Development Management,Cultural Environmental Regulatory & Planning Services,http://opendatacommunities.org/def/concept/finance/sercop/objective/104,SALFORD CITY COUNCIL,,02/11/2016,62782,133.95,0,Checking of Structural Information in,Checking of Structural Information in,Consulting Engineers,908000,Public Bodies Council support services
South Lakeland District Council,http://opendatacommunities.org/id/district-council/south-lakeland,30/11/2016,Lake Wardens,SLDC as Agent,,LAKE DISTRICT NATIONAL PARK AUTHORITY,,02/11/2016,62806,1176.75,0,Monthly Invoices for 2016/2017 for Boat,Monthly Invoices for 2016/2017 for Boat,General,201700,Financial Services Grants
South Lakeland District Council,http://opendatacommunities.org/id/district-council/south-lakeland,30/11/2016,Business Support Community Services,Central Services,http://opendatacommunities.org/def/concept/finance/sercop/objective/102,CUMBRIA COUNTY COUNCIL,,02/11/2016,62813,20,0,Active Cumbria Seminar place ,Active Cumbria Seminar place for Fiona,Training Costs,908000,Public Bodies Council support services
South Lakeland District Council,http://opendatacommunities.org/id/district-council/south-lakeland,30/11/2016,Kendal Town Hall,Cultural Environmental Regulatory & Planning Services,http://opendatacommunities.org/def/concept/finance/sercop/objective/104,THE LAUNDRY SHOP LTD,5421366,02/11/2016,62846,91.5,0,"Washing, drying and ironing table cloths","Washing, drying and ironing table cloths",Cleaning Supplies & Services,131311,Cleaning & Janitorial Laundry Service
South Lakeland District Council,http://opendatacommunities.org/id/district-council/south-lakeland,30/11/2016,Business Support Community Services,Cultural Environmental Regulatory & Planning Services,http://opendatacommunities.org/def/concept/finance/sercop/objective/104,OCS GROUP LTD T/A CANNON HYGIENE LTD,1298292,31/10/2016,62919,13.04,0,Clinical waste collections - 2016/17,Clinical waste collections - 2016/17,Clinincal Waste Disposal Costs,131011,Cleaning & Janitorial Cleaning Materials
South Lakeland District Council,http://opendatacommunities.org/id/district-council/south-lakeland,30/11/2016,Lake Wardens,Cultural Environmental Regulatory & Planning Services,http://opendatacommunities.org/def/concept/finance/sercop/objective/104,SMS (SALCOMBE) LTD,4558962,09/11/2016,62921,101.7,0,1 x Aqua Signal Searchlight,1 x Aqua Signal Searchlight,Transport-Repair & Maintenance,381500,Vehicle Mgt Parts
South Lakeland District Council,http://opendatacommunities.org/id/district-council/south-lakeland,30/11/2016,Leisure and Wellbeing,Cultural Environmental Regulatory & Planning Services,http://opendatacommunities.org/def/concept/finance/sercop/objective/104,Cleartrack (EvL) Ltd,3881690,07/11/2016,62935,220,0,"Mill Dam Playground, Ulverston","Mill Dam Playground, Ulverston",Arboricultural Work,199999,Facilities Not Elsewhere Classified
South Lakeland District Council,http://opendatacommunities.org/id/district-council/south-lakeland,30/11/2016,Leisure and Wellbeing,Cultural Environmental Regulatory & Planning Services,http://opendatacommunities.org/def/concept/finance/sercop/objective/104,Cleartrack (EvL) Ltd,3881690,07/11/2016,62935,770,0,"Mill Dam Playground, Ulverston","Mill Dam Playground, Ulverston",Arboricultural Work,199999,Facilities Not Elsewhere Classified
South Lakeland District Council,http://opendatacommunities.org/id/district-council/south-lakeland,30/11/2016,Leisure and Wellbeing,Cultural Environmental Regulatory & Planning Services,http://opendatacommunities.org/def/concept/finance/sercop/objective/104,Cleartrack (EvL) Ltd,3881690,07/11/2016,62936,1320,0,"Cliffside, Serpentine Woods, Kendal","Cliffside, Serpentine Woods, Kendal",Arboricultural Work,199999,Facilities Not Elsewhere Classified
South Lakeland District Council,http://opendatacommunities.org/id/district-council/south-lakeland,30/11/2016,Social Enterprise Admin,Cultural Environmental Regulatory & Planning Services,http://opendatacommunities.org/def/concept/finance/sercop/objective/104,Cleartrack (EvL) Ltd,3881690,14/11/2016,62937,3300,0,Tree work at Collinfield Lane Kendal,Tree work at Collinfield Lane Kendal,Arboricultural Work,199999,Facilities Not Elsewhere Classified
South Lakeland District Council,http://opendatacommunities.org/id/district-council/south-lakeland,30/11/2016,Development Implementation,Central Services,http://opendatacommunities.org/def/concept/finance/sercop/objective/102,MARGARET BARROW INTERIORS LTD T/A MBI,,07/11/2016,62946,140,0,Havana Task Chair (M107HA) as per your,Havana Task Chair (M107HA) as per your,Equipment Furniture Materials,211200,Furniture & Soft Furn Office Furniture
South Lakeland District Council,http://opendatacommunities.org/id/district-council/south-lakeland,30/11/2016,Business Support Community Services,Cultural Environmental Regulatory & Planning Services,http://opendatacommunities.org/def/concept/finance/sercop/objective/104,Buckingham Futures,8329499,02/11/2016,62951,1157.9,0,Supply 1 Full Time Private Water Officer,Supply 1 Full Time Private Water Officer,Contract & Agency staff,182030,Environment Water Assessment & Treatment
South Lakeland District Council,http://opendatacommunities.org/id/district-council/south-lakeland,30/11/2016,Electoral Services,Central Services,http://opendatacommunities.org/def/concept/finance/sercop/objective/102,SCI PRINT LTD,,16/11/2016,62953,1908,0,Poll Cards for Windermere By Election,Poll Cards for Windermere By Election,Printing,191600,Facilities Printing
South Lakeland District Council,http://opendatacommunities.org/id/district-council/south-lakeland,30/11/2016,Electoral Services,Central Services,http://opendatacommunities.org/def/concept/finance/sercop/objective/102,SCI PRINT LTD,,16/11/2016,62953,624.88,0,Poll Cards for Windermere By Election,Poll Cards for Windermere By Election,Postages,191600,Facilities Printing
South Lakeland District Council,http://opendatacommunities.org/id/district-council/south-lakeland,30/11/2016,Development Implementation,Central Services,http://opendatacommunities.org/def/concept/finance/sercop/objective/102,ADECCO UK LIMITED,593232,02/11/2016,62954,114.8,0,Cleaner for SLDC - ,Cleaner for SLDC - Karl Sota,Contract & Agency staff,261400,HR Temporary & Agency Staff
South Lakeland District Council,http://opendatacommunities.org/id/district-council/south-lakeland,30/11/2016,Kendal Town Hall,Highways & Transport Services,http://opendatacommunities.org/def/concept/finance/sercop/objective/107,ADECCO UK LIMITED,593232,16/11/2016,62956,430.5,0,Agency cover for WMMSCP,Agency cover for WMMSCP,Contract & Agency staff,261400,HR Temporary & Agency Staff
South Lakeland District Council,http://opendatacommunities.org/id/district-council/south-lakeland,30/11/2016,Social Enterprise Admin,Cultural Environmental Regulatory & Planning Services,http://opendatacommunities.org/def/concept/finance/sercop/objective/104,FURNESS NEWSPAPERS LTD,1155841,02/11/2016,62959,124.32,0,PUBLIC NOTICES FOR PLANNING 1 APRIL 2015,PUBLIC NOTICES FOR PLANNING 1 APRIL 2015,Advertising,191000,Facilities Advertising
South Lakeland District Council,http://opendatacommunities.org/id/district-council/south-lakeland,30/11/2016,Development Implementation,Cultural Environmental Regulatory & Planning Services,http://opendatacommunities.org/def/concept/finance/sercop/objective/104,Orian Solutions Ltd,8237164,02/11/2016,62960,378.35,0,"Cleaning Services at 124 Highgate,","Cleaning Services at 124 Highgate,",Cleaning Supplies & Services,131310,Cleaning & Janitorial Cleaning Service
South Lakeland District Council,http://opendatacommunities.org/id/district-council/south-lakeland,30/11/2016,Development Implementation,Cultural Environmental Regulatory & Planning Services,http://opendatacommunities.org/def/concept/finance/sercop/objective/104,ADECCO UK LIMITED,593232,02/11/2016,62977,403.2,0,SLDC Project Officer - ,SLDC Project Officer - Cherie Fox,Contract & Agency staff,261400,HR Temporary & Agency Staff
South Lakeland District Council,http://opendatacommunities.org/id/district-council/south-lakeland,30/11/2016,Development Implementation,Cultural Environmental Regulatory & Planning Services,http://opendatacommunities.org/def/concept/finance/sercop/objective/104,ADECCO UK LIMITED,593232,02/11/2016,62978,312,0,Administrator - Renate Parker (24hrs,Administrator - Renate Parker (24hrs,Contract & Agency staff,261400,HR Temporary & Agency Staff
South Lakeland District Council,http://opendatacommunities.org/id/district-council/south-lakeland,30/11/2016,Kendal Town Hall,Highways & Transport Services,http://opendatacommunities.org/def/concept/finance/sercop/objective/107,ADECCO UK LIMITED,593232,16/11/2016,62979,252.56,0,Agency cover for WMMSCP,Agency cover for WMMSCP,Contract & Agency staff,261400,HR Temporary & Agency Staff
South Lakeland District Council,http://opendatacommunities.org/id/district-council/south-lakeland,30/11/2016,Democratic and Member Services,Central Services,http://opendatacommunities.org/def/concept/finance/sercop/objective/102,ROYAL BRITISH LEGION POPPY APPEAL,,02/11/2016,62982,275,0,wreath order for remembrance day,wreath order for remembrance day,Chairman's Allowance,201710,Financial Services-Grants-Charitable
South Lakeland District Council,http://opendatacommunities.org/id/district-council/south-lakeland,30/11/2016,Social Enterprise Admin,Cultural Environmental Regulatory & Planning Services,http://opendatacommunities.org/def/concept/finance/sercop/objective/104,ALLSTAR BUSINESS SOLUTIONS LTD (NCR),2631112,01/11/2016,63003,69.77,0,Parks fuel,Parks fuel,Fuel,381600,Vehicle Mgt Leasing
South Lakeland District Council,http://opendatacommunities.org/id/district-council/south-lakeland,30/11/2016,Kendal Town Hall,Central Services,http://opendatacommunities.org/def/concept/finance/sercop/objective/102,BERENDSEN UK LTD,228604,02/11/2016,63015,103.13,0,Monthly rental of anti- slip mats for,Monthly rental of anti- slip mats for,Cleaning Supplies & Services,161000,Domestic Goods Commercial
South Lakeland District Council,http://opendatacommunities.org/id/district-council/south-lakeland,30/11/2016,Kendal Town Hall,Cultural Environmental Regulatory & Planning Services,http://opendatacommunities.org/def/concept/finance/sercop/objective/104,BERENDSEN UK LTD,228604,02/11/2016,63015,24.59,0,Monthly rental of anti- slip mats for,Monthly rental of anti- slip mats for,Cleaning Supplies & Services,161000,Domestic Goods Commercial
South Lakeland District Council,http://opendatacommunities.org/id/district-council/south-lakeland,30/11/2016,Business Support Community Services,Internal Trading Accounts,,QPS PLASTIC LTD,,02/11/2016,63018,195.75,0,Curtains,Curtains,Transport-Uninsured Damage,109999,Building Not Elsewhere Classified
South Lakeland District Council,http://opendatacommunities.org/id/district-council/south-lakeland,30/11/2016,Business Support Community Services,Internal Trading Accounts,,TECHNIJET LTD,2776601,02/11/2016,63019,137.59,0,Service & repair pressure washers,Service & repair pressure washers,Equipment Furniture Materials,139999,Cleaning & Janitorial Not Elsewhere Clas
South Lakeland District Council,http://opendatacommunities.org/id/district-council/south-lakeland,30/11/2016,Business Support Community Services,Internal Trading Accounts,,BERENDSEN UK LTD,228604,07/11/2016,63020,286.97,0,Workwear hire 29/03/16 - 28/03/17,Workwear hire 29/03/16 - 28/03/17,Protective Clothing & Uniforms,161000,Domestic Goods Commercial
South Lakeland District Council,http://opendatacommunities.org/id/district-council/south-lakeland,30/11/2016,Business Support Community Services,Internal Trading Accounts,,Hydrodec (UK) Ltd T/A OSS Group,8652156,02/11/2016,63021,127,0,Waste oil filter drum,Waste oil filter drum,Job Consumables,182015,Environment Waste Mgt Waste Disposal
South Lakeland District Council,http://opendatacommunities.org/id/district-council/south-lakeland,30/11/2016,Business Support Community Services,Central Services,http://opendatacommunities.org/def/concept/finance/sercop/objective/102,KEEP BRITAIN TIDY,3496361,02/11/2016,63022,6200,0,Enforcement Academy training,Enforcement Academy training,Training Costs,181600,Environment Street Cleansing
South Lakeland District Council,http://opendatacommunities.org/id/district-council/south-lakeland,30/11/2016,Business Support Community Services,Internal Trading Accounts,,ALAN MYERSCOUGH LTD,2027076,02/11/2016,63023,250,0,Repair SL081,Repair SL081,Transport-Uninsured Damage,381400,Vehicle Mgt Maintenance
South Lakeland District Council,http://opendatacommunities.org/id/district-council/south-lakeland,30/11/2016,Lake Wardens,Cultural Environmental Regulatory & Planning Services,http://opendatacommunities.org/def/concept/finance/sercop/objective/104,THOMAS GRAHAM & SONS (IRON & STEEL) LTD,656879,07/11/2016,63024,12.32,0,2 x Boxes(100) of 5mm x 20mm,2 x Boxes(100) of 5mm x 20mm,Equipment Furniture Materials,101400,Building General Materials
South Lakeland District Council,http://opendatacommunities.org/id/district-council/south-lakeland,30/11/2016,Printing Section,Central Services,http://opendatacommunities.org/def/concept/finance/sercop/objective/102,ROSEFOX PAPER LIMITED,1655083,07/11/2016,63025,477.42,0,Pallet of paper A4 Paper One 80gsm,Pallet of paper A4 Paper One 80gsm,Stationery/Office Supplies,341000,Stationery Paper
South Lakeland District Council,http://opendatacommunities.org/id/district-council/south-lakeland,30/11/2016,Human Resources,Central Services,http://opendatacommunities.org/def/concept/finance/sercop/objective/102,ARCO LIMITED,133804,14/11/2016,63027,56.2,0,Anvil Traction Tulsa Shoe,A Welton - Anvil Traction Tulsa Shoe,Health and Safety,141100,Clothing Protective
South Lakeland District Council,http://opendatacommunities.org/id/district-council/south-lakeland,30/11/2016,Lake Wardens,Cultural Environmental Regulatory & Planning Services,http://opendatacommunities.org/def/concept/finance/sercop/objective/104,KENTDALE FIRST AID TRAINING,,07/11/2016,63030,605,0,1 x 3 day First Aid @ Work for Polly,1 x 3 day First Aid @ Work for Polly,Training Costs,261500,HR Training & Conferences
South Lakeland District Council,http://opendatacommunities.org/id/district-council/south-lakeland,30/11/2016,Social Enterprise Admin,Highways & Transport Services,http://opendatacommunities.org/def/concept/finance/sercop/objective/107,METRIC GROUP LIMITED,2560839,02/11/2016,63031,693,0,Web hosting and web tariff editor for 66,Web hosting and web tariff editor for 66,Fixed Plant & Machinery Maint,359999,Street & Traffic Not Elsewhere Classifie
South Lakeland District Council,http://opendatacommunities.org/id/district-council/south-lakeland,30/11/2016,Social Enterprise Admin,Cultural Environmental Regulatory & Planning Services,http://opendatacommunities.org/def/concept/finance/sercop/objective/104,J A JONES & SONS (CHURCHTOWN) LTD,1697442,02/11/2016,63032,420,0,"Festuca glauca ""Elijah Blue"" (grass) 2 L","Festuca glauca ""Elijah Blue"" (grass) 2 L",Grounds Special,241600,Horticultural Trees & Shrubs
South Lakeland District Council,http://opendatacommunities.org/id/district-council/south-lakeland,30/11/2016,Social Enterprise Admin,Central Services,http://opendatacommunities.org/def/concept/finance/sercop/objective/102,WOOF'S OF SEDBERGH,,02/11/2016,63033,175,0,MINI BUS SITE VISITS FOR MEMBERS RE,MINI BUS SITE VISITS FOR MEMBERS RE,Contract Hire Operating Lease,361300,Public Transport Passenger Transport
South Lakeland District Council,http://opendatacommunities.org/id/district-council/south-lakeland,30/11/2016,ICT Group,Central Services,http://opendatacommunities.org/def/concept/finance/sercop/objective/102,Insight Direct (Uk) Ltd,2579852,14/11/2016,63034,107.21,0,Insight Part Number: 0001399072,Insight Part Number: 0001399072,Computer-Supplies,271200,ICT Hardware
South Lakeland District Council,http://opendatacommunities.org/id/district-council/south-lakeland,30/11/2016,Kendal Town Hall,Cultural Environmental Regulatory & Planning Services,http://opendatacommunities.org/def/concept/finance/sercop/objective/104,CUMBRIA COUNTY COUNCIL,,02/11/2016,63035,25000,0,Financial contribution towards Tour of,Financial contribution towards Tour of,Contributions to Organisations,908000,Public Bodies Council support services
South Lakeland District Council,http://opendatacommunities.org/id/district-council/south-lakeland,30/11/2016,Human Resources,Central Services,http://opendatacommunities.org/def/concept/finance/sercop/objective/102,EMPLOYMENT PAGES LTD,7363099,14/11/2016,63036,275.4,0,Employment Pages - Senior Housing,Employment Pages - Senior Housing,Staff Advertising,261400,HR Temporary & Agency Staff
South Lakeland District Council,http://opendatacommunities.org/id/district-council/south-lakeland,30/11/2016,Business Support Community Services,Internal Trading Accounts,,TEAL PATENTS LTD,3212208,07/11/2016,63037,233.1,0,Handwash,Handwash,Transport-Repair & Maintenance,111100,Catering Equipment & Utensils
South Lakeland District Council,http://opendatacommunities.org/id/district-council/south-lakeland,30/11/2016,Business Support Community Services,Internal Trading Accounts,,JOHNSTON SWEEPERS LTD,199841,07/11/2016,63038,52.68,0,Joint,Joint,Transport-Repair & Maintenance,181600,Environment Street Cleansing
South Lakeland District Council,http://opendatacommunities.org/id/district-council/south-lakeland,30/11/2016,Social Enterprise Admin,Cultural Environmental Regulatory & Planning Services,http://opendatacommunities.org/def/concept/finance/sercop/objective/104,Sutcliffe Play Scotland Ltd,SC359176,02/11/2016,63039,13.47,0,"1no RBF500 - 2.1/2"" Rubber Bung - 8.47","1no RBF500 - 2.1/2"" Rubber Bung - 8.47",Play Areas Maintenance,331000,Sports Playground Equipment
South Lakeland District Council,http://opendatacommunities.org/id/district-council/south-lakeland,30/11/2016,Kendal Town Hall,Cultural Environmental Regulatory & Planning Services,http://opendatacommunities.org/def/concept/finance/sercop/objective/104,LDA Cleaning Services Ltd,8917986,02/11/2016,63048,175,0,Cleaning Ferry Nab public toilets until,Cleaning Ferry Nab public toilets until,Other Consultants,131310,Cleaning & Janitorial Cleaning Service
South Lakeland District Council,http://opendatacommunities.org/id/district-council/south-lakeland,30/11/2016,Business Support Community Services,Housing Services,http://opendatacommunities.org/def/concept/finance/sercop/objective/108,Landlord,,02/11/2016,63050,400,0,Monthly rent ,"Monthly rent for 23c Kirkland, Kendal,",Homelessness Prevention,250010,Housing Letting Agents
South Lakeland District Council,http://opendatacommunities.org/id/district-council/south-lakeland,30/11/2016,Business Support Community Services,Housing Services,http://opendatacommunities.org/def/concept/finance/sercop/objective/108,Landlord,,02/11/2016,63051,400,0,Monthly rent ,"Monthly rent for 7 Yard, 89",Homelessness Prevention,250000,Housing
South Lakeland District Council,http://opendatacommunities.org/id/district-council/south-lakeland,30/11/2016,Business Support Community Services,Housing Services,http://opendatacommunities.org/def/concept/finance/sercop/objective/108,Landlord,,02/11/2016,63052,600,0,Monthly rent ,"Monthly rent for 41 Main Street,",Homelessness Prevention,250000,Housing
South Lakeland District Council,http://opendatacommunities.org/id/district-council/south-lakeland,30/11/2016,Financial Services,SLDC as Agent,,LAKELAND ESTATES (AMBLESIDE) LTD,3022544,02/11/2016,63053,24098.65,0,2016/17 Income,2016/17 Income,General,191700,Facilities Property Management
South Lakeland District Council,http://opendatacommunities.org/id/district-council/south-lakeland,30/11/2016,Environment and Housing,Housing Services,http://opendatacommunities.org/def/concept/finance/sercop/objective/108,GROWING CONCERNS LTD,,02/11/2016,63054,1098.28,0,Payment for Handy Person Scheme,Payment for Handy Person Scheme,Handyperson,391200,Construction Engineering
South Lakeland District Council,http://opendatacommunities.org/id/district-council/south-lakeland,30/11/2016,Financial Services,SLDC as Agent,,KIRKLAND TRUST (KENDAL),,02/11/2016,63055,4876.25,0,2016/17 Income,2016/17 Income,General,201700,Financial Services Grants
South Lakeland District Council,http://opendatacommunities.org/id/district-council/south-lakeland,30/11/2016,Democratic and Member Services,Central Services,http://opendatacommunities.org/def/concept/finance/sercop/objective/102,Cumbria Community Foundation,,07/11/2016,63056,50,0,"50.00 donation from Chairman, ","50.00 donation from Chairman, Sylvia",Chairman's Allowance,201710,Financial Services-Grants-Charitable
South Lakeland District Council,http://opendatacommunities.org/id/district-council/south-lakeland,30/11/2016,Business Support Community Services,Cultural Environmental Regulatory & Planning Services,http://opendatacommunities.org/def/concept/finance/sercop/objective/104,Chris Cannon,,07/11/2016,63057,150,0,Repairs carried out to stone wall due to,Repairs carried out to stone wall due to,Equipment Furniture Materials,101400,Building General Materials
South Lakeland District Council,http://opendatacommunities.org/id/district-council/south-lakeland,30/11/2016,Revenues and Benefits,Central Services,http://opendatacommunities.org/def/concept/finance/sercop/objective/102,PITNEY BOWES LTD,182037,07/11/2016,63059,166.9,0,2016 - 2017  Stationery & office,2016 - 2017  Stationery & office,Stationery/Office Supplies,301200,Mail Services� Postage
South Lakeland District Council,http://opendatacommunities.org/id/district-council/south-lakeland,30/11/2016,Social Enterprise Admin,Central Services,http://opendatacommunities.org/def/concept/finance/sercop/objective/102,WOOF'S OF SEDBERGH,,07/11/2016,63060,175,0,MINI BUS SITE VISITS FOR MEMBERS RE,MINI BUS SITE VISITS FOR MEMBERS RE,Contract Hire Operating Lease,361300,Public Transport Passenger Transport
South Lakeland District Council,http://opendatacommunities.org/id/district-council/south-lakeland,30/11/2016,Business Support Community Services,Internal Trading Accounts,,COMPASS COMPONENTS,,07/11/2016,63061,197.09,0,Consumables 01/04/16 - 31/03/17,Consumables 01/04/16 - 31/03/17,Job Consumables,101400,Building General Materials
South Lakeland District Council,http://opendatacommunities.org/id/district-council/south-lakeland,30/11/2016,Legal Services,Central Services,http://opendatacommunities.org/def/concept/finance/sercop/objective/102,HILL DICKINSON LLP,OC314079,07/11/2016,63063,717,0,Fees in respect of Bernerss Close - Deed,Fees in respect of Bernerss Close - Deed,Legal & Counsels Fees,281300,Legal Services Legal Opinion
South Lakeland District Council,http://opendatacommunities.org/id/district-council/south-lakeland,30/11/2016,Social Enterprise Admin,Highways & Transport Services,http://opendatacommunities.org/def/concept/finance/sercop/objective/107,ALLSTAR BUSINESS SOLUTIONS LTD (NCR),2631112,01/11/2016,63064,141.44,0,Fuel for 3 CEO vehicles 1 April 2016 to,Fuel for 3 CEO vehicles 1 April 2016 to,Fuel,381600,Vehicle Mgt Leasing
South Lakeland District Council,http://opendatacommunities.org/id/district-council/south-lakeland,30/11/2016,Social Enterprise Admin,Highways & Transport Services,http://opendatacommunities.org/def/concept/finance/sercop/objective/107,ALLSTAR BUSINESS SOLUTIONS LTD (NCR),2631112,01/11/2016,63064,225.03,0,Fuel for 3 CEO vehicles 1 April 2016 to,Fuel for 3 CEO vehicles 1 April 2016 to,Fuel,381600,Vehicle Mgt Leasing
South Lakeland District Council,http://opendatacommunities.org/id/district-council/south-lakeland,30/11/2016,Social Enterprise Admin,Cultural Environmental Regulatory & Planning Services,http://opendatacommunities.org/def/concept/finance/sercop/objective/104,ALLSTAR BUSINESS SOLUTIONS LTD (NCR),2631112,01/11/2016,63064,84.72,0,Fuel for 3 CEO vehicles 1 April 2016 to,Fuel for 3 CEO vehicles 1 April 2016 to,Fuel,381600,Vehicle Mgt Leasing
South Lakeland District Council,http://opendatacommunities.org/id/district-council/south-lakeland,30/11/2016,Social Enterprise Admin,Culture and Related Serv,http://opendatacommunities.org/def/concept/finance/sercop/objective/104,HAGS-SMP Ltd,908021,14/11/2016,63065,60847.89,0,As per quote Q-10387-GIK3/2 and our,As per quote Q-10387-GIK3/2 and our,Purchase of Plant Machinery,331000,Sports Playground Equipment
South Lakeland District Council,http://opendatacommunities.org/id/district-council/south-lakeland,30/11/2016,Business Support Community Services,Internal Trading Accounts,,M G D LTD,,07/11/2016,63068,35,0,MOTs 01/04/16 - 31/03/17,MOTs 01/04/16 - 31/03/17,MOT/Servicing Costs,381400,Vehicle Mgt Maintenance
South Lakeland District Council,http://opendatacommunities.org/id/district-council/south-lakeland,30/11/2016,Business Support Community Services,Internal Trading Accounts,,EK MOTOR FACTORS LTD,838524,07/11/2016,63069,46.07,0,Mounting,Mounting,Transport-Repair & Maintenance,381400,Vehicle Mgt Maintenance
South Lakeland District Council,http://opendatacommunities.org/id/district-council/south-lakeland,30/11/2016,Business Support Community Services,Internal Trading Accounts,,TAYLOR ENGINEERING & FABRICATIONS LTD,4989359,07/11/2016,63070,531.6,0,Contacts,Contacts,Transport-Repair & Maintenance,391200,Construction Engineering
South Lakeland District Council,http://opendatacommunities.org/id/district-council/south-lakeland,30/11/2016,Business Support Community Services,Cultural Environmental Regulatory & Planning Services,http://opendatacommunities.org/def/concept/finance/sercop/objective/104,OCS GROUP LTD T/A CANNON HYGIENE LTD,1298292,07/11/2016,63071,2291.36,0,Clinical waste collections - 2016/17,Clinical waste collections - 2016/17,Clinincal Waste Disposal Costs,131011,Cleaning & Janitorial Cleaning Materials
South Lakeland District Council,http://opendatacommunities.org/id/district-council/south-lakeland,30/11/2016,Business Support Community Services,Cultural Environmental Regulatory & Planning Services,http://opendatacommunities.org/def/concept/finance/sercop/objective/104,OCS GROUP LTD T/A CANNON HYGIENE LTD,1298292,07/11/2016,63073,60,0,Clinical waste collections - 2016/17,Clinical waste collections - 2016/17,Clinincal Waste Disposal Costs,131011,Cleaning & Janitorial Cleaning Materials
South Lakeland District Council,http://opendatacommunities.org/id/district-council/south-lakeland,30/11/2016,Business Support Community Services,Internal Trading Accounts,,EK MOTOR FACTORS LTD,838524,07/11/2016,63074,43.2,0,Air filter,Air filter,Transport-Repair & Maintenance,381400,Vehicle Mgt Maintenance
South Lakeland District Council,http://opendatacommunities.org/id/district-council/south-lakeland,30/11/2016,Business Support Community Services,Internal Trading Accounts,,EK MOTOR FACTORS LTD,838524,07/11/2016,63075,2.2,0,Air filter,Air filter,Transport-Repair & Maintenance,381400,Vehicle Mgt Maintenance
South Lakeland District Council,http://opendatacommunities.org/id/district-council/south-lakeland,30/11/2016,Business Support Community Services,Internal Trading Accounts,,EK MOTOR FACTORS LTD,838524,07/11/2016,63077,419.17,0,Air filter,Air filter,Transport-Repair & Maintenance,381400,Vehicle Mgt Maintenance
South Lakeland District Council,http://opendatacommunities.org/id/district-council/south-lakeland,30/11/2016,Business Support Community Services,Internal Trading Accounts,,EK MOTOR FACTORS LTD,838524,07/11/2016,63079,14.36,0,Mounting,Mounting,Transport-Repair & Maintenance,381400,Vehicle Mgt Maintenance
South Lakeland District Council,http://opendatacommunities.org/id/district-council/south-lakeland,30/11/2016,Business Support Community Services,Internal Trading Accounts,,EK MOTOR FACTORS LTD,838524,07/11/2016,63080,-22.29,0,Mounting,Mounting,Transport-Repair & Maintenance,381400,Vehicle Mgt Maintenance
South Lakeland District Council,http://opendatacommunities.org/id/district-council/south-lakeland,30/11/2016,Business Support Community Services,Internal Trading Accounts,,EK MOTOR FACTORS LTD,838524,07/11/2016,63082,43.87,0,Mounting,Mounting,Transport-Repair & Maintenance,381400,Vehicle Mgt Maintenance
South Lakeland District Council,http://opendatacommunities.org/id/district-council/south-lakeland,30/11/2016,Business Support Community Services,Internal Trading Accounts,,EK MOTOR FACTORS LTD,838524,07/11/2016,63083,81.95,0,Mounting,Mounting,Transport-Repair & Maintenance,381400,Vehicle Mgt Maintenance
South Lakeland District Council,http://opendatacommunities.org/id/district-council/south-lakeland,30/11/2016,Business Support Community Services,Internal Trading Accounts,,DENNIS EAGLE LTD,3794455,07/11/2016,63085,153.26,0,Blades,Blades,Transport-Repair & Maintenance,381300,Vehicle Mgt Industrial
South Lakeland District Council,http://opendatacommunities.org/id/district-council/south-lakeland,30/11/2016,Business Support Community Services,Internal Trading Accounts,,Preston Trade Parts Specialists,,07/11/2016,63086,8.22,0,Cover,Cover,Transport-Repair & Maintenance,381400,Vehicle Mgt Maintenance
South Lakeland District Council,http://opendatacommunities.org/id/district-council/south-lakeland,30/11/2016,Democratic and Member Services,Cultural Environmental Regulatory & Planning Services,http://opendatacommunities.org/def/concept/finance/sercop/objective/104,Hallgarth Young Person's Organisation,,07/11/2016,63087,250,0,Christmas and Halloween Youth event,Christmas and Halloween Youth event,Contributions to Organisations,201710,Financial Services-Grants-Charitable
South Lakeland District Council,http://opendatacommunities.org/id/district-council/south-lakeland,30/11/2016,Democratic and Member Services,Cultural Environmental Regulatory & Planning Services,http://opendatacommunities.org/def/concept/finance/sercop/objective/104,LANCASTER CITY COUNCIL,,07/11/2016,63088,260,0,donation from Cllr-towards the,donation from Cllr Stewart-towards the,Contributions to Organisations,201900,Financial Services Refund
South Lakeland District Council,http://opendatacommunities.org/id/district-council/south-lakeland,30/11/2016,Environment and Housing,SLDC as Agent,,ABRITAS LTD,4101079,07/11/2016,63090,42.12,0,Costs with Disc Charge 2016-17 - Cumbria,Costs with Disc Charge 2016-17 - Cumbria,General,151200,Consultancy Efficiency
South Lakeland District Council,http://opendatacommunities.org/id/district-council/south-lakeland,30/11/2016,Environment and Housing,SLDC as Agent,,ABRITAS LTD,4101079,07/11/2016,63091,96.84,0,Costs with Disc Charge 2016-17 - Cumbria,Costs with Disc Charge 2016-17 - Cumbria,General,151200,Consultancy Efficiency
South Lakeland District Council,http://opendatacommunities.org/id/district-council/south-lakeland,30/11/2016,Environment and Housing,SLDC as Agent,,ABRITAS LTD,4101079,07/11/2016,63092,40.32,0,Costs with Disc Charge 2016-17 - Cumbria,Costs with Disc Charge 2016-17 - Cumbria,General,151200,Consultancy Efficiency
South Lakeland District Council,http://opendatacommunities.org/id/district-council/south-lakeland,30/11/2016,Revenues and Benefits,Central Services,http://opendatacommunities.org/def/concept/finance/sercop/objective/102,CFH Docmail Ltd,1716891,07/11/2016,63093,901.18,0,VOA Leaflet Mailing,VOA Leaflet Mailing,Printing,300000,Mail Services
South Lakeland District Council,http://opendatacommunities.org/id/district-council/south-lakeland,30/11/2016,Democratic and Member Services,Central Services,http://opendatacommunities.org/def/concept/finance/sercop/objective/102,LOCAL GOVERNMENT ASSOCIATION,,07/11/2016,63094,299,0,"LGA Annual Culture, Tourism and Sport","LGA Annual Culture, Tourism and Sport",Training Costs,202100,Financial Services Subscriptions
South Lakeland District Council,http://opendatacommunities.org/id/district-council/south-lakeland,30/11/2016,Revenues and Benefits,Central Services,http://opendatacommunities.org/def/concept/finance/sercop/objective/102,CFH Docmail Ltd,1716891,07/11/2016,63095,1744.94,0,VOA Leaflet Mailing,VOA Leaflet Mailing,Printing,300000,Mail Services
South Lakeland District Council,http://opendatacommunities.org/id/district-council/south-lakeland,30/11/2016,Policy & Partnerships,Central Services,http://opendatacommunities.org/def/concept/finance/sercop/objective/102,Hallgarth Community Centre Mgmt Committe,,07/11/2016,63096,45,0,Room hire for reception centre,Room hire for reception centre,Room Hire,202100,Financial Services Subscriptions
South Lakeland District Council,http://opendatacommunities.org/id/district-council/south-lakeland,30/11/2016,Development Implementation,Cultural Environmental Regulatory & Planning Services,http://opendatacommunities.org/def/concept/finance/sercop/objective/104,CUMBRIA TOURISM,3027358,07/11/2016,63097,4509,0,Membership Contribution October 2016 -,Membership Contribution October 2016 -,Economic Development Fund,291400,Arts & Leisure Services Sport & Fitness
South Lakeland District Council,http://opendatacommunities.org/id/district-council/south-lakeland,30/11/2016,Social Enterprise Admin,Cultural Environmental Regulatory & Planning Services,http://opendatacommunities.org/def/concept/finance/sercop/objective/104,RTPI SUBSCRIPTIONS,,07/11/2016,63100,145,0,NAPE SUBSCRIPTION 2017,MARK BALDERSON NAPE SUBSCRIPTION 2017,Professional Fees,391100,Construction Buildings
South Lakeland District Council,http://opendatacommunities.org/id/district-council/south-lakeland,30/11/2016,Social Enterprise Admin,Cultural Environmental Regulatory & Planning Services,http://opendatacommunities.org/def/concept/finance/sercop/objective/104,RTPI SUBSCRIPTIONS,,07/11/2016,63101,290,0,NAPE SUBSCRIPTION 2017,MARK BALDERSON NAPE SUBSCRIPTION 2017,Professional Fees,391100,Construction Buildings
South Lakeland District Council,http://opendatacommunities.org/id/district-council/south-lakeland,30/11/2016,Social Enterprise Admin,Cultural Environmental Regulatory & Planning Services,http://opendatacommunities.org/def/concept/finance/sercop/objective/104,RTPI SUBSCRIPTIONS,,07/11/2016,63102,290,0,NAPE SUBSCRIPTION 2017,MARK BALDERSON NAPE SUBSCRIPTION 2017,Professional Fees,391100,Construction Buildings
South Lakeland District Council,http://opendatacommunities.org/id/district-council/south-lakeland,30/11/2016,Social Enterprise Admin,Cultural Environmental Regulatory & Planning Services,http://opendatacommunities.org/def/concept/finance/sercop/objective/104,RTPI SUBSCRIPTIONS,,07/11/2016,63103,290,0,NAPE SUBSCRIPTION 2017,MARK BALDERSON NAPE SUBSCRIPTION 2017,Professional Fees,391100,Construction Buildings
South Lakeland District Council,http://opendatacommunities.org/id/district-council/south-lakeland,30/11/2016,Legal Services,Central Services,http://opendatacommunities.org/def/concept/finance/sercop/objective/102,Eventus Legal Recruitment,,07/11/2016,63104,156,0,Commission Fees for W.Mitchell from,Commission Fees for W.Mitchell from,Contract & Agency staff,261300,HR Recruitment & Assessment
South Lakeland District Council,http://opendatacommunities.org/id/district-council/south-lakeland,30/11/2016,Legal Services,Central Services,http://opendatacommunities.org/def/concept/finance/sercop/objective/102,Legal Counsel Ltd,10147194,07/11/2016,63105,960,0,Employee W. Mitchell,Employee W. Mitchell,Contract & Agency staff,281200,Legal Services General Support
South Lakeland District Council,http://opendatacommunities.org/id/district-council/south-lakeland,30/11/2016,Human Resources,Central Services,http://opendatacommunities.org/def/concept/finance/sercop/objective/102,Agora Business Publications LLP,323533,07/11/2016,63106,84.78,0,HR Advisor,HR Advisor,Publications,261200,HR Professional & Advisory Services
South Lakeland District Council,http://opendatacommunities.org/id/district-council/south-lakeland,30/11/2016,Development Implementation,Central Services,http://opendatacommunities.org/def/concept/finance/sercop/objective/102,Reed Business Information,151537,07/11/2016,63107,290,0,Estates Gazette Subscription 1 year,Estates Gazette Subscription 1 year,Publications,261200,HR Professional & Advisory Services
South Lakeland District Council,http://opendatacommunities.org/id/district-council/south-lakeland,30/11/2016,Revenues and Benefits,SLDC as Agent,,ROYAL MAIL GROUP PLC,,07/11/2016,63109,1082.5,0,2016 - 17  Postal Charges a/c 0198123013,2016 - 17  Postal Charges a/c 0198123013,General,301200,Mail Services� Postage
South Lakeland District Council,http://opendatacommunities.org/id/district-council/south-lakeland,30/11/2016,Revenues and Benefits,Central Services,http://opendatacommunities.org/def/concept/finance/sercop/objective/102,ROYAL MAIL GROUP PLC,,07/11/2016,63110,279.62,0,2016 - 2017  Postal Charges a/c,2016 - 2017  Postal Charges a/c,Postages,301200,Mail Services� Postage
South Lakeland District Council,http://opendatacommunities.org/id/district-council/south-lakeland,30/11/2016,Development Management,Cultural Environmental Regulatory & Planning Services,http://opendatacommunities.org/def/concept/finance/sercop/objective/104,CHRIS BOWKER LTD,1642561,07/11/2016,63111,150,0,Check of electrical installation to,Check of electrical installation to,Electrican Inspection,101100,Building Electrical
South Lakeland District Council,http://opendatacommunities.org/id/district-council/south-lakeland,30/11/2016,Development Management,Cultural Environmental Regulatory & Planning Services,http://opendatacommunities.org/def/concept/finance/sercop/objective/104,CHRIS BOWKER LTD,1642561,07/11/2016,63112,26.5,0,Check of electrical installation to,Check of electrical installation to,Electrican Inspection,101100,Building Electrical
South Lakeland District Council,http://opendatacommunities.org/id/district-council/south-lakeland,30/11/2016,Revenues and Benefits,Central Services,http://opendatacommunities.org/def/concept/finance/sercop/objective/102,JACOBS,,07/11/2016,63115,310,0,2016-2017 Vat only,2016-2017 Vat only,Bailiffs Fees,152200,Consultancy Technical & Feasibility
South Lakeland District Council,http://opendatacommunities.org/id/district-council/south-lakeland,30/11/2016,Revenues and Benefits,Central Services,http://opendatacommunities.org/def/concept/finance/sercop/objective/102,MERITEC LTD,3224622,07/11/2016,63116,279,0,2016 - 2017  RAB Processing Contract and,2016 - 2017  RAB Processing Contract and,Contract & Agency staff,391200,Construction Engineering
South Lakeland District Council,http://opendatacommunities.org/id/district-council/south-lakeland,30/11/2016,Legal Services,Internal Trading Accounts,,PENNINGTONS (KENDAL) LIMITED,434649,07/11/2016,63117,2000,0,Annual Charge for use of Link Road at,Annual Charge for use of Link Road at,Tipping & Disposal Charges,182013,Environment Waste Mgt Waste Collection
South Lakeland District Council,http://opendatacommunities.org/id/district-council/south-lakeland,30/11/2016,Electoral Services,Central Services,http://opendatacommunities.org/def/concept/finance/sercop/objective/102,ASSOCIATION OF ELECTORAL ADMINISTRATORS,2406897,21/11/2016,63118,181,0,Training on Neighbourhood Planning,Training on Neighbourhood Planning,Training Costs,202100,Financial Services Subscriptions
South Lakeland District Council,http://opendatacommunities.org/id/district-council/south-lakeland,30/11/2016,Electoral Services,Central Services,http://opendatacommunities.org/def/concept/finance/sercop/objective/102,ASSOCIATION OF ELECTORAL ADMINISTRATORS,2406897,21/11/2016,63118,185,0,Training on Neighbourhood Planning,Training on Neighbourhood Planning,Training Costs,202100,Financial Services Subscriptions
South Lakeland District Council,http://opendatacommunities.org/id/district-council/south-lakeland,30/11/2016,Social Enterprise Admin,Cultural Environmental Regulatory & Planning Services,http://opendatacommunities.org/def/concept/finance/sercop/objective/104,RTPI SUBSCRIPTIONS,,07/11/2016,63119,145,0,NAPE SUBSCRIPTION 2017,MARK BALDERSON NAPE SUBSCRIPTION 2017,Professional Fees,391100,Construction Buildings
South Lakeland District Council,http://opendatacommunities.org/id/district-council/south-lakeland,30/11/2016,Social Enterprise Admin,Cultural Environmental Regulatory & Planning Services,http://opendatacommunities.org/def/concept/finance/sercop/objective/104,RTPI SUBSCRIPTIONS,,07/11/2016,63120,145,0,NAPE SUBSCRIPTION 2017,MARK BALDERSON NAPE SUBSCRIPTION 2017,Professional Fees,391100,Construction Buildings
South Lakeland District Council,http://opendatacommunities.org/id/district-council/south-lakeland,30/11/2016,Social Enterprise Admin,Central Services,http://opendatacommunities.org/def/concept/finance/sercop/objective/102,WOOF'S OF SEDBERGH,,07/11/2016,63121,190,0,MINI BUS SITE VISITS FOR MEMBERS RE,MINI BUS SITE VISITS FOR MEMBERS RE,Contract Hire Operating Lease,361300,Public Transport Passenger Transport
South Lakeland District Council,http://opendatacommunities.org/id/district-council/south-lakeland,30/11/2016,ICT Group,Cultural Environmental Regulatory & Planning Services,http://opendatacommunities.org/def/concept/finance/sercop/objective/104,BRITISH TELECOMMUNICATIONS PLC,1800000,14/11/2016,63122,25,0,Broadband and Line Rental for the,Broadband and Line Rental for the,Telephones-Rentals,279999,ICT Not Elsewhere Classified
South Lakeland District Council,http://opendatacommunities.org/id/district-council/south-lakeland,30/11/2016,ICT Group,Cultural Environmental Regulatory & Planning Services,http://opendatacommunities.org/def/concept/finance/sercop/objective/104,BRITISH TELECOMMUNICATIONS PLC,1800000,14/11/2016,63122,95,0,Broadband and Line Rental for the,Broadband and Line Rental for the,Telephones-Calls,279999,ICT Not Elsewhere Classified
South Lakeland District Council,http://opendatacommunities.org/id/district-council/south-lakeland,30/11/2016,ICT Group,Central Services,http://opendatacommunities.org/def/concept/finance/sercop/objective/102,VODAFONE LIMITED,1471587,07/11/2016,63123,96.6,0,Mobile phone call costs,Mobile phone call costs,Mobile Phones,271800,ICT Telecommunications Mobile
South Lakeland District Council,http://opendatacommunities.org/id/district-council/south-lakeland,30/11/2016,ICT Group,Central Services,http://opendatacommunities.org/def/concept/finance/sercop/objective/102,BRITISH TELECOMMUNICATIONS PLC (DD),,01/11/2016,63124,1203,0,"NPS Circuit ANUK529077, Covers 1/4/16 to","NPS Circuit ANUK529077, Covers 1/4/16 to",Computer-Phone Lines,279999,ICT Not Elsewhere Classified
South Lakeland District Council,http://opendatacommunities.org/id/district-council/south-lakeland,30/11/2016,Environment and Housing,Housing Services,http://opendatacommunities.org/def/concept/finance/sercop/objective/108,The Oyster Partnership,5020374,09/11/2016,63132,963.61,0,Officer,Bridget Oyekanmi,Contract & Agency staff,261300,HR Recruitment & Assessment
South Lakeland District Council,http://opendatacommunities.org/id/district-council/south-lakeland,30/11/2016,Development Implementation,Central Services,http://opendatacommunities.org/def/concept/finance/sercop/objective/102,HYGIENE CLEANING SUPPLIES LTD,4753934,09/11/2016,63133,405.61,0,C Fold Paper Hand Towels Blue 1 ply (3,C Fold Paper Hand Towels Blue 1 ply (3,Cleaning Supplies & Services,131011,Cleaning & Janitorial Cleaning Materials
South Lakeland District Council,http://opendatacommunities.org/id/district-council/south-lakeland,30/11/2016,Kendal Town Hall,Highways & Transport Services,http://opendatacommunities.org/def/concept/finance/sercop/objective/107,HYGIENE CLEANING SUPPLIES LTD,4753934,09/11/2016,63134,37.55,0,Jangro toilet cleaner (5L),Jangro toilet cleaner (5L),Cleaning Supplies & Services,131011,Cleaning & Janitorial Cleaning Materials
South Lakeland District Council,http://opendatacommunities.org/id/district-council/south-lakeland,30/11/2016,Kendal Town Hall,Cultural Environmental Regulatory & Planning Services,http://opendatacommunities.org/def/concept/finance/sercop/objective/104,Borderloos,3350965,07/11/2016,63135,3653.57,0,Hire of Luxury 4 berth shower trailer,Hire of Luxury 4 berth shower trailer,Other Consultants,199999,Facilities Not Elsewhere Classified
South Lakeland District Council,http://opendatacommunities.org/id/district-council/south-lakeland,30/11/2016,Business Support Community Services,Environment Regulatory,,Great Green Systems Ltd,6632263,07/11/2016,63136,68.2,0,Replaces order 24352.,Replaces order 24352.,Purchase of Plant Machinery,381206,Vehicle Mgt Heavy Construction Equip Pur
South Lakeland District Council,http://opendatacommunities.org/id/district-council/south-lakeland,30/11/2016,Business Support Community Services,Internal Trading Accounts,,HAKO MACHINES LIMITED,1414225,07/11/2016,63137,5043.99,0,Hire of KP63 WXW 01/02/16 - 31/03/16,Hire of KP63 WXW 01/02/16 - 31/03/16,Contract Hire Operating Lease,131000,Cleaning & Janitorial Cleaning Materials
South Lakeland District Council,http://opendatacommunities.org/id/district-council/south-lakeland,30/11/2016,Business Support Community Services,Internal Trading Accounts,,ALLSTAR BUSINESS SOLUTIONS LTD (NCR),2631112,01/11/2016,63138,5686.26,0,Fuel to 31/10,Fuel to 31/10,Fuel,381600,Vehicle Mgt Leasing
South Lakeland District Council,http://opendatacommunities.org/id/district-council/south-lakeland,30/11/2016,Business Support Community Services,Internal Trading Accounts,,ALLSTAR BUSINESS SOLUTIONS LTD (NCR),2631112,01/11/2016,63138,260.44,0,Fuel to 31/10,Fuel to 31/10,Fuel,381600,Vehicle Mgt Leasing
South Lakeland District Council,http://opendatacommunities.org/id/district-council/south-lakeland,30/11/2016,Business Support Community Services,Internal Trading Accounts,,ALLSTAR BUSINESS SOLUTIONS LTD (NCR),2631112,01/11/2016,63138,11108.12,0,Fuel to 31/10,Fuel to 31/10,Fuel,381600,Vehicle Mgt Leasing
South Lakeland District Council,http://opendatacommunities.org/id/district-council/south-lakeland,30/11/2016,Business Support Community Services,Cultural Environmental Regulatory & Planning Services,http://opendatacommunities.org/def/concept/finance/sercop/objective/104,Air Quality Data Management,,09/11/2016,63139,495,0,Validation of Air Quality Monitoring,Validation of Air Quality Monitoring,Equipment Furniture Materials,181400,Environment Monitoring
South Lakeland District Council,http://opendatacommunities.org/id/district-council/south-lakeland,30/11/2016,Electoral Services,Central Services,http://opendatacommunities.org/def/concept/finance/sercop/objective/102,GATES TRAVEL SERVICE,,07/11/2016,63140,68,0,2 Train tickets for Referendum Training,2 Train tickets for Referendum Training,Training Costs,261600,HR Travel & Subsistence
South Lakeland District Council,http://opendatacommunities.org/id/district-council/south-lakeland,30/11/2016,Social Enterprise Admin,Central Services,http://opendatacommunities.org/def/concept/finance/sercop/objective/102,Southerns Office Interiors Ltd,3478080,09/11/2016,63141,883.06,0,8 x Double Monitor arms - silver,8 x Double Monitor arms - silver,Equipment Furniture Materials,211200,Furniture & Soft Furn Office Furniture
South Lakeland District Council,http://opendatacommunities.org/id/district-council/south-lakeland,30/11/2016,Development Implementation,Central Services,http://opendatacommunities.org/def/concept/finance/sercop/objective/102,Southerns Office Interiors Ltd,3478080,14/11/2016,63142,138.4,0,8 x Blk W30x H10mm Inner Channel.,8 x Blk W30x H10mm Inner Channel.,Equipment Furniture Materials,211200,Furniture & Soft Furn Office Furniture
South Lakeland District Council,http://opendatacommunities.org/id/district-council/south-lakeland,30/11/2016,Development Implementation,Cultural Environmental Regulatory & Planning Services,http://opendatacommunities.org/def/concept/finance/sercop/objective/104,Nepro Ltd,,07/11/2016,63143,5000,0,Inward Investment Strategic Review for,Inward Investment Strategic Review for,Other Consultants,151900,Consultancy Management
South Lakeland District Council,http://opendatacommunities.org/id/district-council/south-lakeland,30/11/2016,Social Enterprise Admin,Central Services,http://opendatacommunities.org/def/concept/finance/sercop/objective/102,B & J METALS (SKIP HIRE) LTD,4634318,09/11/2016,63146,355,0,1 8yrd skip to be delivered to Top deck,1 8yrd skip to be delivered to Top deck,Equipment Furniture Materials,182011,Environment Waste Management Consumables
South Lakeland District Council,http://opendatacommunities.org/id/district-council/south-lakeland,30/11/2016,ICT Group,Central Services,http://opendatacommunities.org/def/concept/finance/sercop/objective/102,Insight Direct (Uk) Ltd,2579852,09/11/2016,63147,206.44,0,Iiyama ProLite B2280HS-1 monitors,Iiyama ProLite B2280HS-1 monitors,Computer-Supplies,271200,ICT Hardware
South Lakeland District Council,http://opendatacommunities.org/id/district-council/south-lakeland,30/11/2016,Social Enterprise Admin,Central Services,http://opendatacommunities.org/def/concept/finance/sercop/objective/102,ENVIROFIRST LTD,5999123,07/11/2016,63148,132.32,0,Lowther Street Wheelie bin mixed,Lowther Street Wheelie bin mixed,Allocation Refuse Costs,182012,Environment Waste Management Recycling
South Lakeland District Council,http://opendatacommunities.org/id/district-council/south-lakeland,30/11/2016,Lake Wardens,Cultural Environmental Regulatory & Planning Services,http://opendatacommunities.org/def/concept/finance/sercop/objective/104,ENVIROFIRST LTD,5999123,14/11/2016,63149,58.88,0,Rental & Emptying of Re-Cycling Bins at,Rental & Emptying of Re-Cycling Bins at,Skip and Bin Hire and Disposal,182012,Environment Waste Management Recycling
South Lakeland District Council,http://opendatacommunities.org/id/district-council/south-lakeland,30/11/2016,Customer Services,Central Services,http://opendatacommunities.org/def/concept/finance/sercop/objective/102,SHRED-IT,4047194,07/11/2016,63150,572.21,0,for removal of shred it,for removal of shred it,Stationery/Office Supplies,279999,ICT Not Elsewhere Classified
South Lakeland District Council,http://opendatacommunities.org/id/district-council/south-lakeland,30/11/2016,Financial Services,Non-Service Payments,,COMPUTERSHARE VOUCHER SERVICES LTD,4968447,07/11/2016,63151,1000,0,child care vouchers deducted from ee per,child care vouchers deducted from ee per,General,202100,Financial Services Subscriptions
South Lakeland District Council,http://opendatacommunities.org/id/district-council/south-lakeland,30/11/2016,Printing Section,Central Services,http://opendatacommunities.org/def/concept/finance/sercop/objective/102,PRESCO UK LTD,5923806,07/11/2016,63152,186.2,0,1 x pack of six 400ml Spraymount cans,1 x pack of six 400ml Spraymount cans,Stationery/Office Supplies,191600,Facilities Printing
South Lakeland District Council,http://opendatacommunities.org/id/district-council/south-lakeland,30/11/2016,Revenues and Benefits,Central Services,http://opendatacommunities.org/def/concept/finance/sercop/objective/102,ALLPAY.NET LTD (NCR),6871069,01/11/2016,63154,669,0,Barcode Testing - Quotation 5980,Barcode Testing - Quotation 5980,Subscriptions to Associations,209999,Financial Services Not Elsewhere Classif
South Lakeland District Council,http://opendatacommunities.org/id/district-council/south-lakeland,30/11/2016,Revenues and Benefits,Central Services,http://opendatacommunities.org/def/concept/finance/sercop/objective/102,ALLPAY.NET LTD (NCR),6871069,01/11/2016,63155,669,0,Barcode Testing - Quotation 5980,Barcode Testing - Quotation 5980,Subscriptions to Associations,209999,Financial Services Not Elsewhere Classif
South Lakeland District Council,http://opendatacommunities.org/id/district-council/south-lakeland,30/11/2016,Development Implementation,Cultural Environmental Regulatory & Planning Services,http://opendatacommunities.org/def/concept/finance/sercop/objective/104,E H BOOTH & CO LTD,,07/11/2016,63156,550,0,Participation in the Kendal Courtesy,Participation in the Kendal Courtesy,Contributions to Organisations,111200,Catering Food & Beverages
South Lakeland District Council,http://opendatacommunities.org/id/district-council/south-lakeland,30/11/2016,Development Implementation,Cultural Environmental Regulatory & Planning Services,http://opendatacommunities.org/def/concept/finance/sercop/objective/104,SCK WEB WORKS LTD,6994365,07/11/2016,63157,350,0,Creation/Supply of feeds from,Creation/Supply of feeds from,Other Consultants,271515,ICT Website Development
South Lakeland District Council,http://opendatacommunities.org/id/district-council/south-lakeland,30/11/2016,Development Implementation,SLDC as Agent,,SCK WEB WORKS LTD,6994365,07/11/2016,63158,45,0,Support Work for Japan Forum -,Support Work for Japan Forum -,General,271515,ICT Website Development
South Lakeland District Council,http://opendatacommunities.org/id/district-council/south-lakeland,30/11/2016,Human Resources,Non-Service Payments,,BUSY BEES BENEFITS LTD,6758298,07/11/2016,63159,563,0,child care vouchers,child care vouchers,General,202100,Financial Services Subscriptions
South Lakeland District Council,http://opendatacommunities.org/id/district-council/south-lakeland,30/11/2016,Human Resources,Central Services,http://opendatacommunities.org/def/concept/finance/sercop/objective/102,BUSY BEES BENEFITS LTD,6758298,07/11/2016,63160,19.7,0,child care vouchers,child care vouchers,National Insurance,202100,Financial Services Subscriptions
South Lakeland District Council,http://opendatacommunities.org/id/district-council/south-lakeland,30/11/2016,Business Support Community Services,Cultural Environmental Regulatory & Planning Services,http://opendatacommunities.org/def/concept/finance/sercop/objective/104,Buckingham Futures,8329499,07/11/2016,63161,1090.1,0,Supply 1 Full Time Private Water Officer,Supply 1 Full Time Private Water Officer,Contract & Agency staff,182030,Environment Water Assessment & Treatment
South Lakeland District Council,http://opendatacommunities.org/id/district-council/south-lakeland,30/11/2016,Business Support Community Services,Cultural Environmental Regulatory & Planning Services,http://opendatacommunities.org/def/concept/finance/sercop/objective/104,ALLSTAR BUSINESS SOLUTIONS LTD (NCR),2631112,01/11/2016,63162,35.72,0,Fuel - Private Water Van - 25 October,Fuel - Private Water Van - 25 October,Fuel,381600,Vehicle Mgt Leasing
South Lakeland District Council,http://opendatacommunities.org/id/district-council/south-lakeland,30/11/2016,Human Resources,Central Services,http://opendatacommunities.org/def/concept/finance/sercop/objective/102,WEIGHTMANS LLP,OC326117,07/11/2016,63163,1924,0,Bankruptcy -,Bankruptcy - Mr D Rigg,Legal & Counsels Fees,281300,Legal Services Legal Opinion
South Lakeland District Council,http://opendatacommunities.org/id/district-council/south-lakeland,30/11/2016,Legal Services,Central Services,http://opendatacommunities.org/def/concept/finance/sercop/objective/102,WEIGHTMANS LLP,OC326117,07/11/2016,63164,288,0,Additional fees in the case of Mrs,Additional fees in the case of Mrs,Legal & Counsels Fees,281300,Legal Services Legal Opinion
South Lakeland District Council,http://opendatacommunities.org/id/district-council/south-lakeland,30/11/2016,Democratic and Member Services,Cultural Environmental Regulatory & Planning Services,http://opendatacommunities.org/def/concept/finance/sercop/objective/104,SEDGWICK PARISH COUNCIL,,09/11/2016,63165,250,0,ref ,ref Sylvia Roberts,Contributions to Organisations,908000,Public Bodies Council support services
South Lakeland District Council,http://opendatacommunities.org/id/district-council/south-lakeland,30/11/2016,Social Enterprise Admin,Highways & Transport Services,http://opendatacommunities.org/def/concept/finance/sercop/objective/107,BEMROSE BOOTH PARAGON LTD,4891375,14/11/2016,63166,148,0,1000 PVC permit holders,1000 PVC permit holders,Printing,191600,Facilities Printing
South Lakeland District Council,http://opendatacommunities.org/id/district-council/south-lakeland,30/11/2016,Business Support Community Services,Internal Trading Accounts,,ARCO LIMITED,133804,09/11/2016,63170,54.63,0,Cleaning materials,Cleaning materials,Protective Clothing & Uniforms,141100,Clothing Protective
South Lakeland District Council,http://opendatacommunities.org/id/district-council/south-lakeland,30/11/2016,Business Support Community Services,Internal Trading Accounts,,ARCO LIMITED,133804,09/11/2016,63172,50.79,0,Cleaning materials,Cleaning materials,Protective Clothing & Uniforms,141100,Clothing Protective
South Lakeland District Council,http://opendatacommunities.org/id/district-council/south-lakeland,30/11/2016,Business Support Community Services,Internal Trading Accounts,,ARCO LIMITED,133804,09/11/2016,63174,17.78,0,Cleaning materials,Cleaning materials,Protective Clothing & Uniforms,141100,Clothing Protective
South Lakeland District Council,http://opendatacommunities.org/id/district-council/south-lakeland,30/11/2016,Business Support Community Services,Internal Trading Accounts,,ARCO LIMITED,133804,09/11/2016,63176,18.24,0,Cleaning materials,Cleaning materials,Protective Clothing & Uniforms,141100,Clothing Protective
South Lakeland District Council,http://opendatacommunities.org/id/district-council/south-lakeland,30/11/2016,Business Support Community Services,Internal Trading Accounts,,ARCO LIMITED,133804,09/11/2016,63177,42.56,0,Cleaning materials,Cleaning materials,Protective Clothing & Uniforms,141100,Clothing Protective
South Lakeland District Council,http://opendatacommunities.org/id/district-council/south-lakeland,30/11/2016,Business Support Community Services,Internal Trading Accounts,,ARCO LIMITED,133804,09/11/2016,63178,16.93,0,Cleaning materials,Cleaning materials,Protective Clothing & Uniforms,141100,Clothing Protective
South Lakeland District Council,http://opendatacommunities.org/id/district-council/south-lakeland,30/11/2016,Business Support Community Services,Internal Trading Accounts,,ARCO LIMITED,133804,09/11/2016,63179,30.4,0,Cleaning materials,Cleaning materials,Protective Clothing & Uniforms,141100,Clothing Protective
South Lakeland District Council,http://opendatacommunities.org/id/district-council/south-lakeland,30/11/2016,Business Support Community Services,Internal Trading Accounts,,ARCO LIMITED,133804,09/11/2016,63180,53.29,0,Cleaning materials,Cleaning materials,Protective Clothing & Uniforms,141100,Clothing Protective
South Lakeland District Council,http://opendatacommunities.org/id/district-council/south-lakeland,30/11/2016,Business Support Community Services,Internal Trading Accounts,,Masterstaff Limited,2777593,09/11/2016,63181,2143.54,0,Agency staff - August 2016,Agency staff - August 2016,Contract & Agency staff,261300,HR Recruitment & Assessment
South Lakeland District Council,http://opendatacommunities.org/id/district-council/south-lakeland,30/11/2016,Business Support Community Services,Internal Trading Accounts,,ARCO LIMITED,133804,09/11/2016,63182,30.4,0,Cleaning materials,Cleaning materials,Protective Clothing & Uniforms,141100,Clothing Protective
South Lakeland District Council,http://opendatacommunities.org/id/district-council/south-lakeland,30/11/2016,Business Support Community Services,Internal Trading Accounts,,ARCO LIMITED,133804,09/11/2016,63183,23.16,0,Cleaning materials,Cleaning materials,Protective Clothing & Uniforms,141100,Clothing Protective
South Lakeland District Council,http://opendatacommunities.org/id/district-council/south-lakeland,30/11/2016,Social Enterprise Admin,SLDC as Agent,,PAY BY PHONE (PAYPOINT),,09/11/2016,63184,284.28,0,Pay-by-phone charges from 1 April 2016,Pay-by-phone charges from 1 April 2016,General,351400,Street & Traffic Traffic Control
South Lakeland District Council,http://opendatacommunities.org/id/district-council/south-lakeland,30/11/2016,Revenues and Benefits,Central Services,http://opendatacommunities.org/def/concept/finance/sercop/objective/102,PITNEY BOWES LTD,182037,09/11/2016,63185,594.6,0,2016 - 2017  Stationery & office,2016 - 2017  Stationery & office,Stationery/Office Supplies,301200,Mail Services� Postage
South Lakeland District Council,http://opendatacommunities.org/id/district-council/south-lakeland,30/11/2016,ICT Group,Central Services,http://opendatacommunities.org/def/concept/finance/sercop/objective/102,DAISY COMMUNICATIONS LTD,4145329,16/11/2016,63186,706.41,0,Daisy Line Rental Charges,Daisy Line Rental Charges,Telephones-Rentals,271700,ICT Telecommunications Fixed
South Lakeland District Council,http://opendatacommunities.org/id/district-council/south-lakeland,30/11/2016,ICT Group,Central Services,http://opendatacommunities.org/def/concept/finance/sercop/objective/102,Insight Direct (Uk) Ltd,2579852,14/11/2016,63187,25.26,0,Insight Part Number: 0002708811,Insight Part Number: 0002708811,Computer-Supplies,271200,ICT Hardware
South Lakeland District Council,http://opendatacommunities.org/id/district-council/south-lakeland,30/11/2016,Cemeteries Office,Cultural Environmental Regulatory & Planning Services,http://opendatacommunities.org/def/concept/finance/sercop/objective/104,COOPER ENGRAVING,,09/11/2016,63188,30,0,"1 off brass seat plaque, inscribed","1 off brass seat plaque, inscribed",Grounds Special,102400,Building Signage
South Lakeland District Council,http://opendatacommunities.org/id/district-council/south-lakeland,30/11/2016,Development Implementation,Cultural Environmental Regulatory & Planning Services,http://opendatacommunities.org/def/concept/finance/sercop/objective/104,CUMBRIA CHAMBER OF COMMERCE,4211364,09/11/2016,63192,45000,0,Provision of Business Support Services,Provision of Business Support Services,Other Consultants,151000,Consultancy Business
South Lakeland District Council,http://opendatacommunities.org/id/district-council/south-lakeland,30/11/2016,Business Support Community Services,Housing Services,http://opendatacommunities.org/def/concept/finance/sercop/objective/108,My Dream Cleaners Ltd,9839482,09/11/2016,63193,727.5,0,Cleaning at Town View Fields Hostel,Cleaning at Town View Fields Hostel,Cleaning Supplies & Services,131320,Cleaning & Janitorial Cleaning Service
South Lakeland District Council,http://opendatacommunities.org/id/district-council/south-lakeland,30/11/2016,Business Support Community Services,Housing Services,http://opendatacommunities.org/def/concept/finance/sercop/objective/108,IMPACT HOUSING ASSOCIATION LTD,IP21411R,09/11/2016,63194,139.2,0,Shelter Training - Room booking 12/10/16,Shelter Training - Room booking 12/10/16,Training Costs,250000,Housing
South Lakeland District Council,http://opendatacommunities.org/id/district-council/south-lakeland,30/11/2016,Lake Wardens,Culture and Related Serv,http://opendatacommunities.org/def/concept/finance/sercop/objective/104,BILL MOORE LIFTING TACKLE LTD,1482196,09/11/2016,63195,620,0,To Fabricate and test on site the,To Fabricate and test on site the,Contract payments,181812,Environment Technical Equip Testing
South Lakeland District Council,http://opendatacommunities.org/id/district-council/south-lakeland,30/11/2016,Human Resources,Central Services,http://opendatacommunities.org/def/concept/finance/sercop/objective/102,NORTH WEST EMPLOYERS,,09/11/2016,63196,130,0,employment law update,employment law update,Training Costs,261500,HR Training & Conferences
South Lakeland District Council,http://opendatacommunities.org/id/district-council/south-lakeland,30/11/2016,Kendal Town Hall,Highways & Transport Services,http://opendatacommunities.org/def/concept/finance/sercop/objective/107,ADECCO UK LIMITED,593232,14/11/2016,63197,470.68,0,Agency cover for WMMSCP,Agency cover for WMMSCP,Contract & Agency staff,261400,HR Temporary & Agency Staff
South Lakeland District Council,http://opendatacommunities.org/id/district-council/south-lakeland,30/11/2016,Kendal Town Hall,Highways & Transport Services,http://opendatacommunities.org/def/concept/finance/sercop/objective/107,ADECCO UK LIMITED,593232,14/11/2016,63198,378.84,0,Agency cover for WMMSCP,Agency cover for WMMSCP,Contract & Agency staff,261400,HR Temporary & Agency Staff
South Lakeland District Council,http://opendatacommunities.org/id/district-council/south-lakeland,30/11/2016,Kendal Town Hall,Highways & Transport Services,http://opendatacommunities.org/def/concept/finance/sercop/objective/107,ADECCO UK LIMITED,593232,14/11/2016,63199,160.72,0,To provide parking marshals for,To provide parking marshals for,Contract & Agency staff,261400,HR Temporary & Agency Staff
South Lakeland District Council,http://opendatacommunities.org/id/district-council/south-lakeland,30/11/2016,Kendal Town Hall,Highways & Transport Services,http://opendatacommunities.org/def/concept/finance/sercop/objective/107,ADECCO UK LIMITED,593232,14/11/2016,63200,160.72,0,To provide parking marshals for,To provide parking marshals for,Contract & Agency staff,261400,HR Temporary & Agency Staff
South Lakeland District Council,http://opendatacommunities.org/id/district-council/south-lakeland,30/11/2016,Kendal Town Hall,Highways & Transport Services,http://opendatacommunities.org/def/concept/finance/sercop/objective/107,ADECCO UK LIMITED,593232,14/11/2016,63201,160.72,0,To provide parking marshals for,To provide parking marshals for,Contract & Agency staff,261400,HR Temporary & Agency Staff
South Lakeland District Council,http://opendatacommunities.org/id/district-council/south-lakeland,30/11/2016,Kendal Town Hall,Highways & Transport Services,http://opendatacommunities.org/def/concept/finance/sercop/objective/107,ADECCO UK LIMITED,593232,14/11/2016,63202,160.72,0,To provide parking marshals for,To provide parking marshals for,Contract & Agency staff,261400,HR Temporary & Agency Staff
South Lakeland District Council,http://opendatacommunities.org/id/district-council/south-lakeland,30/11/2016,Development Implementation,Central Services,http://opendatacommunities.org/def/concept/finance/sercop/objective/102,ADECCO UK LIMITED,593232,14/11/2016,63203,114.8,0,Cleaner for SLDC - ,Cleaner for SLDC - Karl Sota,Contract & Agency staff,261400,HR Temporary & Agency Staff
South Lakeland District Council,http://opendatacommunities.org/id/district-council/south-lakeland,30/11/2016,Kendal Town Hall,Highways & Transport Services,http://opendatacommunities.org/def/concept/finance/sercop/objective/107,ARCO LIMITED,133804,14/11/2016,63205,139.09,0,7 x LED Lenser torch,7 x LED Lenser torch,Equipment Furniture Materials,141100,Clothing Protective
South Lakeland District Council,http://opendatacommunities.org/id/district-council/south-lakeland,30/11/2016,Business Support Community Services,Cultural Environmental Regulatory & Planning Services,http://opendatacommunities.org/def/concept/finance/sercop/objective/104,MILNTHORPE KENNELS & CATTERY,8932302,14/11/2016,63206,2574.71,0,Stray dog kennelling fees 1 April 2016 -,Stray dog kennelling fees 1 April 2016 -,Kenneling Fees,181500,Environment Animal Services
South Lakeland District Council,http://opendatacommunities.org/id/district-council/south-lakeland,30/11/2016,Revenues and Benefits,Central Services,http://opendatacommunities.org/def/concept/finance/sercop/objective/102,BADENOCH & CLARK,1356186,09/11/2016,63207,386.72,0,Revs and Bens  (April & May 2016),Denise Calvert  (April & May 2016),Contract & Agency staff,261300,HR Recruitment & Assessment
South Lakeland District Council,http://opendatacommunities.org/id/district-council/south-lakeland,30/11/2016,Revenues and Benefits,Central Services,http://opendatacommunities.org/def/concept/finance/sercop/objective/102,BADENOCH & CLARK,1356186,09/11/2016,63208,386.72,0,Revs and Bens  (April & May 2016),Denise Calvert  (April & May 2016),Contract & Agency staff,261300,HR Recruitment & Assessment
South Lakeland District Council,http://opendatacommunities.org/id/district-council/south-lakeland,30/11/2016,Development Management,Cultural Environmental Regulatory & Planning Services,http://opendatacommunities.org/def/concept/finance/sercop/objective/104,CHRIS BOWKER LTD,1642561,16/11/2016,63209,405,0,Check of electrical installation to,Check of electrical installation to,Electrican Inspection,101100,Building Electrical
South Lakeland District Council,http://opendatacommunities.org/id/district-council/south-lakeland,30/11/2016,Social Enterprise Admin,Cultural Environmental Regulatory & Planning Services,http://opendatacommunities.org/def/concept/finance/sercop/objective/104,ALLSTAR BUSINESS SOLUTIONS LTD (NCR),2631112,01/11/2016,63210,154.2,0,Parks fuel,Parks fuel,Fuel,381600,Vehicle Mgt Leasing
South Lakeland District Council,http://opendatacommunities.org/id/district-council/south-lakeland,30/11/2016,Human Resources,Central Services,http://opendatacommunities.org/def/concept/finance/sercop/objective/102,SOUTH LAKES HOUSING,IP031419,09/11/2016,63211,180,0,Room Hire for IOSH course.,Room Hire for IOSH course.,Health and Safety,191700,Facilities Property Management
South Lakeland District Council,http://opendatacommunities.org/id/district-council/south-lakeland,30/11/2016,Kendal Town Hall,Culture and Related Serv,http://opendatacommunities.org/def/concept/finance/sercop/objective/104,JETTIES & MOORINGS,,09/11/2016,63212,1700,0,Fittting of mast hoist as per quote from,Fittting of mast hoist as per quote from,Contract payments,291400,Arts & Leisure Services Sport & Fitness
South Lakeland District Council,http://opendatacommunities.org/id/district-council/south-lakeland,30/11/2016,Legal Services,Central Services,http://opendatacommunities.org/def/concept/finance/sercop/objective/102,Legal Counsel Ltd,10147194,09/11/2016,63214,1650,0,Employee W. Mitchell,Employee W. Mitchell,Contract & Agency staff,281200,Legal Services General Support
South Lakeland District Council,http://opendatacommunities.org/id/district-council/south-lakeland,30/11/2016,Legal Services,Central Services,http://opendatacommunities.org/def/concept/finance/sercop/objective/102,Eventus Legal Recruitment,,09/11/2016,63215,268.13,0,Commission Fees for W.Mitchell from,Commission Fees for W.Mitchell from,Contract & Agency staff,261300,HR Recruitment & Assessment
South Lakeland District Council,http://opendatacommunities.org/id/district-council/south-lakeland,30/11/2016,Legal Services,Central Services,http://opendatacommunities.org/def/concept/finance/sercop/objective/102,WEIGHTMANS LLP,OC326117,09/11/2016,63216,132.2,0,Additional fees re:  ,Additional fees re:  L.F. Booth,Legal & Counsels Fees,281300,Legal Services Legal Opinion
South Lakeland District Council,http://opendatacommunities.org/id/district-council/south-lakeland,30/11/2016,Environment and Housing,Housing,http://opendatacommunities.org/def/concept/finance/sercop/objective/108,VINCENT HOLLERAN PLUMBING & HEATING LTD,,09/11/2016,63221,2000,0,"Acre Moss Lane, Kendal, LA9 5QE","24 Acre Moss Lane, Kendal, LA9 5QE",Grant Payments,101700,Building Heating & Air Conditioning
South Lakeland District Council,http://opendatacommunities.org/id/district-council/south-lakeland,30/11/2016,Environment and Housing,Housing,http://opendatacommunities.org/def/concept/finance/sercop/objective/108,VINCENT HOLLERAN PLUMBING & HEATING LTD,,09/11/2016,63222,2000,0,"Acre Moss Lane, Kendal, LA9 5QE","24 Acre Moss Lane, Kendal, LA9 5QE",Grant Payments,101700,Building Heating & Air Conditioning
South Lakeland District Council,http://opendatacommunities.org/id/district-council/south-lakeland,30/11/2016,Business Support Community Services,Housing Services,http://opendatacommunities.org/def/concept/finance/sercop/objective/108,Landlord,,09/11/2016,63223,520,0,"Coach House, 159","Top Flat, Union Coach House, 159",Homelessness Prevention,202000,Financial Services Rents
South Lakeland District Council,http://opendatacommunities.org/id/district-council/south-lakeland,30/11/2016,Business Support Community Services,Housing Services,http://opendatacommunities.org/def/concept/finance/sercop/objective/108,Landlord,,09/11/2016,63224,400,0,Monthly rent ,"Monthly rent for 2 Egremont House,",Homelessness Prevention,250000,Housing
South Lakeland District Council,http://opendatacommunities.org/id/district-council/south-lakeland,30/11/2016,Business Support Community Services,Housing Services,http://opendatacommunities.org/def/concept/finance/sercop/objective/108,Landlord,,09/11/2016,63225,500,0,Monthly rent ,Monthly rent payment for 19 Moore Field,Homelessness Prevention,202000,Financial Services Rents
South Lakeland District Council,http://opendatacommunities.org/id/district-council/south-lakeland,30/11/2016,Development Implementation,Cultural Environmental Regulatory & Planning Services,http://opendatacommunities.org/def/concept/finance/sercop/objective/104,CHERIE J FOX,,09/11/2016,63226,437.5,0,Marketing for Invest & Explore Websites,Marketing for Invest & Explore Websites,Contract & Agency staff,270000,Information Communications Technology
South Lakeland District Council,http://opendatacommunities.org/id/district-council/south-lakeland,30/11/2016,Legal Services,Central Services,http://opendatacommunities.org/def/concept/finance/sercop/objective/102,DAVITT JONES BOULD LTD,,09/11/2016,63227,49,0,Additional fee re:  Dev. at Birds Park,Additional fee re:  Dev. at Birds Park,Legal & Counsels Fees,280000,Legal Services
South Lakeland District Council,http://opendatacommunities.org/id/district-council/south-lakeland,30/11/2016,Business Support Community Services,Housing Services,http://opendatacommunities.org/def/concept/finance/sercop/objective/108,ULTRACARE PROPERTY MANAGEMENT LTD,5020554,09/11/2016,63228,395,0,"Repair work to Egremount house, Burton","Repair work to 2 Egremount house, Burton",Homelessness Prevention,191700,Facilities Property Management
South Lakeland District Council,http://opendatacommunities.org/id/district-council/south-lakeland,30/11/2016,Business Support Community Services,Housing Services,http://opendatacommunities.org/def/concept/finance/sercop/objective/108,ADW Plumbing & Heating Limited,8850672,09/11/2016,63229,55,0,"Call out to The Courtyard, Lowther","Call out to 4 The Courtyard, Lowther",Homelessness Prevention,102200,Building Plumbing
South Lakeland District Council,http://opendatacommunities.org/id/district-council/south-lakeland,30/11/2016,Social Enterprise Admin,Cultural Environmental Regulatory & Planning Services,http://opendatacommunities.org/def/concept/finance/sercop/objective/104,RTPI SUBSCRIPTIONS,,09/11/2016,63230,290,0,NAPE SUBSCRIPTION 2017,MARK BALDERSON NAPE SUBSCRIPTION 2017,Professional Fees,391100,Construction Buildings
South Lakeland District Council,http://opendatacommunities.org/id/district-council/south-lakeland,30/11/2016,Social Enterprise Admin,Cultural Environmental Regulatory & Planning Services,http://opendatacommunities.org/def/concept/finance/sercop/objective/104,A G & P Jackson,,09/11/2016,63231,160,0,Agricultural Viabilty Appraisals,Agricultural Viabilty Appraisals,Other Consultants,150000,Consultancy
South Lakeland District Council,http://opendatacommunities.org/id/district-council/south-lakeland,30/11/2016,Social Enterprise Admin,Cultural Environmental Regulatory & Planning Services,http://opendatacommunities.org/def/concept/finance/sercop/objective/104,NEWSQUEST MEDIA GROUP LTD,3102566,09/11/2016,63232,167,0,PUBLIC NOTICES FOR PLANNING 1 APRIL - 31,PUBLIC NOTICES FOR PLANNING 1 APRIL - 31,Advertising,191000,Facilities Advertising
South Lakeland District Council,http://opendatacommunities.org/id/district-council/south-lakeland,30/11/2016,Social Enterprise Admin,Cultural Environmental Regulatory & Planning Services,http://opendatacommunities.org/def/concept/finance/sercop/objective/104,LAMBERT SMITH HAMPTON GROUP,2521225,09/11/2016,63233,500,0,APPRAISALS FOR PLANNING DEPARTMENT,APPRAISALS FOR PLANNING DEPARTMENT,Other Consultants,999999,Unclassifiable
South Lakeland District Council,http://opendatacommunities.org/id/district-council/south-lakeland,30/11/2016,Social Enterprise Admin,Cultural Environmental Regulatory & Planning Services,http://opendatacommunities.org/def/concept/finance/sercop/objective/104,NPS NORTH WEST LTD,6614601,09/11/2016,63234,696,0,Viability Appraisal - Land to South of,Viability Appraisal - Land to South of,Other Consultants,391110,Construction Buildings Construction
South Lakeland District Council,http://opendatacommunities.org/id/district-council/south-lakeland,30/11/2016,Development Implementation,Central Services,http://opendatacommunities.org/def/concept/finance/sercop/objective/102,NPS NORTH WEST LTD,6614601,09/11/2016,63236,38333.37,0,Professional Property Services -,Professional Property Services -,PSC - Property Works,391110,Construction Buildings Construction
South Lakeland District Council,http://opendatacommunities.org/id/district-council/south-lakeland,30/11/2016,Development Implementation,Cultural Environmental Regulatory & Planning Services,http://opendatacommunities.org/def/concept/finance/sercop/objective/104,NPS NORTH WEST LTD,6614601,09/11/2016,63237,374.84,0,"Castle Dairy - Further Rescue, Survey &","Castle Dairy - Further Rescue, Survey &",Unforseen Mtce Infrastructure,391110,Construction Buildings Construction
South Lakeland District Council,http://opendatacommunities.org/id/district-council/south-lakeland,30/11/2016,Development Implementation,Central Services,http://opendatacommunities.org/def/concept/finance/sercop/objective/102,NPS NORTH WEST LTD,6614601,09/11/2016,63238,290,0,CAB/Age Concern Relocation,CAB/Age Concern Relocation,PSC - Property Works,391110,Construction Buildings Construction
South Lakeland District Council,http://opendatacommunities.org/id/district-council/south-lakeland,30/11/2016,Human Resources,Central Services,http://opendatacommunities.org/def/concept/finance/sercop/objective/102,Omniplex Ltd,,14/11/2016,63239,412.89,0,Luke Farmer's Expenses,Luke Farmer's Expenses,Room Hire,261500,HR Training & Conferences
South Lakeland District Council,http://opendatacommunities.org/id/district-council/south-lakeland,30/11/2016,Business Support Community Services,Housing Services,http://opendatacommunities.org/def/concept/finance/sercop/objective/108,Vigilant Security Services UK Ltd,5914271,16/11/2016,63241,3240,0,Payment for security guard at TVF,Payment for security guard at TVF,Security Services,192213,Facilities Security Manned Guarding
South Lakeland District Council,http://opendatacommunities.org/id/district-council/south-lakeland,30/11/2016,Business Support Community Services,Cultural Environmental Regulatory & Planning Services,http://opendatacommunities.org/def/concept/finance/sercop/objective/104,INTELLIGENT DATA SYSTEMS (UK) LTD,5148878,14/11/2016,63242,28.75,0,IDS checks for Taxi Drivers,IDS checks for Taxi Drivers,Driving Licence Verify Fees,271510,ICT Application Service Provision
South Lakeland District Council,http://opendatacommunities.org/id/district-council/south-lakeland,30/11/2016,Environment and Housing,Housing,http://opendatacommunities.org/def/concept/finance/sercop/objective/108,ENVIRONMENT & HOUSING GRANTS,,09/11/2016,63247,6150,0,Disabled Adaptations at 16 Greenbanks,Disabled Adaptations at 16 Greenbanks,Grant Payments,201700,Financial Services Grants
South Lakeland District Council,http://opendatacommunities.org/id/district-council/south-lakeland,30/11/2016,Kendal Town Hall,Cultural Environmental Regulatory & Planning Services,http://opendatacommunities.org/def/concept/finance/sercop/objective/104,SOUNDSMITH LIMITED,5366630,14/11/2016,63248,100,0,Investigate fault to the DCC microphones,Investigate fault to the DCC microphones,Equipment Furniture Materials,171111,Education Audio Visual
South Lakeland District Council,http://opendatacommunities.org/id/district-council/south-lakeland,30/11/2016,Kendal Town Hall,Cultural Environmental Regulatory & Planning Services,http://opendatacommunities.org/def/concept/finance/sercop/objective/104,W MCCLURE LTD,685360,14/11/2016,63249,22.95,0,1 catering pack of typhoo tea bags for,1 catering pack of typhoo tea bags for,Catering Supplies,111200,Catering Food & Beverages
South Lakeland District Council,http://opendatacommunities.org/id/district-council/south-lakeland,30/11/2016,Social Enterprise Admin,Highways & Transport Services,http://opendatacommunities.org/def/concept/finance/sercop/objective/107,CONTINENTAL LANDSCAPES LTD,2108452,14/11/2016,63250,12.15,0,Parks Routine maintenance,Parks Routine maintenance,Grounds,391310,Construction Open Spaces Construction
South Lakeland District Council,http://opendatacommunities.org/id/district-council/south-lakeland,30/11/2016,Social Enterprise Admin,Highways & Transport Services,http://opendatacommunities.org/def/concept/finance/sercop/objective/107,CONTINENTAL LANDSCAPES LTD,2108452,14/11/2016,63250,12.15,0,Parks Routine maintenance,Parks Routine maintenance,Grounds,391310,Construction Open Spaces Construction
South Lakeland District Council,http://opendatacommunities.org/id/district-council/south-lakeland,30/11/2016,Social Enterprise Admin,Highways & Transport Services,http://opendatacommunities.org/def/concept/finance/sercop/objective/107,CONTINENTAL LANDSCAPES LTD,2108452,14/11/2016,63250,1.22,0,Parks Routine maintenance,Parks Routine maintenance,Grounds,391310,Construction Open Spaces Construction
South Lakeland District Council,http://opendatacommunities.org/id/district-council/south-lakeland,30/11/2016,Social Enterprise Admin,Highways & Transport Services,http://opendatacommunities.org/def/concept/finance/sercop/objective/107,CONTINENTAL LANDSCAPES LTD,2108452,14/11/2016,63250,12.15,0,Parks Routine maintenance,Parks Routine maintenance,Grounds,391310,Construction Open Spaces Construction
South Lakeland District Council,http://opendatacommunities.org/id/district-council/south-lakeland,30/11/2016,Social Enterprise Admin,Highways & Transport Services,http://opendatacommunities.org/def/concept/finance/sercop/objective/107,CONTINENTAL LANDSCAPES LTD,2108452,14/11/2016,63250,12.15,0,Parks Routine maintenance,Parks Routine maintenance,Grounds,391310,Construction Open Spaces Construction
South Lakeland District Council,http://opendatacommunities.org/id/district-council/south-lakeland,30/11/2016,Social Enterprise Admin,Highways & Transport Services,http://opendatacommunities.org/def/concept/finance/sercop/objective/107,CONTINENTAL LANDSCAPES LTD,2108452,14/11/2016,63250,12.15,0,Parks Routine maintenance,Parks Routine maintenance,Grounds,391310,Construction Open Spaces Construction
South Lakeland District Council,http://opendatacommunities.org/id/district-council/south-lakeland,30/11/2016,Social Enterprise Admin,Highways & Transport Services,http://opendatacommunities.org/def/concept/finance/sercop/objective/107,CONTINENTAL LANDSCAPES LTD,2108452,14/11/2016,63250,36.46,0,Parks Routine maintenance,Parks Routine maintenance,Grounds,391310,Construction Open Spaces Construction
South Lakeland District Council,http://opendatacommunities.org/id/district-council/south-lakeland,30/11/2016,Social Enterprise Admin,Highways & Transport Services,http://opendatacommunities.org/def/concept/finance/sercop/objective/107,CONTINENTAL LANDSCAPES LTD,2108452,14/11/2016,63250,243.05,0,Parks Routine maintenance,Parks Routine maintenance,Grounds,391310,Construction Open Spaces Construction
South Lakeland District Council,http://opendatacommunities.org/id/district-council/south-lakeland,30/11/2016,Social Enterprise Admin,Highways & Transport Services,http://opendatacommunities.org/def/concept/finance/sercop/objective/107,CONTINENTAL LANDSCAPES LTD,2108452,14/11/2016,63250,151.91,0,Parks Routine maintenance,Parks Routine maintenance,Grounds,391310,Construction Open Spaces Construction
South Lakeland District Council,http://opendatacommunities.org/id/district-council/south-lakeland,30/11/2016,Social Enterprise Admin,Highways & Transport Services,http://opendatacommunities.org/def/concept/finance/sercop/objective/107,CONTINENTAL LANDSCAPES LTD,2108452,14/11/2016,63250,6.08,0,Parks Routine maintenance,Parks Routine maintenance,Grounds,391310,Construction Open Spaces Construction
South Lakeland District Council,http://opendatacommunities.org/id/district-council/south-lakeland,30/11/2016,Social Enterprise Admin,Highways & Transport Services,http://opendatacommunities.org/def/concept/finance/sercop/objective/107,CONTINENTAL LANDSCAPES LTD,2108452,14/11/2016,63250,60.76,0,Parks Routine maintenance,Parks Routine maintenance,Grounds,391310,Construction Open Spaces Construction
South Lakeland District Council,http://opendatacommunities.org/id/district-council/south-lakeland,30/11/2016,Social Enterprise Admin,Highways & Transport Services,http://opendatacommunities.org/def/concept/finance/sercop/objective/107,CONTINENTAL LANDSCAPES LTD,2108452,14/11/2016,63250,60.76,0,Parks Routine maintenance,Parks Routine maintenance,Grounds,391310,Construction Open Spaces Construction
South Lakeland District Council,http://opendatacommunities.org/id/district-council/south-lakeland,30/11/2016,Social Enterprise Admin,Highways & Transport Services,http://opendatacommunities.org/def/concept/finance/sercop/objective/107,CONTINENTAL LANDSCAPES LTD,2108452,14/11/2016,63250,121.53,0,Parks Routine maintenance,Parks Routine maintenance,Grounds,391310,Construction Open Spaces Construction
South Lakeland District Council,http://opendatacommunities.org/id/district-council/south-lakeland,30/11/2016,Social Enterprise Admin,Highways & Transport Services,http://opendatacommunities.org/def/concept/finance/sercop/objective/107,CONTINENTAL LANDSCAPES LTD,2108452,14/11/2016,63250,48.61,0,Parks Routine maintenance,Parks Routine maintenance,Grounds,391310,Construction Open Spaces Construction
South Lakeland District Council,http://opendatacommunities.org/id/district-council/south-lakeland,30/11/2016,Social Enterprise Admin,Highways & Transport Services,http://opendatacommunities.org/def/concept/finance/sercop/objective/107,CONTINENTAL LANDSCAPES LTD,2108452,14/11/2016,63250,6.08,0,Parks Routine maintenance,Parks Routine maintenance,Grounds,391310,Construction Open Spaces Construction
South Lakeland District Council,http://opendatacommunities.org/id/district-council/south-lakeland,30/11/2016,Social Enterprise Admin,Highways & Transport Services,http://opendatacommunities.org/def/concept/finance/sercop/objective/107,CONTINENTAL LANDSCAPES LTD,2108452,14/11/2016,63250,6.08,0,Parks Routine maintenance,Parks Routine maintenance,Grounds,391310,Construction Open Spaces Construction
South Lakeland District Council,http://opendatacommunities.org/id/district-council/south-lakeland,30/11/2016,Social Enterprise Admin,Highways & Transport Services,http://opendatacommunities.org/def/concept/finance/sercop/objective/107,CONTINENTAL LANDSCAPES LTD,2108452,14/11/2016,63250,3.04,0,Parks Routine maintenance,Parks Routine maintenance,Grounds,391310,Construction Open Spaces Construction
South Lakeland District Council,http://opendatacommunities.org/id/district-council/south-lakeland,30/11/2016,Social Enterprise Admin,Highways & Transport Services,http://opendatacommunities.org/def/concept/finance/sercop/objective/107,CONTINENTAL LANDSCAPES LTD,2108452,14/11/2016,63250,54.69,0,Parks Routine maintenance,Parks Routine maintenance,Grounds,391310,Construction Open Spaces Construction
South Lakeland District Council,http://opendatacommunities.org/id/district-council/south-lakeland,30/11/2016,Social Enterprise Admin,Highways & Transport Services,http://opendatacommunities.org/def/concept/finance/sercop/objective/107,CONTINENTAL LANDSCAPES LTD,2108452,14/11/2016,63250,66.84,0,Parks Routine maintenance,Parks Routine maintenance,Grounds,391310,Construction Open Spaces Construction
South Lakeland District Council,http://opendatacommunities.org/id/district-council/south-lakeland,30/11/2016,Social Enterprise Admin,Highways & Transport Services,http://opendatacommunities.org/def/concept/finance/sercop/objective/107,CONTINENTAL LANDSCAPES LTD,2108452,14/11/2016,63250,127.6,0,Parks Routine maintenance,Parks Routine maintenance,Grounds,391310,Construction Open Spaces Construction
South Lakeland District Council,http://opendatacommunities.org/id/district-council/south-lakeland,30/11/2016,Social Enterprise Admin,Highways & Transport Services,http://opendatacommunities.org/def/concept/finance/sercop/objective/107,CONTINENTAL LANDSCAPES LTD,2108452,14/11/2016,63250,121.53,0,Parks Routine maintenance,Parks Routine maintenance,Grounds,391310,Construction Open Spaces Construction
South Lakeland District Council,http://opendatacommunities.org/id/district-council/south-lakeland,30/11/2016,Social Enterprise Admin,Highways & Transport Services,http://opendatacommunities.org/def/concept/finance/sercop/objective/107,CONTINENTAL LANDSCAPES LTD,2108452,14/11/2016,63250,12.15,0,Parks Routine maintenance,Parks Routine maintenance,Grounds,391310,Construction Open Spaces Construction
South Lakeland District Council,http://opendatacommunities.org/id/district-council/south-lakeland,30/11/2016,Social Enterprise Admin,Highways & Transport Services,http://opendatacommunities.org/def/concept/finance/sercop/objective/107,CONTINENTAL LANDSCAPES LTD,2108452,14/11/2016,63250,12.15,0,Parks Routine maintenance,Parks Routine maintenance,Grounds,391310,Construction Open Spaces Construction
South Lakeland District Council,http://opendatacommunities.org/id/district-council/south-lakeland,30/11/2016,Social Enterprise Admin,Highways & Transport Services,http://opendatacommunities.org/def/concept/finance/sercop/objective/107,CONTINENTAL LANDSCAPES LTD,2108452,14/11/2016,63250,36.46,0,Parks Routine maintenance,Parks Routine maintenance,Grounds,391310,Construction Open Spaces Construction
South Lakeland District Council,http://opendatacommunities.org/id/district-council/south-lakeland,30/11/2016,Social Enterprise Admin,Highways & Transport Services,http://opendatacommunities.org/def/concept/finance/sercop/objective/107,CONTINENTAL LANDSCAPES LTD,2108452,14/11/2016,63250,60.76,0,Parks Routine maintenance,Parks Routine maintenance,Grounds,391310,Construction Open Spaces Construction
South Lakeland District Council,http://opendatacommunities.org/id/district-council/south-lakeland,30/11/2016,Social Enterprise Admin,Highways & Transport Services,http://opendatacommunities.org/def/concept/finance/sercop/objective/107,CONTINENTAL LANDSCAPES LTD,2108452,14/11/2016,63250,60.76,0,Parks Routine maintenance,Parks Routine maintenance,Grounds,391310,Construction Open Spaces Construction
South Lakeland District Council,http://opendatacommunities.org/id/district-council/south-lakeland,30/11/2016,Social Enterprise Admin,Highways & Transport Services,http://opendatacommunities.org/def/concept/finance/sercop/objective/107,CONTINENTAL LANDSCAPES LTD,2108452,14/11/2016,63250,108.1,0,Parks Routine maintenance,Parks Routine maintenance,Grounds,391310,Construction Open Spaces Construction
South Lakeland District Council,http://opendatacommunities.org/id/district-council/south-lakeland,30/11/2016,Social Enterprise Admin,Highways & Transport Services,http://opendatacommunities.org/def/concept/finance/sercop/objective/107,CONTINENTAL LANDSCAPES LTD,2108452,14/11/2016,63250,121.53,0,Parks Routine maintenance,Parks Routine maintenance,Grounds,391310,Construction Open Spaces Construction
South Lakeland District Council,http://opendatacommunities.org/id/district-council/south-lakeland,30/11/2016,Social Enterprise Admin,Highways & Transport Services,http://opendatacommunities.org/def/concept/finance/sercop/objective/107,CONTINENTAL LANDSCAPES LTD,2108452,14/11/2016,63250,224.83,0,Parks Routine maintenance,Parks Routine maintenance,Grounds,391310,Construction Open Spaces Construction
South Lakeland District Council,http://opendatacommunities.org/id/district-council/south-lakeland,30/11/2016,Social Enterprise Admin,Highways & Transport Services,http://opendatacommunities.org/def/concept/finance/sercop/objective/107,CONTINENTAL LANDSCAPES LTD,2108452,14/11/2016,63250,121.53,0,Parks Routine maintenance,Parks Routine maintenance,Grounds,391310,Construction Open Spaces Construction
South Lakeland District Council,http://opendatacommunities.org/id/district-council/south-lakeland,30/11/2016,Social Enterprise Admin,Highways & Transport Services,http://opendatacommunities.org/def/concept/finance/sercop/objective/107,CONTINENTAL LANDSCAPES LTD,2108452,14/11/2016,63250,182.29,0,Parks Routine maintenance,Parks Routine maintenance,Grounds,391310,Construction Open Spaces Construction
South Lakeland District Council,http://opendatacommunities.org/id/district-council/south-lakeland,30/11/2016,Social Enterprise Admin,Cultural Environmental Regulatory & Planning Services,http://opendatacommunities.org/def/concept/finance/sercop/objective/104,CONTINENTAL LANDSCAPES LTD,2108452,14/11/2016,63250,9722.17,0,Parks Routine maintenance,Parks Routine maintenance,Grounds,391310,Construction Open Spaces Construction
South Lakeland District Council,http://opendatacommunities.org/id/district-council/south-lakeland,30/11/2016,Social Enterprise Admin,Cultural Environmental Regulatory & Planning Services,http://opendatacommunities.org/def/concept/finance/sercop/objective/104,CONTINENTAL LANDSCAPES LTD,2108452,14/11/2016,63250,24.31,0,Parks Routine maintenance,Parks Routine maintenance,Grounds,391310,Construction Open Spaces Construction
South Lakeland District Council,http://opendatacommunities.org/id/district-council/south-lakeland,30/11/2016,Social Enterprise Admin,Cultural Environmental Regulatory & Planning Services,http://opendatacommunities.org/def/concept/finance/sercop/objective/104,CONTINENTAL LANDSCAPES LTD,2108452,14/11/2016,63250,46119.57,0,Parks Routine maintenance,Parks Routine maintenance,Grounds,391310,Construction Open Spaces Construction
South Lakeland District Council,http://opendatacommunities.org/id/district-council/south-lakeland,30/11/2016,Social Enterprise Admin,Cultural Environmental Regulatory & Planning Services,http://opendatacommunities.org/def/concept/finance/sercop/objective/104,CONTINENTAL LANDSCAPES LTD,2108452,14/11/2016,63250,364.58,0,Parks Routine maintenance,Parks Routine maintenance,Grounds CCC Grass Verges,391310,Construction Open Spaces Construction
South Lakeland District Council,http://opendatacommunities.org/id/district-council/south-lakeland,30/11/2016,Social Enterprise Admin,Cultural Environmental Regulatory & Planning Services,http://opendatacommunities.org/def/concept/finance/sercop/objective/104,CONTINENTAL LANDSCAPES LTD,2108452,14/11/2016,63250,2309.02,0,Parks Routine maintenance,Parks Routine maintenance,Grounds,391310,Construction Open Spaces Construction
South Lakeland District Council,http://opendatacommunities.org/id/district-council/south-lakeland,30/11/2016,Social Enterprise Admin,External Trading Accounts,,CONTINENTAL LANDSCAPES LTD,2108452,14/11/2016,63250,106.34,0,Parks Routine maintenance,Parks Routine maintenance,Grounds,391310,Construction Open Spaces Construction
South Lakeland District Council,http://opendatacommunities.org/id/district-council/south-lakeland,30/11/2016,ICT Group,Central Services,http://opendatacommunities.org/def/concept/finance/sercop/objective/102,BRITISH TELECOMMUNICATIONS PLC (DD),,01/11/2016,63251,60.53,0,Town View Fields Broadband,Town View Fields Broadband,Telephones-Calls,279999,ICT Not Elsewhere Classified
South Lakeland District Council,http://opendatacommunities.org/id/district-council/south-lakeland,30/11/2016,Business Support Community Services,Housing Services,http://opendatacommunities.org/def/concept/finance/sercop/objective/108,GATES TRAVEL SERVICE,,14/11/2016,63253,156,0,Train ticket from Kendal to Totnes Devon,Train ticket from Kendal to Totnes Devon,Homelessness Prevention,261600,HR Travel & Subsistence
South Lakeland District Council,http://opendatacommunities.org/id/district-council/south-lakeland,30/11/2016,Legal Services,Central Services,http://opendatacommunities.org/def/concept/finance/sercop/objective/102,GATES TRAVEL SERVICE,,21/11/2016,63254,22.9,0,Rail fare to attend,Rail fare for N. Hartley to attend,Public Transport,261600,HR Travel & Subsistence
South Lakeland District Council,http://opendatacommunities.org/id/district-council/south-lakeland,30/11/2016,Social Enterprise Admin,Highways & Transport Services,http://opendatacommunities.org/def/concept/finance/sercop/objective/107,GATES TRAVEL SERVICE,,14/11/2016,63255,101.7,0,Cost of rail journey from Oxenholme to,Cost of rail journey from Oxenholme to,Public Transport,261600,HR Travel & Subsistence
South Lakeland District Council,http://opendatacommunities.org/id/district-council/south-lakeland,30/11/2016,Development Implementation,Cultural Environmental Regulatory & Planning Services,http://opendatacommunities.org/def/concept/finance/sercop/objective/104,PS BUSINESS MATTERS,8147185,09/11/2016,63256,1652,0,Kendal Futures Programme Support,Kendal Futures Programme Support,Economic Development Fund,151900,Consultancy Management
South Lakeland District Council,http://opendatacommunities.org/id/district-council/south-lakeland,30/11/2016,Development Implementation,Cultural Environmental Regulatory & Planning Services,http://opendatacommunities.org/def/concept/finance/sercop/objective/104,PS BUSINESS MATTERS,8147185,09/11/2016,63256,348,0,Kendal Futures Programme Support,Kendal Futures Programme Support,Other Consultants,151900,Consultancy Management
South Lakeland District Council,http://opendatacommunities.org/id/district-council/south-lakeland,30/11/2016,Kendal Town Hall,Cultural Environmental Regulatory & Planning Services,http://opendatacommunities.org/def/concept/finance/sercop/objective/104,THE LAUNDRY SHOP LTD,5421366,14/11/2016,63257,27.73,0,"Washing, drying and ironing table cloths","Washing, drying and ironing table cloths",Cleaning Supplies & Services,131311,Cleaning & Janitorial Laundry Service
South Lakeland District Council,http://opendatacommunities.org/id/district-council/south-lakeland,30/11/2016,Development Implementation,Central Services,http://opendatacommunities.org/def/concept/finance/sercop/objective/102,ADECCO UK LIMITED,593232,16/11/2016,63258,114.8,0,Cleaner for SLDC - ,Cleaner for SLDC - Karl Sota,Contract & Agency staff,261400,HR Temporary & Agency Staff
South Lakeland District Council,http://opendatacommunities.org/id/district-council/south-lakeland,30/11/2016,Development Implementation,Cultural Environmental Regulatory & Planning Services,http://opendatacommunities.org/def/concept/finance/sercop/objective/104,ADECCO UK LIMITED,593232,14/11/2016,63259,393.6,0,SLDC Project Officer - Cherie Fox,SLDC Project Officer - Cherie Fox,Contract & Agency staff,261400,HR Temporary & Agency Staff
South Lakeland District Council,http://opendatacommunities.org/id/district-council/south-lakeland,30/11/2016,Development Implementation,Cultural Environmental Regulatory & Planning Services,http://opendatacommunities.org/def/concept/finance/sercop/objective/104,ADECCO UK LIMITED,593232,14/11/2016,63260,299,0,Administrator - (24hrs,Administrator - Renate Parker (24hrs,Contract & Agency staff,261400,HR Temporary & Agency Staff
South Lakeland District Council,http://opendatacommunities.org/id/district-council/south-lakeland,30/11/2016,Kendal Town Hall,Highways & Transport Services,http://opendatacommunities.org/def/concept/finance/sercop/objective/107,ADECCO UK LIMITED,593232,30/11/2016,63261,381.81,0,Agency staff to cover Parking Assistant,Agency staff to cover Parking Assistant,Contract & Agency staff,261400,HR Temporary & Agency Staff
South Lakeland District Council,http://opendatacommunities.org/id/district-council/south-lakeland,30/11/2016,Kendal Town Hall,External Trading Accounts,,HYGIENE CLEANING SUPPLIES LTD,4753934,14/11/2016,63262,91.03,0,PAPER HAND TOWELS - JANGRO AE115,PAPER HAND TOWELS - JANGRO AE115,Cleaning Supplies & Services,131011,Cleaning & Janitorial Cleaning Materials
South Lakeland District Council,http://opendatacommunities.org/id/district-council/south-lakeland,30/11/2016,Kendal Town Hall,Cultural Environmental Regulatory & Planning Services,http://opendatacommunities.org/def/concept/finance/sercop/objective/104,Westmorland Laundry Services,,14/11/2016,63263,74.82,0,Laundering of table linen July 2016,Laundering of table linen July 2016,Cleaning Supplies & Services,161000,Domestic Goods Commercial
South Lakeland District Council,http://opendatacommunities.org/id/district-council/south-lakeland,30/11/2016,Development Implementation,Central Services,http://opendatacommunities.org/def/concept/finance/sercop/objective/102,LAMBERT SMITH HAMPTON GROUP,2521225,14/11/2016,63267,60140.17,0,Property Services Contract - Monthly,Property Services Contract - Monthly,PSC - Property Works,999999,Unclassifiable
South Lakeland District Council,http://opendatacommunities.org/id/district-council/south-lakeland,30/11/2016,Social Enterprise Admin,Cultural Environmental Regulatory & Planning Services,http://opendatacommunities.org/def/concept/finance/sercop/objective/104,LDA Cleaning Services Ltd,8917986,14/11/2016,63269,175,0,For  the continuation of cleaning,For  the continuation of cleaning,Other Consultants,131310,Cleaning & Janitorial Cleaning Service
South Lakeland District Council,http://opendatacommunities.org/id/district-council/south-lakeland,30/11/2016,Electoral Services,Central Services,http://opendatacommunities.org/def/concept/finance/sercop/objective/102,SCI PRINT LTD,,14/11/2016,63270,586.49,0,Costs relating to Annual Canvass,Costs relating to Annual Canvass,Annual Canvass,191600,Facilities Printing
South Lakeland District Council,http://opendatacommunities.org/id/district-council/south-lakeland,30/11/2016,Business Support Community Services,Cultural Environmental Regulatory & Planning Services,http://opendatacommunities.org/def/concept/finance/sercop/objective/104,UNITED UTILITIES WATER PLC,2366678,23/11/2016,63271,1970.24,0,Private Water Analysis - September 2016,Private Water Analysis - September 2016,Sampling & Inspection fees,371300,Utilities Water
South Lakeland District Council,http://opendatacommunities.org/id/district-council/south-lakeland,30/11/2016,Revenues and Benefits,Central Services,http://opendatacommunities.org/def/concept/finance/sercop/objective/102,CIVICA UK LTD,1628868,14/11/2016,63272,1834.2,0,C Tax - Local Discretionary Scheme -,C Tax - Local Discretionary Scheme -,Software Maintenance,271600,ICT Software Customised & Bespoke
South Lakeland District Council,http://opendatacommunities.org/id/district-council/south-lakeland,30/11/2016,Social Enterprise Admin,Cultural Environmental Regulatory & Planning Services,http://opendatacommunities.org/def/concept/finance/sercop/objective/104,CAPITA SYMONDS LTD,3173410,14/11/2016,63273,2551.92,0,ARBORICULTURE SERVICES,ARBORICULTURE SERVICES,Arboricultural Consultants,390000,Construction
South Lakeland District Council,http://opendatacommunities.org/id/district-council/south-lakeland,30/11/2016,Social Enterprise Admin,Cultural Environmental Regulatory & Planning Services,http://opendatacommunities.org/def/concept/finance/sercop/objective/104,CAPITA SYMONDS LTD,3173410,14/11/2016,63273,1701.28,0,ARBORICULTURE SERVICES,ARBORICULTURE SERVICES,Hired Services,390000,Construction
South Lakeland District Council,http://opendatacommunities.org/id/district-council/south-lakeland,30/11/2016,Cemeteries Office,Cultural Environmental Regulatory & Planning Services,http://opendatacommunities.org/def/concept/finance/sercop/objective/104,CUMBRIA WASTE RECYCLING LTD,3162439,14/11/2016,63276,103,0,SLDC Cemetery waste bin emptying from,SLDC Cemetery waste bin emptying from,Skip and Bin Hire and Disposal,182012,Environment Waste Management Recycling
South Lakeland District Council,http://opendatacommunities.org/id/district-council/south-lakeland,30/11/2016,Cemeteries Office,Cultural Environmental Regulatory & Planning Services,http://opendatacommunities.org/def/concept/finance/sercop/objective/104,CUMBRIA WASTE RECYCLING LTD,3162439,14/11/2016,63277,49.52,0,SLDC Cemetery waste bin emptying from,SLDC Cemetery waste bin emptying from,Skip and Bin Hire and Disposal,182012,Environment Waste Management Recycling
South Lakeland District Council,http://opendatacommunities.org/id/district-council/south-lakeland,30/11/2016,Cemeteries Office,Cultural Environmental Regulatory & Planning Services,http://opendatacommunities.org/def/concept/finance/sercop/objective/104,CUMBRIA WASTE RECYCLING LTD,3162439,14/11/2016,63278,59.12,0,SLDC Cemetery waste bin emptying from,SLDC Cemetery waste bin emptying from,Skip and Bin Hire and Disposal,182012,Environment Waste Management Recycling
South Lakeland District Council,http://opendatacommunities.org/id/district-council/south-lakeland,30/11/2016,Cemeteries Office,Cultural Environmental Regulatory & Planning Services,http://opendatacommunities.org/def/concept/finance/sercop/objective/104,CUMBRIA WASTE RECYCLING LTD,3162439,14/11/2016,63279,63.6,0,SLDC Cemetery waste bin emptying from,SLDC Cemetery waste bin emptying from,Skip and Bin Hire and Disposal,182012,Environment Waste Management Recycling
South Lakeland District Council,http://opendatacommunities.org/id/district-council/south-lakeland,30/11/2016,Social Enterprise Admin,Central Services,http://opendatacommunities.org/def/concept/finance/sercop/objective/102,CUMBRIA WASTE RECYCLING LTD,3162439,14/11/2016,63280,31.8,0,Langstone House 360 ltr wheelie bin,Langstone House 360 ltr wheelie bin,Skip and Bin Hire and Disposal,182012,Environment Waste Management Recycling
South Lakeland District Council,http://opendatacommunities.org/id/district-council/south-lakeland,30/11/2016,Lake Wardens,Cultural Environmental Regulatory & Planning Services,http://opendatacommunities.org/def/concept/finance/sercop/objective/104,CUMBRIA WASTE RECYCLING LTD,3162439,14/11/2016,63281,254,0,Rental & Emptying of Refuse Wheelie,Rental & Emptying of Refuse Wheelie,Skip and Bin Hire and Disposal,182012,Environment Waste Management Recycling
South Lakeland District Council,http://opendatacommunities.org/id/district-council/south-lakeland,30/11/2016,Cemeteries Office,Cultural Environmental Regulatory & Planning Services,http://opendatacommunities.org/def/concept/finance/sercop/objective/104,CUMBRIA WASTE RECYCLING LTD,3162439,14/11/2016,63282,83.04,0,SLDC Cemetery waste bin emptying from,SLDC Cemetery waste bin emptying from,Skip and Bin Hire and Disposal,182012,Environment Waste Management Recycling
South Lakeland District Council,http://opendatacommunities.org/id/district-council/south-lakeland,30/11/2016,Social Enterprise Admin,Central Services,http://opendatacommunities.org/def/concept/finance/sercop/objective/102,CUMBRIA WASTE RECYCLING LTD,3162439,21/11/2016,63283,220.32,0,SLH Wheelie bin and skip emptying,SLH Wheelie bin and skip emptying,Skip and Bin Hire and Disposal,182012,Environment Waste Management Recycling
South Lakeland District Council,http://opendatacommunities.org/id/district-council/south-lakeland,30/11/2016,Kendal Town Hall,Cultural Environmental Regulatory & Planning Services,http://opendatacommunities.org/def/concept/finance/sercop/objective/104,CUMBRIA WASTE RECYCLING LTD,3162439,21/11/2016,63284,175.9,0,Weekly collection of bins for KTH,Weekly collection of bins for KTH,Skip and Bin Hire and Disposal,182012,Environment Waste Management Recycling
South Lakeland District Council,http://opendatacommunities.org/id/district-council/south-lakeland,30/11/2016,Cemeteries Office,Cultural Environmental Regulatory & Planning Services,http://opendatacommunities.org/def/concept/finance/sercop/objective/104,CUMBRIA WASTE RECYCLING LTD,3162439,14/11/2016,63285,27.6,0,SLDC Cemetery waste bin emptying from,SLDC Cemetery waste bin emptying from,Skip and Bin Hire and Disposal,182012,Environment Waste Management Recycling
South Lakeland District Council,http://opendatacommunities.org/id/district-council/south-lakeland,30/11/2016,Social Enterprise Admin,Highways & Transport Services,http://opendatacommunities.org/def/concept/finance/sercop/objective/107,CUMBRIA WASTE RECYCLING LTD,3162439,14/11/2016,63286,49.52,0,Westmorland Multi-storey 660Ltr bin,Westmorland Multi-storey 660Ltr bin,Skip and Bin Hire and Disposal,182012,Environment Waste Management Recycling
South Lakeland District Council,http://opendatacommunities.org/id/district-council/south-lakeland,30/11/2016,Cemeteries Office,Cultural Environmental Regulatory & Planning Services,http://opendatacommunities.org/def/concept/finance/sercop/objective/104,CUMBRIA WASTE RECYCLING LTD,3162439,14/11/2016,63287,31.8,0,SLDC Cemetery waste bin emptying from,SLDC Cemetery waste bin emptying from,Skip and Bin Hire and Disposal,182012,Environment Waste Management Recycling
South Lakeland District Council,http://opendatacommunities.org/id/district-council/south-lakeland,30/11/2016,Lake Wardens,Cultural Environmental Regulatory & Planning Services,http://opendatacommunities.org/def/concept/finance/sercop/objective/104,CUMBRIA WASTE RECYCLING LTD,3162439,16/11/2016,63288,122.84,0,Rental & Emptying of Refuse Wheelie,Rental & Emptying of Refuse Wheelie,Skip and Bin Hire and Disposal,182012,Environment Waste Management Recycling
South Lakeland District Council,http://opendatacommunities.org/id/district-council/south-lakeland,30/11/2016,Development Implementation,Cultural Environmental Regulatory & Planning Services,http://opendatacommunities.org/def/concept/finance/sercop/objective/104,CUMBRIA WASTE RECYCLING LTD,3162439,14/11/2016,63289,106.9,0,"Waste Collection @ 124 Highgate, Kendal","Waste Collection @ 124 Highgate, Kendal",Skip and Bin Hire and Disposal,182012,Environment Waste Management Recycling
South Lakeland District Council,http://opendatacommunities.org/id/district-council/south-lakeland,30/11/2016,Business Support Community Services,Internal Trading Accounts,,H WICKS (LINDAL) LTD,754590,14/11/2016,63290,1812.68,0,"Gate fees, handling, transport & baling","Gate fees, handling, transport & baling",Tipping & Disposal Charges,182012,Environment Waste Management Recycling
South Lakeland District Council,http://opendatacommunities.org/id/district-council/south-lakeland,30/11/2016,Business Support Community Services,Internal Trading Accounts,,ARCO LIMITED,133804,14/11/2016,63291,195,0,Cleaning materials,Cleaning materials,Protective Clothing & Uniforms,141100,Clothing Protective
South Lakeland District Council,http://opendatacommunities.org/id/district-council/south-lakeland,30/11/2016,Business Support Community Services,Internal Trading Accounts,,C T HAYTON LTD,1212766,14/11/2016,63292,1.2,0,Hose,Hose,Transport-Repair & Maintenance,391200,Construction Engineering
South Lakeland District Council,http://opendatacommunities.org/id/district-council/south-lakeland,30/11/2016,Business Support Community Services,Internal Trading Accounts,,FAUN ZOELLER (UK) LTD,751804,14/11/2016,63293,402.85,0,Module,Module,Transport-Repair & Maintenance,381400,Vehicle Mgt Maintenance
South Lakeland District Council,http://opendatacommunities.org/id/district-council/south-lakeland,30/11/2016,Business Support Community Services,Internal Trading Accounts,,FAUN ZOELLER (UK) LTD,751804,14/11/2016,63294,1070.73,0,Cylinder,Cylinder,Transport-Uninsured Damage,381400,Vehicle Mgt Maintenance
South Lakeland District Council,http://opendatacommunities.org/id/district-council/south-lakeland,30/11/2016,Business Support Community Services,Internal Trading Accounts,,AINSWORTH'S GARAGE,,14/11/2016,63295,39,0,Repair puncture,Repair puncture,Vehicle - Tyres,381400,Vehicle Mgt Maintenance
South Lakeland District Council,http://opendatacommunities.org/id/district-council/south-lakeland,30/11/2016,Business Support Community Services,Internal Trading Accounts,,FST CONSUMABLES LTD,1342012,14/11/2016,63297,328.41,0,Consumables 01/04/16 - 31/03/17,Consumables 01/04/16 - 31/03/17,Job Consumables,101600,Building Hand Tools
South Lakeland District Council,http://opendatacommunities.org/id/district-council/south-lakeland,30/11/2016,Business Support Community Services,Internal Trading Accounts,,J R RICHARDSON LTD,2225792,14/11/2016,63298,138.15,0,Vehicle washing consumables,Vehicle washing consumables,Job Consumables,381500,Vehicle Mgt Parts
South Lakeland District Council,http://opendatacommunities.org/id/district-council/south-lakeland,30/11/2016,Business Support Community Services,Internal Trading Accounts,,EK MOTOR FACTORS LTD,838524,23/11/2016,63299,20.58,0,Connector,Connector,Transport-Repair & Maintenance,381400,Vehicle Mgt Maintenance
South Lakeland District Council,http://opendatacommunities.org/id/district-council/south-lakeland,30/11/2016,Business Support Community Services,Internal Trading Accounts,,EK MOTOR FACTORS LTD,838524,23/11/2016,63300,3.34,0,Connector,Connector,Transport-Repair & Maintenance,381400,Vehicle Mgt Maintenance
South Lakeland District Council,http://opendatacommunities.org/id/district-council/south-lakeland,30/11/2016,Environment and Housing,Housing Services,http://opendatacommunities.org/def/concept/finance/sercop/objective/108,The Oyster Partnership,5020374,14/11/2016,63301,914.42,0,Officer,Bridget Oyekanmi,Contract & Agency staff,261300,HR Recruitment & Assessment
South Lakeland District Council,http://opendatacommunities.org/id/district-council/south-lakeland,30/11/2016,Human Resources,Central Services,http://opendatacommunities.org/def/concept/finance/sercop/objective/102,ARCO LIMITED,133804,28/11/2016,63302,104.05,0,5x Overtrousers -,5x Overtrousers - Andy Welton -,Health and Safety,141100,Clothing Protective
South Lakeland District Council,http://opendatacommunities.org/id/district-council/south-lakeland,30/11/2016,Business Support Community Services,Internal Trading Accounts,,M G D LTD,,14/11/2016,63303,35,0,MOTs 01/04/16 - 31/03/17,MOTs 01/04/16 - 31/03/17,MOT/Servicing Costs,381400,Vehicle Mgt Maintenance
South Lakeland District Council,http://opendatacommunities.org/id/district-council/south-lakeland,30/11/2016,Business Support Community Services,Internal Trading Accounts,,Harry Park Tyres Ltd,8131208,14/11/2016,63304,30,0,Turns,Turns,Vehicle - Tyres,381500,Vehicle Mgt Parts
South Lakeland District Council,http://opendatacommunities.org/id/district-council/south-lakeland,30/11/2016,Business Support Community Services,Internal Trading Accounts,,Harry Park Tyres Ltd,8131208,14/11/2016,63306,255,0,Turns,Turns,Vehicle - Tyres,381500,Vehicle Mgt Parts
South Lakeland District Council,http://opendatacommunities.org/id/district-council/south-lakeland,30/11/2016,Business Support Community Services,Internal Trading Accounts,,Harry Park Tyres Ltd,8131208,14/11/2016,63307,12.5,0,Turns,Turns,Vehicle - Tyres,381500,Vehicle Mgt Parts
South Lakeland District Council,http://opendatacommunities.org/id/district-council/south-lakeland,30/11/2016,Development Implementation,Central Services,http://opendatacommunities.org/def/concept/finance/sercop/objective/102,Brown Toland Brown Associates,,14/11/2016,63310,3240,0,Provision of consultancy services for,Provision of consultancy services for,Contract & Agency staff,151000,Consultancy Business
South Lakeland District Council,http://opendatacommunities.org/id/district-council/south-lakeland,30/11/2016,Revenues and Benefits,SLDC as Agent,,ROYAL MAIL GROUP PLC,,14/11/2016,63311,1959.71,0,2016 - 17  Postal Charges a/c 0198123013,2016 - 17  Postal Charges a/c 0198123013,General,301200,Mail Services� Postage
South Lakeland District Council,http://opendatacommunities.org/id/district-council/south-lakeland,30/11/2016,Revenues and Benefits,Central Services,http://opendatacommunities.org/def/concept/finance/sercop/objective/102,MERITEC LTD,3224622,14/11/2016,63312,279,0,2016 - 2017  RAB Processing Contract and,2016 - 2017  RAB Processing Contract and,Contract & Agency staff,391200,Construction Engineering
South Lakeland District Council,http://opendatacommunities.org/id/district-council/south-lakeland,30/11/2016,Business Support Community Services,Internal Trading Accounts,,EK MOTOR FACTORS LTD,838524,14/11/2016,63313,1.38,0,Discs,Discs,Transport-Repair & Maintenance,381400,Vehicle Mgt Maintenance
South Lakeland District Council,http://opendatacommunities.org/id/district-council/south-lakeland,30/11/2016,Business Support Community Services,Internal Trading Accounts,,EK MOTOR FACTORS LTD,838524,14/11/2016,63314,42.96,0,Discs,Discs,Transport-Repair & Maintenance,381400,Vehicle Mgt Maintenance
South Lakeland District Council,http://opendatacommunities.org/id/district-council/south-lakeland,30/11/2016,Business Support Community Services,Internal Trading Accounts,,EK MOTOR FACTORS LTD,838524,14/11/2016,63315,27.96,0,Discs,Discs,Transport-Repair & Maintenance,381400,Vehicle Mgt Maintenance
South Lakeland District Council,http://opendatacommunities.org/id/district-council/south-lakeland,30/11/2016,Business Support Community Services,Internal Trading Accounts,,HYDRAIR TRUCK & TRAILER PARTS LTD,,14/11/2016,63316,17.86,0,Height indicators,Height indicators,Transport-Repair & Maintenance,381500,Vehicle Mgt Parts
South Lakeland District Council,http://opendatacommunities.org/id/district-council/south-lakeland,30/11/2016,Business Support Community Services,Internal Trading Accounts,,EK MOTOR FACTORS LTD,838524,14/11/2016,63318,102,0,Discs,Discs,Transport-Repair & Maintenance,381400,Vehicle Mgt Maintenance
South Lakeland District Council,http://opendatacommunities.org/id/district-council/south-lakeland,30/11/2016,Business Support Community Services,Internal Trading Accounts,,EK MOTOR FACTORS LTD,838524,14/11/2016,63319,49.25,0,Discs,Discs,Transport-Repair & Maintenance,381400,Vehicle Mgt Maintenance
South Lakeland District Council,http://opendatacommunities.org/id/district-council/south-lakeland,30/11/2016,Business Support Community Services,Internal Trading Accounts,,Harry Park Tyres Ltd,8131208,14/11/2016,63320,62.5,0,Turns,Turns,Vehicle - Tyres,381500,Vehicle Mgt Parts
South Lakeland District Council,http://opendatacommunities.org/id/district-council/south-lakeland,30/11/2016,Business Support Community Services,Internal Trading Accounts,,Harry Park Tyres Ltd,8131208,14/11/2016,63321,75.5,0,Tyres,Tyres,Vehicle - Tyres,381500,Vehicle Mgt Parts
South Lakeland District Council,http://opendatacommunities.org/id/district-council/south-lakeland,30/11/2016,Business Support Community Services,Internal Trading Accounts,,Harry Park Tyres Ltd,8131208,14/11/2016,63322,375,0,Tyres,Tyres,Vehicle - Tyres,381500,Vehicle Mgt Parts
South Lakeland District Council,http://opendatacommunities.org/id/district-council/south-lakeland,30/11/2016,Business Support Community Services,Internal Trading Accounts,,ARCO LIMITED,133804,14/11/2016,63323,121.6,0,Cleaning materials,Cleaning materials,Protective Clothing & Uniforms,141100,Clothing Protective
South Lakeland District Council,http://opendatacommunities.org/id/district-council/south-lakeland,30/11/2016,Business Support Community Services,Internal Trading Accounts,,Harry Park Tyres Ltd,8131208,14/11/2016,63324,30,0,Tyres,Tyres,Vehicle - Tyres,381500,Vehicle Mgt Parts
South Lakeland District Council,http://opendatacommunities.org/id/district-council/south-lakeland,30/11/2016,Business Support Community Services,Internal Trading Accounts,,Harry Park Tyres Ltd,8131208,16/11/2016,63325,17.5,0,Tyres,Tyres,Vehicle - Tyres,381500,Vehicle Mgt Parts
South Lakeland District Council,http://opendatacommunities.org/id/district-council/south-lakeland,30/11/2016,Business Support Community Services,Internal Trading Accounts,,HYDRAIR TRUCK & TRAILER PARTS LTD,,14/11/2016,63326,35.72,0,Height indicators,Height indicators,Transport-Repair & Maintenance,381500,Vehicle Mgt Parts
South Lakeland District Council,http://opendatacommunities.org/id/district-council/south-lakeland,30/11/2016,Business Support Community Services,Internal Trading Accounts,,EK MOTOR FACTORS LTD,838524,14/11/2016,63327,13.94,0,Discs,Discs,Transport-Repair & Maintenance,381400,Vehicle Mgt Maintenance
South Lakeland District Council,http://opendatacommunities.org/id/district-council/south-lakeland,30/11/2016,Business Support Community Services,Internal Trading Accounts,,EK MOTOR FACTORS LTD,838524,14/11/2016,63328,33.2,0,Discs,Discs,Transport-Repair & Maintenance,381400,Vehicle Mgt Maintenance
South Lakeland District Council,http://opendatacommunities.org/id/district-council/south-lakeland,30/11/2016,Business Support Community Services,Internal Trading Accounts,,EK MOTOR FACTORS LTD,838524,14/11/2016,63329,14.5,0,Discs,Discs,Transport-Repair & Maintenance,381400,Vehicle Mgt Maintenance
South Lakeland District Council,http://opendatacommunities.org/id/district-council/south-lakeland,30/11/2016,Business Support Community Services,Internal Trading Accounts,,HYDRAIR TRUCK & TRAILER PARTS LTD,,14/11/2016,63330,58.71,0,Height indicators,Height indicators,Transport-Uninsured Damage,381500,Vehicle Mgt Parts
South Lakeland District Council,http://opendatacommunities.org/id/district-council/south-lakeland,30/11/2016,Business Support Community Services,Internal Trading Accounts,,C T HAYTON LTD,1212766,14/11/2016,63331,34.7,0,Hose,Hose,Transport-Repair & Maintenance,391200,Construction Engineering
South Lakeland District Council,http://opendatacommunities.org/id/district-council/south-lakeland,30/11/2016,Human Resources,Central Services,http://opendatacommunities.org/def/concept/finance/sercop/objective/102,Your Jobs In,,14/11/2016,63346,745,0,Your Jobs in Cumbria - Annual fee 745,Your Jobs in Cumbria - Annual fee 745,Staff Advertising,261300,HR Recruitment & Assessment
South Lakeland District Council,http://opendatacommunities.org/id/district-council/south-lakeland,30/11/2016,Development Implementation,Central Services,http://opendatacommunities.org/def/concept/finance/sercop/objective/102,ADECCO UK LIMITED,593232,28/11/2016,63348,114.8,0,Cleaner for SLDC - ,Cleaner for SLDC - Karl Sota,Contract & Agency staff,261400,HR Temporary & Agency Staff
South Lakeland District Council,http://opendatacommunities.org/id/district-council/south-lakeland,30/11/2016,Development Implementation,Cultural Environmental Regulatory & Planning Services,http://opendatacommunities.org/def/concept/finance/sercop/objective/104,ADECCO UK LIMITED,593232,16/11/2016,63349,312,0,Administrator - (24hrs,Administrator - Renate Parker (24hrs,Contract & Agency staff,261400,HR Temporary & Agency Staff
South Lakeland District Council,http://opendatacommunities.org/id/district-council/south-lakeland,30/11/2016,Development Implementation,Cultural Environmental Regulatory & Planning Services,http://opendatacommunities.org/def/concept/finance/sercop/objective/104,ADECCO UK LIMITED,593232,16/11/2016,63350,398.4,0,SLDC Project Officer - ,SLDC Project Officer - Cherie Fox,Contract & Agency staff,261400,HR Temporary & Agency Staff
South Lakeland District Council,http://opendatacommunities.org/id/district-council/south-lakeland,30/11/2016,Business Support Community Services,Internal Trading Accounts,,K S INTERNATIONAL LTD,2703321,16/11/2016,63352,90,0,Pads,Pads,Transport-Repair & Maintenance,381500,Vehicle Mgt Parts
South Lakeland District Council,http://opendatacommunities.org/id/district-council/south-lakeland,30/11/2016,Business Support Community Services,Internal Trading Accounts,,Harry Park Tyres Ltd,8131208,14/11/2016,63353,45,0,Turns,Turns,Vehicle - Tyres,381500,Vehicle Mgt Parts
South Lakeland District Council,http://opendatacommunities.org/id/district-council/south-lakeland,30/11/2016,Business Support Community Services,Internal Trading Accounts,,Harry Park Tyres Ltd,8131208,16/11/2016,63354,60,0,Tyres,Tyres,Vehicle - Tyres,381500,Vehicle Mgt Parts
South Lakeland District Council,http://opendatacommunities.org/id/district-council/south-lakeland,30/11/2016,Business Support Community Services,Highways & Transport Services,http://opendatacommunities.org/def/concept/finance/sercop/objective/107,CUMBRIA COUNTY COUNCIL,,14/11/2016,63355,13655.26,0,Install street lighting column to,Install street lighting column to,Parish Lights-Renewals,908000,Public Bodies Council support services
South Lakeland District Council,http://opendatacommunities.org/id/district-council/south-lakeland,30/11/2016,Business Support Community Services,Internal Trading Accounts,,HYDRAIR TRUCK & TRAILER PARTS LTD,,14/11/2016,63356,5.98,0,Cable,Cable,Transport-Repair & Maintenance,381500,Vehicle Mgt Parts
South Lakeland District Council,http://opendatacommunities.org/id/district-council/south-lakeland,30/11/2016,Business Support Community Services,Internal Trading Accounts,,Harry Park Tyres Ltd,8131208,14/11/2016,63357,20,0,Tyres,Tyres,Vehicle - Tyres,381500,Vehicle Mgt Parts
South Lakeland District Council,http://opendatacommunities.org/id/district-council/south-lakeland,30/11/2016,Business Support Community Services,Internal Trading Accounts,,HYDRAIR TRUCK & TRAILER PARTS LTD,,14/11/2016,63358,287.29,0,Height indicators,Height indicators,Transport-Repair & Maintenance,381500,Vehicle Mgt Parts
South Lakeland District Council,http://opendatacommunities.org/id/district-council/south-lakeland,30/11/2016,Business Support Community Services,Internal Trading Accounts,,HYDRAIR TRUCK & TRAILER PARTS LTD,,14/11/2016,63359,34.43,0,Height indicators,Height indicators,Transport-Repair & Maintenance,381500,Vehicle Mgt Parts
South Lakeland District Council,http://opendatacommunities.org/id/district-council/south-lakeland,30/11/2016,Business Support Community Services,Internal Trading Accounts,,HYDRAIR TRUCK & TRAILER PARTS LTD,,14/11/2016,63360,67.32,0,Height indicators,Height indicators,Transport-Repair & Maintenance,381500,Vehicle Mgt Parts
South Lakeland District Council,http://opendatacommunities.org/id/district-council/south-lakeland,30/11/2016,Business Support Community Services,Internal Trading Accounts,,HYDRAIR TRUCK & TRAILER PARTS LTD,,14/11/2016,63361,63.36,0,Height indicators,Height indicators,Transport-Repair & Maintenance,381500,Vehicle Mgt Parts
South Lakeland District Council,http://opendatacommunities.org/id/district-council/south-lakeland,30/11/2016,Business Support Community Services,Internal Trading Accounts,,BRIAN ARMISTEAD LTD T/A SINKFALL RECYCLI,4133280,14/11/2016,63362,988.1,0,Green waste tipping - 2016/17,Green waste tipping - 2016/17,Tipping & Disposal Charges,391110,Construction Buildings Construction
South Lakeland District Council,http://opendatacommunities.org/id/district-council/south-lakeland,30/11/2016,Business Support Community Services,Internal Trading Accounts,,ARCO LIMITED,133804,14/11/2016,63363,9.66,0,Cleaning materials,Cleaning materials,Protective Clothing & Uniforms,141100,Clothing Protective
South Lakeland District Council,http://opendatacommunities.org/id/district-council/south-lakeland,30/11/2016,Business Support Community Services,Internal Trading Accounts,,Masterstaff Limited,2777593,14/11/2016,63364,2952.83,0,Agency staff - August 2016,Agency staff - August 2016,Contract & Agency staff,261300,HR Recruitment & Assessment
South Lakeland District Council,http://opendatacommunities.org/id/district-council/south-lakeland,30/11/2016,Business Support Community Services,Internal Trading Accounts,,RIBBLESDALE AUTO ELECTRICS UNITS LTD,962232,14/11/2016,63365,295,0,Crimping tool,Crimping tool,Transport-Repair & Maintenance,101100,Building Electrical
South Lakeland District Council,http://opendatacommunities.org/id/district-council/south-lakeland,30/11/2016,Financial Services,SLDC as Agent,,LAKELAND ESTATES (AMBLESIDE) LTD,3022544,14/11/2016,63367,24777.75,0,2016/17 Income,2016/17 Income,General,191700,Facilities Property Management
South Lakeland District Council,http://opendatacommunities.org/id/district-council/south-lakeland,30/11/2016,Business Support Community Services,Housing Services,http://opendatacommunities.org/def/concept/finance/sercop/objective/108,Landlord,,14/11/2016,63368,600,0,Monthly rent ,"Monthly rent for 4 Park Street,  Kendal",Homelessness Prevention,250000,Housing
South Lakeland District Council,http://opendatacommunities.org/id/district-council/south-lakeland,30/11/2016,Business Support Community Services,Housing Services,http://opendatacommunities.org/def/concept/finance/sercop/objective/108,Landlord,,14/11/2016,63369,520,0,Monthly rent ,"Monthly rent for 20 Caroline Street,",Homelessness Prevention,202000,Financial Services Rents
South Lakeland District Council,http://opendatacommunities.org/id/district-council/south-lakeland,30/11/2016,Business Support Community Services,Housing Services,http://opendatacommunities.org/def/concept/finance/sercop/objective/108,Landlord,,14/11/2016,63370,520,0,Monthly rent ,"Monthly rent for Flat 3 Katherine Court,",Homelessness Prevention,202000,Financial Services Rents
South Lakeland District Council,http://opendatacommunities.org/id/district-council/south-lakeland,30/11/2016,Business Support Community Services,Housing Services,http://opendatacommunities.org/def/concept/finance/sercop/objective/108,Landlord,7121028,14/11/2016,63372,400,0,Monthly rent ,Monthly rent for 26B Park Avenue Kendal,Homelessness Prevention,202000,Financial Services Rents
South Lakeland District Council,http://opendatacommunities.org/id/district-council/south-lakeland,30/11/2016,Business Support Community Services,Housing Services,http://opendatacommunities.org/def/concept/finance/sercop/objective/108,Landlord,,14/11/2016,63374,520,0,Monthly rent ,"Monthly rent for 6 Garden Mews,  Kendal,",Homelessness Prevention,202000,Financial Services Rents
South Lakeland District Council,http://opendatacommunities.org/id/district-council/south-lakeland,30/11/2016,Business Support Community Services,Housing Services,http://opendatacommunities.org/def/concept/finance/sercop/objective/108,Landlord,,14/11/2016,63376,500,0,Rent in advance ,Rent in advance and deposit for Daniel,Homelessness Prevention,250010,Housing Letting Agents
South Lakeland District Council,http://opendatacommunities.org/id/district-council/south-lakeland,30/11/2016,Financial Services,SLDC as Agent,,KIRKLAND TRUST (KENDAL),,14/11/2016,63377,5100,0,2016/17 Income,2016/17 Income,General,201700,Financial Services Grants
South Lakeland District Council,http://opendatacommunities.org/id/district-council/south-lakeland,30/11/2016,Legal Services,Central Services,http://opendatacommunities.org/def/concept/finance/sercop/objective/102,Legal Counsel Ltd,10147194,14/11/2016,63379,1520,0,Employee W. Mitchell,Employee W. Mitchell,Contract & Agency staff,281200,Legal Services General Support
South Lakeland District Council,http://opendatacommunities.org/id/district-council/south-lakeland,30/11/2016,Democratic and Member Services,Cultural Environmental Regulatory & Planning Services,http://opendatacommunities.org/def/concept/finance/sercop/objective/104,GRANTS- MISCELLANEOUS,,14/11/2016,63380,400,0,donation from Cllr Hall-to a bus,donation from Cllr Hall-to a bus,Contributions to Organisations,201700,Financial Services Grants
South Lakeland District Council,http://opendatacommunities.org/id/district-council/south-lakeland,30/11/2016,Environment and Housing,Housing,http://opendatacommunities.org/def/concept/finance/sercop/objective/108,A B MITCHELL DEVELOPMENTS LTD,5555489,14/11/2016,63381,8150.62,0,"Stricklandgate, Kendal, LA9","1 Yard 110, Stricklandgate, Kendal, LA9",Grant Payments,390000,Construction
South Lakeland District Council,http://opendatacommunities.org/id/district-council/south-lakeland,30/11/2016,Environment and Housing,Housing,http://opendatacommunities.org/def/concept/finance/sercop/objective/108,ENVIRONMENT & HOUSING GRANTS,,14/11/2016,63382,4745.34,0,"Kendal, LA9 6EU","44 Sandylands Road, Kendal, LA9 6EU",Grant Payments,201700,Financial Services Grants
South Lakeland District Council,http://opendatacommunities.org/id/district-council/south-lakeland,30/11/2016,Printing Section,Central Services,http://opendatacommunities.org/def/concept/finance/sercop/objective/102,ROSEFOX PAPER LIMITED,1655083,16/11/2016,63384,87.54,0,DL Window Envelopes 100gsm Ref: 7774,DL Window Envelopes 100gsm Ref: 7774,Stationery/Office Supplies,341000,Stationery Paper
South Lakeland District Council,http://opendatacommunities.org/id/district-council/south-lakeland,30/11/2016,Democratic and Member Services,Cultural Environmental Regulatory & Planning Services,http://opendatacommunities.org/def/concept/finance/sercop/objective/104,WINDERMERE TOWN COUNCIL,,16/11/2016,63386,1000,0,Cllr  donation-assist in the,Cllr D Williams donation-assist in the,Contributions to Organisations,908000,Public Bodies Council support services
South Lakeland District Council,http://opendatacommunities.org/id/district-council/south-lakeland,30/11/2016,Business Support Community Services,Internal Trading Accounts,,DAVID HAYTON LTD,2312632,16/11/2016,63388,18.76,0,Bracket,Bracket,Transport-Uninsured Damage,381500,Vehicle Mgt Parts
South Lakeland District Council,http://opendatacommunities.org/id/district-council/south-lakeland,30/11/2016,Business Support Community Services,Internal Trading Accounts,,Southfield Garage,,16/11/2016,63389,200,0,Repair packer,Repair packer,Transport-Repair & Maintenance,380000,Vehicle Management
South Lakeland District Council,http://opendatacommunities.org/id/district-council/south-lakeland,30/11/2016,ICT Group,Central Services,http://opendatacommunities.org/def/concept/finance/sercop/objective/102,PROBRAND LTD,2653446,16/11/2016,63391,158,0,Logitech Wireless Combo MK270 - Keyboard,Logitech Wireless Combo MK270 - Keyboard,Computer-Supplies,271600,ICT Software Customised & Bespoke
South Lakeland District Council,http://opendatacommunities.org/id/district-council/south-lakeland,30/11/2016,Business Support Community Services,Housing Services,http://opendatacommunities.org/def/concept/finance/sercop/objective/108,NOWMEDICAL,4338252,16/11/2016,63396,85,0,Medical advice for Catherine Farrelly,Medical advice for Catherine Farrelly,Drs/Occ Health Fees,311600,Healthcare Services
South Lakeland District Council,http://opendatacommunities.org/id/district-council/south-lakeland,30/11/2016,Kendal Town Hall,Highways & Transport Services,http://opendatacommunities.org/def/concept/finance/sercop/objective/107,Masterstaff Limited,2777593,16/11/2016,63401,410.63,0,Agency staff to cover cleaner's AL,Agency staff to cover cleaner's AL,Contract & Agency staff,261300,HR Recruitment & Assessment
South Lakeland District Council,http://opendatacommunities.org/id/district-council/south-lakeland,30/11/2016,Kendal Town Hall,Highways & Transport Services,http://opendatacommunities.org/def/concept/finance/sercop/objective/107,METRIC GROUP LIMITED,2560839,28/11/2016,63402,5950,0,New 1 Validator upgrade for all P&D,New 1 Validator upgrade for all P&D,Fixed Plant & Machinery Maint,359999,Street & Traffic Not Elsewhere Classifie
South Lakeland District Council,http://opendatacommunities.org/id/district-council/south-lakeland,30/11/2016,Human Resources,Central Services,http://opendatacommunities.org/def/concept/finance/sercop/objective/102,LAKES TRAINING SOLUTIONS LTD,7541345,16/11/2016,63403,900,0,4 x 'Bite Size' Street Scene (Violence,4 x 'Bite Size' Street Scene (Violence,Training Costs,261500,HR Training & Conferences
South Lakeland District Council,http://opendatacommunities.org/id/district-council/south-lakeland,30/11/2016,Social Enterprise Admin,Highways & Transport Services,http://opendatacommunities.org/def/concept/finance/sercop/objective/107,G4S SECURE SOLUTIONS (UK) LTD,1046019,16/11/2016,63405,874.84,0,Patrol Services for South Lakeland House,Patrol Services for South Lakeland House,Private Contractos gen,192213,Facilities Security Manned Guarding
South Lakeland District Council,http://opendatacommunities.org/id/district-council/south-lakeland,30/11/2016,Business Support Community Services,Cultural Environmental Regulatory & Planning Services,http://opendatacommunities.org/def/concept/finance/sercop/objective/104,Buckingham Futures,8329499,16/11/2016,63406,928.9,0,Supply 1 Full Time Private Water Officer,Supply 1 Full Time Private Water Officer,Contract & Agency staff,182030,Environment Water Assessment & Treatment
South Lakeland District Council,http://opendatacommunities.org/id/district-council/south-lakeland,30/11/2016,Legal Services,Central Services,http://opendatacommunities.org/def/concept/finance/sercop/objective/102,Eventus Legal Recruitment,,16/11/2016,63407,247,0,Commission Fees for W.Mitchell from,Commission Fees for W.Mitchell from,Contract & Agency staff,261300,HR Recruitment & Assessment
South Lakeland District Council,http://opendatacommunities.org/id/district-council/south-lakeland,30/11/2016,Financial Services,Central Services,http://opendatacommunities.org/def/concept/finance/sercop/objective/102,The Salary Exchange Limited,6784632,16/11/2016,63408,41.63,0,Service charge for Computershare,Service charge for Computershare,National Insurance,260000,HR
South Lakeland District Council,http://opendatacommunities.org/id/district-council/south-lakeland,30/11/2016,Electoral Services,Central Services,http://opendatacommunities.org/def/concept/finance/sercop/objective/102,ROYAL MAIL GROUP PLC,,16/11/2016,63409,220.48,0,Postage on Canvass Form Returns,Postage on Canvass Form Returns,Annual Canvass,301200,Mail Services� Postage
South Lakeland District Council,http://opendatacommunities.org/id/district-council/south-lakeland,30/11/2016,Electoral Services,Central Services,http://opendatacommunities.org/def/concept/finance/sercop/objective/102,HALAROSE LIMITED,1362834,16/11/2016,63410,731.96,0,Hera Set up for e-canvass and e-mail,Hera Set up for e-canvass and e-mail,Annual Canvass,271600,ICT Software Customised & Bespoke
South Lakeland District Council,http://opendatacommunities.org/id/district-council/south-lakeland,30/11/2016,Financial Services,Central Services,http://opendatacommunities.org/def/concept/finance/sercop/objective/102,SOCIETY OF DISTRICT COUNCIL TREASURERS,,16/11/2016,63411,200,0,Annual Subs 16/17 Society of District,Annual Subs 16/17 Society of District,Subscriptions to Associations,159999,Consultancy Not Elsewhere Classified
South Lakeland District Council,http://opendatacommunities.org/id/district-council/south-lakeland,30/11/2016,Social Enterprise Admin,Central Services,http://opendatacommunities.org/def/concept/finance/sercop/objective/102,CUMBRIA WASTE RECYCLING LTD,3162439,16/11/2016,63415,53.18,0,1100 wheelie bin for Town Hall Queen,1100 wheelie bin for Town Hall Queen,Skip and Bin Hire and Disposal,182012,Environment Waste Management Recycling
South Lakeland District Council,http://opendatacommunities.org/id/district-council/south-lakeland,30/11/2016,Social Enterprise Admin,Cultural Environmental Regulatory & Planning Services,http://opendatacommunities.org/def/concept/finance/sercop/objective/104,LDA Cleaning Services Ltd,8917986,16/11/2016,63416,175,0,For  the continuation of cleaning,For  the continuation of cleaning,Other Consultants,131310,Cleaning & Janitorial Cleaning Service
South Lakeland District Council,http://opendatacommunities.org/id/district-council/south-lakeland,30/11/2016,Legal Services,Central Services,http://opendatacommunities.org/def/concept/finance/sercop/objective/102,NEWSQUEST MEDIA GROUP LTD,3102566,16/11/2016,63417,275,0,Advert re;  IRP advert to appear,Advert re;  IRP advert to appear,Advertising,191000,Facilities Advertising
South Lakeland District Council,http://opendatacommunities.org/id/district-council/south-lakeland,30/11/2016,Business Support Community Services,Transport Planning Policy,http://opendatacommunities.org/def/concept/finance/sercop/objective/107,ARCO LIMITED,133804,16/11/2016,63419,25.81,0,Cleaning materials,Cleaning materials,Cleaning Supplies & Services,141100,Clothing Protective
South Lakeland District Council,http://opendatacommunities.org/id/district-council/south-lakeland,30/11/2016,Business Support Community Services,Transport Planning Policy,http://opendatacommunities.org/def/concept/finance/sercop/objective/107,ARCO LIMITED,133804,16/11/2016,63420,35.87,0,Cleaning materials,Cleaning materials,Cleaning Supplies & Services,141100,Clothing Protective
South Lakeland District Council,http://opendatacommunities.org/id/district-council/south-lakeland,30/11/2016,Business Support Community Services,Internal Trading Accounts,,ARCO LIMITED,133804,16/11/2016,63420,31.04,0,Cleaning materials,Cleaning materials,Equipment Furniture Materials,141100,Clothing Protective
South Lakeland District Council,http://opendatacommunities.org/id/district-council/south-lakeland,30/11/2016,Business Support Community Services,Internal Trading Accounts,,ARCO LIMITED,133804,16/11/2016,63420,862.02,0,Cleaning materials,Cleaning materials,Protective Clothing & Uniforms,141100,Clothing Protective
South Lakeland District Council,http://opendatacommunities.org/id/district-council/south-lakeland,30/11/2016,Business Support Community Services,Internal Trading Accounts,,ARCO LIMITED,133804,16/11/2016,63421,58.05,0,Cleaning materials,Cleaning materials,Protective Clothing & Uniforms,141100,Clothing Protective
South Lakeland District Council,http://opendatacommunities.org/id/district-council/south-lakeland,30/11/2016,Business Support Community Services,Transport Planning Policy,http://opendatacommunities.org/def/concept/finance/sercop/objective/107,KENDAL SECURITY CENTRE LTD,3179893,16/11/2016,63422,20,0,Battery pack,Battery pack,Equipment Furniture Materials,192212,Facilities Security Equipment
South Lakeland District Council,http://opendatacommunities.org/id/district-council/south-lakeland,30/11/2016,Business Support Community Services,Cultural Environmental Regulatory & Planning Services,http://opendatacommunities.org/def/concept/finance/sercop/objective/104,CUMBRIA WASTE RECYCLING LTD,3162439,16/11/2016,63423,15017.3,0,Empty recycling banks in 2016/17,Empty recycling banks in 2016/17,Empty recycling banks,182012,Environment Waste Management Recycling
South Lakeland District Council,http://opendatacommunities.org/id/district-council/south-lakeland,30/11/2016,Kendal Town Hall,Highways & Transport Services,http://opendatacommunities.org/def/concept/finance/sercop/objective/107,ARCO LIMITED,133804,16/11/2016,63426,64.18,0,4  X  LED Lenser torch,4  X  LED Lenser torch,Equipment Furniture Materials,141100,Clothing Protective
South Lakeland District Council,http://opendatacommunities.org/id/district-council/south-lakeland,30/11/2016,Financial Services,Central Services,http://opendatacommunities.org/def/concept/finance/sercop/objective/102,INTEGRA USER GROUP,2999829,16/11/2016,63427,385,0,Subs 01.10.16 to 30.09.17,Subs 01.10.16 to 30.09.17,Subscriptions to Associations,271600,ICT Software Customised & Bespoke
South Lakeland District Council,http://opendatacommunities.org/id/district-council/south-lakeland,30/11/2016,ICT Group,Central Services,http://opendatacommunities.org/def/concept/finance/sercop/objective/102,EE UK LTD (NCR),,01/11/2016,63428,42.21,0,EE myfi 50gb per month ,EE myfi 50gb per month (for Irene Moore),Mobile Phones,351000,Street & Traffic Parking Car Parks
South Lakeland District Council,http://opendatacommunities.org/id/district-council/south-lakeland,30/11/2016,ICT Group,Highways & Transport Services,http://opendatacommunities.org/def/concept/finance/sercop/objective/107,EE UK LTD (NCR),,01/11/2016,63428,117,0,EE myfi 50gb per month,EE myfi 50gb per month (for Irene Moore),Car Park Surfaces,351000,Street & Traffic Parking Car Parks
South Lakeland District Council,http://opendatacommunities.org/id/district-council/south-lakeland,30/11/2016,Social Enterprise Admin,Central Services,http://opendatacommunities.org/def/concept/finance/sercop/objective/102,CUMBRIA COUNTY COUNCIL,,16/11/2016,63429,3459,0,LAND CHARGE SEARCH ENQUIRIES,LAND CHARGE SEARCH ENQUIRIES,Other Local Authorities,908000,Public Bodies Council support services
South Lakeland District Council,http://opendatacommunities.org/id/district-council/south-lakeland,30/11/2016,Social Enterprise Admin,Central Services,http://opendatacommunities.org/def/concept/finance/sercop/objective/102,CUMBRIA COUNTY COUNCIL,,16/11/2016,63430,4155,0,LAND CHARGE SEARCH ENQUIRIES,LAND CHARGE SEARCH ENQUIRIES,Other Local Authorities,908000,Public Bodies Council support services
South Lakeland District Council,http://opendatacommunities.org/id/district-council/south-lakeland,30/11/2016,Social Enterprise Admin,Central Services,http://opendatacommunities.org/def/concept/finance/sercop/objective/102,CUMBRIA COUNTY COUNCIL,,16/11/2016,63431,4490,0,LAND CHARGE SEARCH ENQUIRIES,LAND CHARGE SEARCH ENQUIRIES,Other Local Authorities,908000,Public Bodies Council support services
South Lakeland District Council,http://opendatacommunities.org/id/district-council/south-lakeland,30/11/2016,Business Support Community Services,Internal Trading Accounts,,H WICKS (LINDAL) LTD,754590,16/11/2016,63432,300,0,"Gate fees, handling, transport & baling","Gate fees, handling, transport & baling",Tipping & Disposal Charges,182012,Environment Waste Management Recycling
South Lakeland District Council,http://opendatacommunities.org/id/district-council/south-lakeland,30/11/2016,Business Support Community Services,Internal Trading Accounts,,H WICKS (LINDAL) LTD,754590,21/11/2016,63433,300,0,"Gate fees, handling, transport & baling","Gate fees, handling, transport & baling",Tipping & Disposal Charges,182012,Environment Waste Management Recycling
South Lakeland District Council,http://opendatacommunities.org/id/district-council/south-lakeland,30/11/2016,Social Enterprise Admin,Cultural Environmental Regulatory & Planning Services,http://opendatacommunities.org/def/concept/finance/sercop/objective/104,J CHAPLOW & SONS LTD,335899,16/11/2016,63434,2496,0,Excavate existing tarmac and concrete on,Excavate existing tarmac and concrete on,Play Areas Maintenance,231100,Highways Bituminous Mat & Surf Dress
South Lakeland District Council,http://opendatacommunities.org/id/district-council/south-lakeland,30/11/2016,Development Implementation,Central Services,http://opendatacommunities.org/def/concept/finance/sercop/objective/102,MARGARET BARROW INTERIORS LTD T/A MBI,,16/11/2016,63435,140,0,Havana Chair (M207HA) as per quote dated,Havana Chair (M207HA) as per quote dated,Equipment Furniture Materials,211200,Furniture & Soft Furn Office Furniture
South Lakeland District Council,http://opendatacommunities.org/id/district-council/south-lakeland,30/11/2016,Social Enterprise Admin,Central Services,http://opendatacommunities.org/def/concept/finance/sercop/objective/102,MARGARET BARROW INTERIORS LTD T/A MBI,,16/11/2016,63436,390,0,2 x  BO/04.16D Straight top upholstered,2 x  BO/04.16D Straight top upholstered,Equipment Furniture Materials,211200,Furniture & Soft Furn Office Furniture
South Lakeland District Council,http://opendatacommunities.org/id/district-council/south-lakeland,30/11/2016,Social Enterprise Admin,Central Services,http://opendatacommunities.org/def/concept/finance/sercop/objective/102,MARGARET BARROW INTERIORS LTD T/A MBI,,16/11/2016,63437,2069.6,0,2 x SCSPW16Q right hand radial combi,2 x SCSPW16Q right hand radial combi,Equipment Furniture Materials,211200,Furniture & Soft Furn Office Furniture
South Lakeland District Council,http://opendatacommunities.org/id/district-council/south-lakeland,30/11/2016,Human Resources,Central Services,http://opendatacommunities.org/def/concept/finance/sercop/objective/102,KENTDALE FIRST AID TRAINING,,16/11/2016,63438,90,0,Has asked me to ask Rebekah,Andy Welton has asked me to ask Rebekah,Health and Safety,261500,HR Training & Conferences
South Lakeland District Council,http://opendatacommunities.org/id/district-council/south-lakeland,30/11/2016,Development Management,Cultural Environmental Regulatory & Planning Services,http://opendatacommunities.org/def/concept/finance/sercop/objective/104,SALFORD CITY COUNCIL,,28/11/2016,63439,39.9,0,Checking of Structural Information in,Checking of Structural Information in,Consulting Engineers,908000,Public Bodies Council support services
South Lakeland District Council,http://opendatacommunities.org/id/district-council/south-lakeland,30/11/2016,ICT Group,Central Services,http://opendatacommunities.org/def/concept/finance/sercop/objective/102,LAN2LAN Limited,,21/11/2016,63441,334,0,Fortinet 223C Wireless Access Point,Fortinet 223C Wireless Access Point,Purchase of IT Equipment,279999,ICT Not Elsewhere Classified
South Lakeland District Council,http://opendatacommunities.org/id/district-council/south-lakeland,30/11/2016,ICT Group,Central Services,http://opendatacommunities.org/def/concept/finance/sercop/objective/102,LAN2LAN Limited,,21/11/2016,63442,7260,0,Fortinet 223C Access point,Fortinet 223C Access point,Purchase of IT Equipment,279999,ICT Not Elsewhere Classified
South Lakeland District Council,http://opendatacommunities.org/id/district-council/south-lakeland,30/11/2016,ICT Group,Central Services,http://opendatacommunities.org/def/concept/finance/sercop/objective/102,Forge Training,,16/11/2016,63443,645,0,Sharepoint Administrator training for,Sharepoint Administrator training for,Other Consultants,261500,HR Training & Conferences
South Lakeland District Council,http://opendatacommunities.org/id/district-council/south-lakeland,30/11/2016,Kendal Town Hall,Highways & Transport Services,http://opendatacommunities.org/def/concept/finance/sercop/objective/107,HYGIENE CLEANING SUPPLIES LTD,4753934,23/11/2016,63444,38.33,0,1 x 5L Jangro Neutral Cleaner Orange,1 x 5L Jangro Neutral Cleaner Orange,Cleaning Supplies & Services,131011,Cleaning & Janitorial Cleaning Materials
South Lakeland District Council,http://opendatacommunities.org/id/district-council/south-lakeland,30/11/2016,Business Support Community Services,Internal Trading Accounts,,ARCO LIMITED,133804,21/11/2016,63446,2.66,0,Cleaning materials,Cleaning materials,Job Consumables,141100,Clothing Protective
South Lakeland District Council,http://opendatacommunities.org/id/district-council/south-lakeland,30/11/2016,Business Support Community Services,Housing Services,http://opendatacommunities.org/def/concept/finance/sercop/objective/108,Landlord,,16/11/2016,63447,480,0,Rent in advance ,Rent in advance for James Moore at 66a,Homelessness Prevention,250010,Housing Letting Agents
South Lakeland District Council,http://opendatacommunities.org/id/district-council/south-lakeland,30/11/2016,Business Support Community Services,Housing Services,http://opendatacommunities.org/def/concept/finance/sercop/objective/108,Landlord,,16/11/2016,63448,520,0,Monthly rent ,"Monthly rent for 34 Broad Ing Crescent,",Homelessness Prevention,250010,Housing Letting Agents
South Lakeland District Council,http://opendatacommunities.org/id/district-council/south-lakeland,30/11/2016,Business Support Community Services,Housing Services,http://opendatacommunities.org/def/concept/finance/sercop/objective/108,Landlord,8672920,16/11/2016,63449,400,0,Monthly rent ,"Monthly rent for 6 Camden Building, Yard",Homelessness Prevention,202000,Financial Services Rents
South Lakeland District Council,http://opendatacommunities.org/id/district-council/south-lakeland,30/11/2016,Business Support Community Services,Internal Trading Accounts,,AINSWORTH'S GARAGE,,21/11/2016,63450,150,0,Recover SL078,Recover SL078,Transport-Uninsured Damage,381400,Vehicle Mgt Maintenance
South Lakeland District Council,http://opendatacommunities.org/id/district-council/south-lakeland,30/11/2016,Business Support Community Services,Housing Services,http://opendatacommunities.org/def/concept/finance/sercop/objective/108,Landlord,,16/11/2016,63451,1190,0,Monthly rent ,"Monthly rent for Flat 1,2 & 3 Kentworks,",Homelessness Prevention,202000,Financial Services Rents
South Lakeland District Council,http://opendatacommunities.org/id/district-council/south-lakeland,30/11/2016,Business Support Community Services,Housing Services,http://opendatacommunities.org/def/concept/finance/sercop/objective/108,Landlord,,16/11/2016,63452,890,0,Monthly rent ,"Monthly rent for Flats 1 & 2, 13 New",Homelessness Prevention,250000,Housing
South Lakeland District Council,http://opendatacommunities.org/id/district-council/south-lakeland,30/11/2016,Business Support Community Services,Cultural Environmental Regulatory & Planning Services,http://opendatacommunities.org/def/concept/finance/sercop/objective/104,Buckingham Futures,8329499,21/11/2016,63453,336.1,0,Payment of 8 inspections completed,Payment of 8 inspections completed,Sampling & Inspection fees,182030,Environment Water Assessment & Treatment
South Lakeland District Council,http://opendatacommunities.org/id/district-council/south-lakeland,30/11/2016,Environment and Housing,Housing Services,http://opendatacommunities.org/def/concept/finance/sercop/objective/108,GROWING CONCERNS LTD,,16/11/2016,63454,1112.95,0,Payment for Handy Person Scheme,Payment for Handy Person Scheme,Handyperson,391200,Construction Engineering
South Lakeland District Council,http://opendatacommunities.org/id/district-council/south-lakeland,30/11/2016,Social Enterprise Admin,Cultural Environmental Regulatory & Planning Services,http://opendatacommunities.org/def/concept/finance/sercop/objective/104,BURTON TURF CARE,,21/11/2016,63455,2500,0,Verti-draining  as per Estimate,Verti-draining  as per Estimate,Grounds,391311,Construction Open Spaces Repair & Mtce
South Lakeland District Council,http://opendatacommunities.org/id/district-council/south-lakeland,30/11/2016,Revenues and Benefits,Central Services,http://opendatacommunities.org/def/concept/finance/sercop/objective/102,ROYAL MAIL GROUP PLC,,21/11/2016,63456,53.27,0,2016 - 2017  Postal Charges a/c,2016 - 2017  Postal Charges a/c,Postages,301200,Mail Services� Postage
South Lakeland District Council,http://opendatacommunities.org/id/district-council/south-lakeland,30/11/2016,Social Enterprise Admin,Cultural Environmental Regulatory & Planning Services,http://opendatacommunities.org/def/concept/finance/sercop/objective/104,NEWSQUEST MEDIA GROUP LTD,3102566,21/11/2016,63457,149,0,PUBLIC NOTICES FOR PLANNING 1 APRIL - 31,PUBLIC NOTICES FOR PLANNING 1 APRIL - 31,Advertising,191000,Facilities Advertising
South Lakeland District Council,http://opendatacommunities.org/id/district-council/south-lakeland,30/11/2016,Development Strategy,Cultural Environmental Regulatory & Planning Services,http://opendatacommunities.org/def/concept/finance/sercop/objective/104,LANCASTER CITY COUNCIL,,21/11/2016,63458,3185,0,Contribution to 50% Arcadis SA & HRA,Contribution to 50% Arcadis SA & HRA,Other Consultants,201900,Financial Services Refund
South Lakeland District Council,http://opendatacommunities.org/id/district-council/south-lakeland,30/11/2016,Social Enterprise Admin,Highways & Transport Services,http://opendatacommunities.org/def/concept/finance/sercop/objective/107,CREDIT CALL LTD (NCR),,01/11/2016,63459,1149.23,0,Credit Call Commission 2016/17,Credit Call Commission 2016/17,Credit Card Commission,209999,Financial Services Not Elsewhere Classif
South Lakeland District Council,http://opendatacommunities.org/id/district-council/south-lakeland,30/11/2016,Customer Services,Central Services,http://opendatacommunities.org/def/concept/finance/sercop/objective/102,NORTHGATE VEHICLE HIRE LTD,1434157,21/11/2016,63462,45.42,0,3 day hire for travel to Eden,3 day hire for Lola to travel to Eden,Car Allowances,381600,Vehicle Mgt Leasing
South Lakeland District Council,http://opendatacommunities.org/id/district-council/south-lakeland,30/11/2016,Human Resources,Housing Services,http://opendatacommunities.org/def/concept/finance/sercop/objective/108,Your Jobs In,,21/11/2016,63463,55,0,Senior Housing Standards Officer - Your,Senior Housing Standards Officer - Your,Equipment Furniture Materials,261300,HR Recruitment & Assessment
South Lakeland District Council,http://opendatacommunities.org/id/district-council/south-lakeland,30/11/2016,Policy & Partnerships,Cultural Environmental Regulatory & Planning Services,http://opendatacommunities.org/def/concept/finance/sercop/objective/104,The New Hutton Institute,,21/11/2016,63464,20,0,Upper Kent LAP - Room Hire - 05-10-16,Upper Kent LAP - Room Hire - 05-10-16,Room Hire,192110,Facilities Room Hire
South Lakeland District Council,http://opendatacommunities.org/id/district-council/south-lakeland,30/11/2016,Development Management,Cultural Environmental Regulatory & Planning Services,http://opendatacommunities.org/def/concept/finance/sercop/objective/104,Ronnie Haddow Chimney Services,,21/11/2016,63465,100,0,Checking Stoves in connection with Part,Checking Stoves in connection with Part,Consulting Engineers,131310,Cleaning & Janitorial Cleaning Service
South Lakeland District Council,http://opendatacommunities.org/id/district-council/south-lakeland,30/11/2016,ICT Group,Central Services,http://opendatacommunities.org/def/concept/finance/sercop/objective/102,Insight Direct (Uk) Ltd,2579852,21/11/2016,63466,25.26,0,Insight Part Number: 0002708811,Insight Part Number: 0002708811,Computer-Supplies,271200,ICT Hardware
South Lakeland District Council,http://opendatacommunities.org/id/district-council/south-lakeland,30/11/2016,Business Support Community Services,Housing Services,http://opendatacommunities.org/def/concept/finance/sercop/objective/108,BUNZL CLEANING & HYGIENE SUPPLIES,2902454,21/11/2016,63467,99.95,0,1 X 178000J Henry Vacuum Cleaner,1 X 178000J Henry Vacuum Cleaner,Cleaning Supplies & Services,131011,Cleaning & Janitorial Cleaning Materials
South Lakeland District Council,http://opendatacommunities.org/id/district-council/south-lakeland,30/11/2016,Customer Services,Central Services,http://opendatacommunities.org/def/concept/finance/sercop/objective/102,JOHNSTON PUBLISHING LTD,1919088,21/11/2016,63468,9660.17,0,For producing and sending out South,For producing and sending out South,Advertising,171114,Education Literature
South Lakeland District Council,http://opendatacommunities.org/id/district-council/south-lakeland,30/11/2016,Human Resources,Central Services,http://opendatacommunities.org/def/concept/finance/sercop/objective/102,GBS Corporate Training,6452080,21/11/2016,63469,995,0,Effective Customer Service,Effective Customer Service,Training Costs,261500,HR Training & Conferences
South Lakeland District Council,http://opendatacommunities.org/id/district-council/south-lakeland,30/11/2016,Development Strategy,Cultural Environmental Regulatory & Planning Services,http://opendatacommunities.org/def/concept/finance/sercop/objective/104,FURNESS NEWSPAPERS LTD,1155841,21/11/2016,63470,480.15,0,11x15cm colour DPD advert in the main,11x15cm colour DPD advert in the main,Advertising,191000,Facilities Advertising
South Lakeland District Council,http://opendatacommunities.org/id/district-council/south-lakeland,30/11/2016,Business Support Community Services,Housing Services,http://opendatacommunities.org/def/concept/finance/sercop/objective/108,MANNA HOUSE,8041948,21/11/2016,63471,6000,0,Housing Advice and Advocacy provided by,Housing Advice and Advocacy provided by,Contributions to Organisations,250000,Housing
South Lakeland District Council,http://opendatacommunities.org/id/district-council/south-lakeland,30/11/2016,Business Support Community Services,Housing Services,http://opendatacommunities.org/def/concept/finance/sercop/objective/108,G B BURROW & SON,,21/11/2016,63472,104,0,Storage costs,Storage costs for Sarah Browne,Homelessness Prevention,192300,Facilities Storage
South Lakeland District Council,http://opendatacommunities.org/id/district-council/south-lakeland,30/11/2016,Revenues and Benefits,Central Services,http://opendatacommunities.org/def/concept/finance/sercop/objective/102,BADENOCH & CLARK,1356186,21/11/2016,63475,186.69,0,Revs and Bens  (April & May 2016),Denise Calvert  (April & May 2016),Contract & Agency staff,261300,HR Recruitment & Assessment
South Lakeland District Council,http://opendatacommunities.org/id/district-council/south-lakeland,30/11/2016,Financial Services,Central Services,http://opendatacommunities.org/def/concept/finance/sercop/objective/102,TIAA Ltd,4546319,21/11/2016,63476,13500,0,16/17 Internal Audit,16/17 Internal Audit,Hired Services,201100,Financial Services Audit
South Lakeland District Council,http://opendatacommunities.org/id/district-council/south-lakeland,30/11/2016,Human Resources,Central Services,http://opendatacommunities.org/def/concept/finance/sercop/objective/102,Soopa Doopa Branding Ltd,7550313,21/11/2016,63477,191,0,100 Lanyards - October 2016,100 Lanyards - October 2016,Stationery/Office Supplies,191800,Facilities Public Relations & Image
South Lakeland District Council,http://opendatacommunities.org/id/district-council/south-lakeland,30/11/2016,Business Support Community Services,Internal Trading Accounts,,EK MOTOR FACTORS LTD,838524,21/11/2016,63479,43.54,0,Connector,Connector,Transport-Repair & Maintenance,381400,Vehicle Mgt Maintenance
South Lakeland District Council,http://opendatacommunities.org/id/district-council/south-lakeland,30/11/2016,Business Support Community Services,Internal Trading Accounts,,EK MOTOR FACTORS LTD,838524,21/11/2016,63480,11.42,0,Connector,Connector,Transport-Repair & Maintenance,381400,Vehicle Mgt Maintenance
South Lakeland District Council,http://opendatacommunities.org/id/district-council/south-lakeland,30/11/2016,Business Support Community Services,Internal Trading Accounts,,RIBBLESDALE AUTO ELECTRICS 1992 LTD,2732686,21/11/2016,63481,11.13,0,Battery,Battery,Transport-Repair & Maintenance,381500,Vehicle Mgt Parts
South Lakeland District Council,http://opendatacommunities.org/id/district-council/south-lakeland,30/11/2016,Business Support Community Services,Internal Trading Accounts,,BRIAN ARMISTEAD LTD T/A SINKFALL RECYCLI,4133280,21/11/2016,63482,1505.11,0,Green waste tipping - 2016/17,Green waste tipping - 2016/17,Tipping & Disposal Charges,391110,Construction Buildings Construction
South Lakeland District Council,http://opendatacommunities.org/id/district-council/south-lakeland,30/11/2016,Business Support Community Services,Internal Trading Accounts,,K S INTERNATIONAL LTD,2703321,21/11/2016,63483,50,0,Pads,Pads,Transport-Repair & Maintenance,381500,Vehicle Mgt Parts
South Lakeland District Council,http://opendatacommunities.org/id/district-council/south-lakeland,30/11/2016,Business Support Community Services,Internal Trading Accounts,,DENNIS EAGLE LTD,3794455,21/11/2016,63485,260.21,0,Joystick,Joystick,Transport-Repair & Maintenance,381300,Vehicle Mgt Industrial
South Lakeland District Council,http://opendatacommunities.org/id/district-council/south-lakeland,30/11/2016,Business Support Community Services,Internal Trading Accounts,,EK MOTOR FACTORS LTD,838524,28/11/2016,63486,48.19,0,Connector,Connector,Transport-Repair & Maintenance,381400,Vehicle Mgt Maintenance
South Lakeland District Council,http://opendatacommunities.org/id/district-council/south-lakeland,30/11/2016,Social Enterprise Admin,Cultural Environmental Regulatory & Planning Services,http://opendatacommunities.org/def/concept/finance/sercop/objective/104,NEWSQUEST MEDIA GROUP LTD,3102566,28/11/2016,63487,141.12,0,PUBLIC NOTICES FOR PLANNING 1 APRIL - 31,PUBLIC NOTICES FOR PLANNING 1 APRIL - 31,Advertising,191000,Facilities Advertising
South Lakeland District Council,http://opendatacommunities.org/id/district-council/south-lakeland,30/11/2016,Leisure and Wellbeing,Central Services,http://opendatacommunities.org/def/concept/finance/sercop/objective/102,CUMBRIA COUNTY COUNCIL,,23/11/2016,63488,20,0,Attending 'Active Cumbria Event',Attending 'Active Cumbria Event',Training Costs,908000,Public Bodies Council support services
South Lakeland District Council,http://opendatacommunities.org/id/district-council/south-lakeland,30/11/2016,Development Strategy,Cultural Environmental Regulatory & Planning Services,http://opendatacommunities.org/def/concept/finance/sercop/objective/104,NEWSQUEST MEDIA GROUP LTD,3102566,23/11/2016,63489,392.44,0,11.4 x 16cm colour advert for DM DPD,11.4 x 16cm colour advert for DM DPD,Advertising,191000,Facilities Advertising
South Lakeland District Council,http://opendatacommunities.org/id/district-council/south-lakeland,30/11/2016,Development Strategy,Cultural Environmental Regulatory & Planning Services,http://opendatacommunities.org/def/concept/finance/sercop/objective/104,NEWSQUEST MEDIA GROUP LTD,3102566,23/11/2016,63490,548.5,0,14.3 x 20cm colour advert for AONB DPD,14.3 x 20cm colour advert for AONB DPD,Advertising,191000,Facilities Advertising
South Lakeland District Council,http://opendatacommunities.org/id/district-council/south-lakeland,30/11/2016,Human Resources,Central Services,http://opendatacommunities.org/def/concept/finance/sercop/objective/102,SOUTH LAKES HOUSING,IP031419,30/11/2016,63491,90,0,Room Hire � All booked,Room Hire � All booked,Health and Safety,191700,Facilities Property Management
South Lakeland District Council,http://opendatacommunities.org/id/district-council/south-lakeland,30/11/2016,Human Resources,Central Services,http://opendatacommunities.org/def/concept/finance/sercop/objective/102,SOUTH LAKES HOUSING,IP031419,23/11/2016,63492,180,0,Room Hire for IOSH course.,Room Hire for IOSH course.,Health and Safety,191700,Facilities Property Management
South Lakeland District Council,http://opendatacommunities.org/id/district-council/south-lakeland,30/11/2016,Development Implementation,Cultural Environmental Regulatory & Planning Services,http://opendatacommunities.org/def/concept/finance/sercop/objective/104,WiFi Spark Ltd,,23/11/2016,63493,402.18,0,Kendal Town Centre Wifi - 12 months,Kendal Town Centre Wifi - 12 months,Other Consultants,271800,ICT Telecommunications Mobile
South Lakeland District Council,http://opendatacommunities.org/id/district-council/south-lakeland,30/11/2016,Lake Wardens,Cultural Environmental Regulatory & Planning Services,http://opendatacommunities.org/def/concept/finance/sercop/objective/104,WINDERMERE LAUNDERETTE & DRY CLEANING CO,,23/11/2016,63494,10,0,Cleaning Towels & Blankets,Cleaning Towels & Blankets,Laundry Services,131311,Cleaning & Janitorial Laundry Service
South Lakeland District Council,http://opendatacommunities.org/id/district-council/south-lakeland,30/11/2016,Financial Services,Central Services,http://opendatacommunities.org/def/concept/finance/sercop/objective/102,Fred Harvey Associates,,23/11/2016,63495,300,0,EU Procurement Support 2016/2017,EU Procurement Support 2016/2017,Other Consultants,150000,Consultancy
South Lakeland District Council,http://opendatacommunities.org/id/district-council/south-lakeland,30/11/2016,Development Implementation,Cultural Environmental Regulatory & Planning Services,http://opendatacommunities.org/def/concept/finance/sercop/objective/104,WINDERMERE TOWN COUNCIL,,21/11/2016,63497,1330,0,Ellerthwaite Square Traffic Island,Ellerthwaite Square Traffic Island,Economic Development Fund,908000,Public Bodies Council support services
South Lakeland District Council,http://opendatacommunities.org/id/district-council/south-lakeland,30/11/2016,Development Implementation,Cultural Environmental Regulatory & Planning Services,http://opendatacommunities.org/def/concept/finance/sercop/objective/104,WINDERMERE TOWN COUNCIL,,21/11/2016,63497,440,0,Ellerthwaite Square Traffic Island,Ellerthwaite Square Traffic Island,Other Consultants,908000,Public Bodies Council support services
South Lakeland District Council,http://opendatacommunities.org/id/district-council/south-lakeland,30/11/2016,Development Implementation,Planning and Development,,WINDERMERE TOWN COUNCIL,,21/11/2016,63497,730,0,Ellerthwaite Square Traffic Island,Ellerthwaite Square Traffic Island,Contract payments,908000,Public Bodies Council support services
South Lakeland District Council,http://opendatacommunities.org/id/district-council/south-lakeland,30/11/2016,Development Implementation,Cultural Environmental Regulatory & Planning Services,http://opendatacommunities.org/def/concept/finance/sercop/objective/104,SCK WEB WORKS LTD,6994365,21/11/2016,63498,900,0,20 Support hours for Invest & Explore,20 Support hours for Invest & Explore,Economic Development Fund,271515,ICT Website Development
South Lakeland District Council,http://opendatacommunities.org/id/district-council/south-lakeland,30/11/2016,Development Implementation,Cultural Environmental Regulatory & Planning Services,http://opendatacommunities.org/def/concept/finance/sercop/objective/104,HAWKSHEAD PARISH COUNCIL,,21/11/2016,63499,500,0,Shop Front Grant Funding,Shop Front Grant Funding,Other Consultants,908000,Public Bodies Council support services
South Lakeland District Council,http://opendatacommunities.org/id/district-council/south-lakeland,30/11/2016,Lake Wardens,Highways & Transport Services,http://opendatacommunities.org/def/concept/finance/sercop/objective/107,AUTOPARTS (CUMBRIA) LTD,2579204,21/11/2016,63500,18.5,0,1 x Grease Gun,1 x Grease Gun,Equipment Furniture Materials,381500,Vehicle Mgt Parts
South Lakeland District Council,http://opendatacommunities.org/id/district-council/south-lakeland,30/11/2016,Lake Wardens,Cultural Environmental Regulatory & Planning Services,http://opendatacommunities.org/def/concept/finance/sercop/objective/104,AUTOPARTS (CUMBRIA) LTD,2579204,21/11/2016,63501,75,0,1 x Grease Gun,1 x Grease Gun,Equipment Furniture Materials,381500,Vehicle Mgt Parts
South Lakeland District Council,http://opendatacommunities.org/id/district-council/south-lakeland,30/11/2016,Human Resources,Central Services,http://opendatacommunities.org/def/concept/finance/sercop/objective/102,EMPLOYMENT PAGES LTD,7363099,21/11/2016,63502,275.4,0,employment pages car park finance,employment pages car park finance,Staff Advertising,261400,HR Temporary & Agency Staff
South Lakeland District Council,http://opendatacommunities.org/id/district-council/south-lakeland,30/11/2016,Kendal Town Hall,Cultural Environmental Regulatory & Planning Services,http://opendatacommunities.org/def/concept/finance/sercop/objective/104,RIBBLESDALE AUTO ELECTRICS 1992 LTD,2732686,21/11/2016,63505,277,0,2 x LSLC 125-12 battery,2 x LSLC 125-12 battery,Transport-Repair & Maintenance,381500,Vehicle Mgt Parts
South Lakeland District Council,http://opendatacommunities.org/id/district-council/south-lakeland,30/11/2016,Human Resources,Central Services,http://opendatacommunities.org/def/concept/finance/sercop/objective/102,KENDAL COLLEGE,,21/11/2016,63506,350,0,000031288 forced completed in error 4,000031288 forced completed in error 4,Training Costs,908999,Public Bodies Not Elsewhere Classified
South Lakeland District Council,http://opendatacommunities.org/id/district-council/south-lakeland,30/11/2016,Environment and Housing,Housing Services,http://opendatacommunities.org/def/concept/finance/sercop/objective/108,FERRET INFORMATION SYSTEMS LTD,2126033,23/11/2016,63509,165,0,Ferret Training Course/Seminar - DFG,Ferret Training Course/Seminar - DFG,Training Costs,271600,ICT Software Customised & Bespoke
South Lakeland District Council,http://opendatacommunities.org/id/district-council/south-lakeland,30/11/2016,Kendal Town Hall,Cultural Environmental Regulatory & Planning Services,http://opendatacommunities.org/def/concept/finance/sercop/objective/104,20 20 VISION SYSTEMS LIMITED,2703107,30/11/2016,63510,1617.12,0,Your ref: ML6455KD on 12 Sept 2012,Your ref: ML6455KD on 12 Sept 2012,Equipment Furniture Materials,192211,Facilities Security Closed-Circuit TV
South Lakeland District Council,http://opendatacommunities.org/id/district-council/south-lakeland,30/11/2016,Social Enterprise Admin,Cultural Environmental Regulatory & Planning Services,http://opendatacommunities.org/def/concept/finance/sercop/objective/104,FMG CONSULTING LTD,7309324,28/11/2016,63511,4000,0,Ulverston Leisure Site master Plan -,Ulverston Leisure Site master Plan -,Other Consultants,151900,Consultancy Management
South Lakeland District Council,http://opendatacommunities.org/id/district-council/south-lakeland,30/11/2016,Leisure and Wellbeing,Central Services,http://opendatacommunities.org/def/concept/finance/sercop/objective/102,Countrywide Publications,1460152,28/11/2016,63512,38,0,Subscription renewal for Arts Industry -,Subscription renewal for Arts Industry -,Subscriptions to Associations,202100,Financial Services Subscriptions
South Lakeland District Council,http://opendatacommunities.org/id/district-council/south-lakeland,30/11/2016,Revenues and Benefits,Central Services,http://opendatacommunities.org/def/concept/finance/sercop/objective/102,JACOBS,,28/11/2016,63516,625,0,2016-2017 Vat only,2016-2017 Vat only,Bailiffs Fees,152200,Consultancy Technical & Feasibility
South Lakeland District Council,http://opendatacommunities.org/id/district-council/south-lakeland,30/11/2016,Development Management,Cultural Environmental Regulatory & Planning Services,http://opendatacommunities.org/def/concept/finance/sercop/objective/104,LABC NORTHERN,,28/11/2016,63517,125,0,Annual Subscription to LABC Northern,Annual Subscription to LABC Northern,Subscriptions to Associations,109999,Building Not Elsewhere Classified
South Lakeland District Council,http://opendatacommunities.org/id/district-council/south-lakeland,30/11/2016,Development Management,Cultural Environmental Regulatory & Planning Services,http://opendatacommunities.org/def/concept/finance/sercop/objective/104,LABC NORTHERN,,28/11/2016,63517,75,0,Annual Subscription to LABC Northern,Annual Subscription to LABC Northern,Subscriptions to Associations,109999,Building Not Elsewhere Classified
South Lakeland District Council,http://opendatacommunities.org/id/district-council/south-lakeland,30/11/2016,Business Support Community Services,Cultural Environmental Regulatory & Planning Services,http://opendatacommunities.org/def/concept/finance/sercop/objective/104,CUMBRIA COUNTY COUNCIL,,28/11/2016,63519,3000,0,Payment from Defra Air Quality Grant,Payment from Defra Air Quality Grant,Other Consultants,908000,Public Bodies Council support services
South Lakeland District Council,http://opendatacommunities.org/id/district-council/south-lakeland,30/11/2016,Revenues and Benefits,Central Services,http://opendatacommunities.org/def/concept/finance/sercop/objective/102,LOOMIS UK LTD,3200432,28/11/2016,63520,110.1,0,Langstone House Surcharge 2016 - 2017,Langstone House Surcharge 2016 - 2017,Postages,192200,Facilities Security
South Lakeland District Council,http://opendatacommunities.org/id/district-council/south-lakeland,30/11/2016,Revenues and Benefits,Highways & Transport Services,http://opendatacommunities.org/def/concept/finance/sercop/objective/107,LOOMIS UK LTD,3200432,28/11/2016,63520,988.94,0,Langstone House Surcharge 2016 - 2017,Langstone House Surcharge 2016 - 2017,Private Contractos gen,192200,Facilities Security
South Lakeland District Council,http://opendatacommunities.org/id/district-council/south-lakeland,30/11/2016,Customer Services,Cultural Environmental Regulatory & Planning Services,http://opendatacommunities.org/def/concept/finance/sercop/objective/104,RIGHT 2 WORK,,28/11/2016,63521,3160,0,for removal of bulky waste,for removal of bulky waste,Bulky Waste Scheme,321010,Social Care Adult Advice & Counselling
South Lakeland District Council,http://opendatacommunities.org/id/district-council/south-lakeland,30/11/2016,Business Support Community Services,Internal Trading Accounts,,RIBBLESDALE AUTO ELECTRICS 1992 LTD,2732686,28/11/2016,63522,130,0,Battery,Battery,Transport-Repair & Maintenance,381500,Vehicle Mgt Parts
South Lakeland District Council,http://opendatacommunities.org/id/district-council/south-lakeland,30/11/2016,Business Support Community Services,Internal Trading Accounts,,RIBBLESDALE AUTO ELECTRICS 1992 LTD,2732686,28/11/2016,63523,219.12,0,Battery,Battery,Transport-Repair & Maintenance,381500,Vehicle Mgt Parts
South Lakeland District Council,http://opendatacommunities.org/id/district-council/south-lakeland,30/11/2016,Business Support Community Services,Internal Trading Accounts,,K S INTERNATIONAL LTD,2703321,23/11/2016,63524,245,0,Pads,Pads,Transport-Repair & Maintenance,381500,Vehicle Mgt Parts
South Lakeland District Council,http://opendatacommunities.org/id/district-council/south-lakeland,30/11/2016,Business Support Community Services,Internal Trading Accounts,,EK MOTOR FACTORS LTD,838524,28/11/2016,63525,18.6,0,Connector,Connector,Transport-Repair & Maintenance,381400,Vehicle Mgt Maintenance
South Lakeland District Council,http://opendatacommunities.org/id/district-council/south-lakeland,30/11/2016,Environment and Housing,Housing Services,http://opendatacommunities.org/def/concept/finance/sercop/objective/108,The Oyster Partnership,5020374,23/11/2016,63526,908.89,0,Officer,Bridget Oyekanmi,Contract & Agency staff,261300,HR Recruitment & Assessment
South Lakeland District Council,http://opendatacommunities.org/id/district-council/south-lakeland,30/11/2016,Business Support Community Services,Internal Trading Accounts,,FAUN ZOELLER (UK) LTD,751804,23/11/2016,63527,-550,0,Cylinder,Cylinder,Transport-Uninsured Damage,381400,Vehicle Mgt Maintenance
South Lakeland District Council,http://opendatacommunities.org/id/district-council/south-lakeland,30/11/2016,ICT Group,Central Services,http://opendatacommunities.org/def/concept/finance/sercop/objective/102,ITPS Professional Services Ltd (DD),,01/11/2016,63528,591.14,0,Lync Line Rental Charges,Lync Line Rental Charges,Telephones-Rentals,271700,ICT Telecommunications Fixed
South Lakeland District Council,http://opendatacommunities.org/id/district-council/south-lakeland,30/11/2016,ICT Group,Central Services,http://opendatacommunities.org/def/concept/finance/sercop/objective/102,ITPS Professional Services Ltd (DD),,01/11/2016,63528,45,0,Lync Line Rental Charges,Lync Line Rental Charges,Telephones-Rentals,271700,ICT Telecommunications Fixed
South Lakeland District Council,http://opendatacommunities.org/id/district-council/south-lakeland,30/11/2016,ICT Group,Central Services,http://opendatacommunities.org/def/concept/finance/sercop/objective/102,ITPS Professional Services Ltd (DD),,01/11/2016,63528,913.25,0,Lync Line Rental Charges,Lync Line Rental Charges,Telephones-Calls,271700,ICT Telecommunications Fixed
South Lakeland District Council,http://opendatacommunities.org/id/district-council/south-lakeland,30/11/2016,ICT Group,Central Services,http://opendatacommunities.org/def/concept/finance/sercop/objective/102,ITPS Professional Services Ltd (DD),,01/11/2016,63529,169.86,0,Line rental and broadband charges for,Line rental and broadband charges for,Telephones-Rentals,271700,ICT Telecommunications Fixed
South Lakeland District Council,http://opendatacommunities.org/id/district-council/south-lakeland,30/11/2016,Business Support Community Services,Internal Trading Accounts,,EK MOTOR FACTORS LTD,838524,23/11/2016,63530,-29.37,0,Connector,Connector,Transport-Repair & Maintenance,381400,Vehicle Mgt Maintenance
South Lakeland District Council,http://opendatacommunities.org/id/district-council/south-lakeland,30/11/2016,Human Resources,Cultural Environmental Regulatory & Planning Services,http://opendatacommunities.org/def/concept/finance/sercop/objective/104,Cartmel Village Hall,,28/11/2016,63531,14.5,0,Hire of Cartmel Village Hall for LAPs,Hire of Cartmel Village Hall for LAPs,Room Hire,192110,Facilities Room Hire
South Lakeland District Council,http://opendatacommunities.org/id/district-council/south-lakeland,30/11/2016,Business Support Community Services,Cultural Environmental Regulatory & Planning Services,http://opendatacommunities.org/def/concept/finance/sercop/objective/104,Public Health England,,23/11/2016,63532,78.2,0,Micro sampling for 2 x cockles,Micro sampling for 2 x cockles,Sampling & Inspection fees,221100,Health & Safety� Maintenance
South Lakeland District Council,http://opendatacommunities.org/id/district-council/south-lakeland,30/11/2016,Business Support Community Services,Internal Trading Accounts,,EK MOTOR FACTORS LTD,838524,23/11/2016,63534,156.8,0,Connector,Connector,Transport-Uninsured Damage,381400,Vehicle Mgt Maintenance
South Lakeland District Council,http://opendatacommunities.org/id/district-council/south-lakeland,30/11/2016,Business Support Community Services,Internal Trading Accounts,,FAUN ZOELLER (UK) LTD,751804,23/11/2016,63535,756.18,0,Cylinder,Cylinder,Transport-Uninsured Damage,381400,Vehicle Mgt Maintenance
South Lakeland District Council,http://opendatacommunities.org/id/district-council/south-lakeland,30/11/2016,Business Support Community Services,Internal Trading Accounts,,EK MOTOR FACTORS LTD,838524,23/11/2016,63536,7.76,0,Connector,Connector,Transport-Repair & Maintenance,381400,Vehicle Mgt Maintenance
South Lakeland District Council,http://opendatacommunities.org/id/district-council/south-lakeland,30/11/2016,Policy & Partnerships,Central Services,http://opendatacommunities.org/def/concept/finance/sercop/objective/102,GATES TRAVEL SERVICE,,23/11/2016,63537,34,0,Train Tickets for (22-11-16),Train Tickets for David Sykes (22-11-16),Public Transport,261600,HR Travel & Subsistence
South Lakeland District Council,http://opendatacommunities.org/id/district-council/south-lakeland,30/11/2016,Development Implementation,Cultural Environmental Regulatory & Planning Services,http://opendatacommunities.org/def/concept/finance/sercop/objective/104,ADECCO UK LIMITED,593232,23/11/2016,63538,398.4,0,SLDC Project Officer - ,SLDC Project Officer - Cherie Fox,Contract & Agency staff,261400,HR Temporary & Agency Staff
South Lakeland District Council,http://opendatacommunities.org/id/district-council/south-lakeland,30/11/2016,Development Implementation,Cultural Environmental Regulatory & Planning Services,http://opendatacommunities.org/def/concept/finance/sercop/objective/104,ADECCO UK LIMITED,593232,23/11/2016,63539,312,0,Administrator - (24hrs,Administrator - Renate Parker (24hrs,Contract & Agency staff,261400,HR Temporary & Agency Staff
South Lakeland District Council,http://opendatacommunities.org/id/district-council/south-lakeland,30/11/2016,Kendal Town Hall,Highways & Transport Services,http://opendatacommunities.org/def/concept/finance/sercop/objective/107,ADECCO UK LIMITED,593232,28/11/2016,63540,470.68,0,Agency staff to cover Parking Assistant,Agency staff to cover Parking Assistant,Contract & Agency staff,261400,HR Temporary & Agency Staff
South Lakeland District Council,http://opendatacommunities.org/id/district-council/south-lakeland,30/11/2016,Kendal Town Hall,Highways & Transport Services,http://opendatacommunities.org/def/concept/finance/sercop/objective/107,ADECCO UK LIMITED,593232,28/11/2016,63541,127.27,0,Agency cover for WMMSCP,Agency cover for WMMSCP,Contract & Agency staff,261400,HR Temporary & Agency Staff
South Lakeland District Council,http://opendatacommunities.org/id/district-council/south-lakeland,30/11/2016,Development Implementation,Central Services,http://opendatacommunities.org/def/concept/finance/sercop/objective/102,ADECCO UK LIMITED,593232,28/11/2016,63542,114.8,0,Cleaner for SLDC - ,Cleaner for SLDC - Karl Sota,Contract & Agency staff,261400,HR Temporary & Agency Staff
South Lakeland District Council,http://opendatacommunities.org/id/district-council/south-lakeland,30/11/2016,Business Support Community Services,Cultural Environmental Regulatory & Planning Services,http://opendatacommunities.org/def/concept/finance/sercop/objective/104,ARCO LIMITED,133804,28/11/2016,63544,157.72,0,Jacket,Jacket,Protective Clothing & Uniforms,141100,Clothing Protective
South Lakeland District Council,http://opendatacommunities.org/id/district-council/south-lakeland,30/11/2016,Democratic and Member Services,Cultural Environmental Regulatory & Planning Services,http://opendatacommunities.org/def/concept/finance/sercop/objective/104,Holme Parish Hall,,23/11/2016,63545,500,0,donation of 500 from Cllr for,donation of 500 from Cllr Bingham for,Contributions to Organisations,201700,Financial Services Grants
South Lakeland District Council,http://opendatacommunities.org/id/district-council/south-lakeland,30/11/2016,Revenues and Benefits,Central Services,http://opendatacommunities.org/def/concept/finance/sercop/objective/102,BADENOCH & CLARK,1356186,23/11/2016,63546,320.04,0,Revs and Bens  (April & May 2016),Denise Calvert  (April & May 2016),Contract & Agency staff,261300,HR Recruitment & Assessment
South Lakeland District Council,http://opendatacommunities.org/id/district-council/south-lakeland,30/11/2016,Research and Intelligence,Central Services,http://opendatacommunities.org/def/concept/finance/sercop/objective/102,ORDNANCE SURVEY,4451707,23/11/2016,63549,428.4,0,3rd Year OS TERRO5 27.10.2016-26.10.2017,3rd Year OS TERRO5 27.10.2016-26.10.2017,Software Maintenance,202100,Financial Services Subscriptions
South Lakeland District Council,http://opendatacommunities.org/id/district-council/south-lakeland,30/11/2016,Business Support Community Services,Central Services,http://opendatacommunities.org/def/concept/finance/sercop/objective/102,CHARTERED INST OF ENVIRONMNTL HLTH,,23/11/2016,63550,175,0,CIEH annual membership 2017,CIEH annual membership 2017,Professional Fees,202100,Financial Services Subscriptions
South Lakeland District Council,http://opendatacommunities.org/id/district-council/south-lakeland,30/11/2016,Business Support Community Services,Central Services,http://opendatacommunities.org/def/concept/finance/sercop/objective/102,CHARTERED INST OF ENVIRONMNTL HLTH,,23/11/2016,63550,2150,0,CIEH annual membership 2017,CIEH annual membership 2017,Professional Fees,202100,Financial Services Subscriptions
South Lakeland District Council,http://opendatacommunities.org/id/district-council/south-lakeland,30/11/2016,Business Support Community Services,Central Services,http://opendatacommunities.org/def/concept/finance/sercop/objective/102,CHARTERED INST OF ENVIRONMNTL HLTH,,23/11/2016,63550,225,0,CIEH annual membership 2017,CIEH annual membership 2017,Professional Fees,202100,Financial Services Subscriptions
South Lakeland District Council,http://opendatacommunities.org/id/district-council/south-lakeland,30/11/2016,Social Enterprise Admin,Cultural Environmental Regulatory & Planning Services,http://opendatacommunities.org/def/concept/finance/sercop/objective/104,LDA Cleaning Services Ltd,8917986,23/11/2016,63552,175,0,For  the continuation of cleaning,For  the continuation of cleaning,Other Consultants,131310,Cleaning & Janitorial Cleaning Service
South Lakeland District Council,http://opendatacommunities.org/id/district-council/south-lakeland,30/11/2016,Social Enterprise Admin,Cultural Environmental Regulatory & Planning Services,http://opendatacommunities.org/def/concept/finance/sercop/objective/104,KOMPAN Scotland Ltd,SC127228,23/11/2016,63553,36,0,Part required - A900106 -10  ORANGE BAND,Part required - A900106 -10  ORANGE BAND,Play Areas Maintenance,331000,Sports Playground Equipment
South Lakeland District Council,http://opendatacommunities.org/id/district-council/south-lakeland,30/11/2016,Social Enterprise Admin,Cultural Environmental Regulatory & Planning Services,http://opendatacommunities.org/def/concept/finance/sercop/objective/104,CONTINENTAL LANDSCAPES LTD,2108452,23/11/2016,63554,3647.15,0,Gravedigging  for April 2016 -March 2017,Gravedigging  for April 2016 -March 2017,Gravedigging,391310,Construction Open Spaces Construction
South Lakeland District Council,http://opendatacommunities.org/id/district-council/south-lakeland,30/11/2016,Electoral Services,Central Services,http://opendatacommunities.org/def/concept/finance/sercop/objective/102,SCI PRINT LTD,,23/11/2016,63559,1573.78,0,Costs relating to Annual Canvass,Costs relating to Annual Canvass,Annual Canvass,191600,Facilities Printing
South Lakeland District Council,http://opendatacommunities.org/id/district-council/south-lakeland,30/11/2016,Revenues and Benefits,SLDC as Agent,,ROYAL MAIL GROUP PLC,,23/11/2016,63560,1337.43,0,2016 - 17  Postal Charges a/c 0198123013,2016 - 17  Postal Charges a/c 0198123013,General,301200,Mail Services� Postage
South Lakeland District Council,http://opendatacommunities.org/id/district-council/south-lakeland,30/11/2016,Revenues and Benefits,Central Services,http://opendatacommunities.org/def/concept/finance/sercop/objective/102,MERITEC LTD,3224622,23/11/2016,63563,279,0,2016 - 2017  RAB Processing Contract and,2016 - 2017  RAB Processing Contract and,Contract & Agency staff,391200,Construction Engineering
South Lakeland District Council,http://opendatacommunities.org/id/district-council/south-lakeland,30/11/2016,Lake Wardens,Cultural Environmental Regulatory & Planning Services,http://opendatacommunities.org/def/concept/finance/sercop/objective/104,THE NATIONAL TRUST,,23/11/2016,63564,362.5,0,"Rent of Land at Lake Wardens Office,","Rent of Land at Lake Wardens Office,",Rent,202100,Financial Services Subscriptions
South Lakeland District Council,http://opendatacommunities.org/id/district-council/south-lakeland,30/11/2016,Lake Wardens,Cultural Environmental Regulatory & Planning Services,http://opendatacommunities.org/def/concept/finance/sercop/objective/104,KENTDALE FIRST AID TRAINING,,23/11/2016,63565,100,0,Provide 2 x 1 day AED refresher courses.,Provide 2 x 1 day AED refresher courses.,Training Costs,261500,HR Training & Conferences
South Lakeland District Council,http://opendatacommunities.org/id/district-council/south-lakeland,30/11/2016,ICT Group,Central Services,http://opendatacommunities.org/def/concept/finance/sercop/objective/102,OPTECH FIBRES LTD,5442069,28/11/2016,63568,373.19,0,Quote Ref OPT/RB/14691:  CAT5e data,Quote Ref OPT/RB/14691:  CAT5e data,Purchase of IT Equipment,271200,ICT Hardware
South Lakeland District Council,http://opendatacommunities.org/id/district-council/south-lakeland,30/11/2016,Development Implementation,Central Services,http://opendatacommunities.org/def/concept/finance/sercop/objective/102,ADECCO UK LIMITED,593232,28/11/2016,63570,114.8,0,Cleaner for SLDC - ,Cleaner for SLDC - Karl Sota,Contract & Agency staff,261400,HR Temporary & Agency Staff
South Lakeland District Council,http://opendatacommunities.org/id/district-council/south-lakeland,30/11/2016,Development Implementation,Central Services,http://opendatacommunities.org/def/concept/finance/sercop/objective/102,ADECCO UK LIMITED,593232,28/11/2016,63571,114.8,0,Cleaner for SLDC - ,Cleaner for SLDC - Karl Sota,Contract & Agency staff,261400,HR Temporary & Agency Staff
South Lakeland District Council,http://opendatacommunities.org/id/district-council/south-lakeland,30/11/2016,Development Implementation,Central Services,http://opendatacommunities.org/def/concept/finance/sercop/objective/102,ADECCO UK LIMITED,593232,28/11/2016,63572,114.8,0,Cleaner for SLDC - ,Cleaner for SLDC - Karl Sota,Contract & Agency staff,261400,HR Temporary & Agency Staff
South Lakeland District Council,http://opendatacommunities.org/id/district-council/south-lakeland,30/11/2016,Development Implementation,Central Services,http://opendatacommunities.org/def/concept/finance/sercop/objective/102,ADECCO UK LIMITED,593232,28/11/2016,63573,114.8,0,Cleaner for SLDC - ,Cleaner for SLDC - Karl Sota,Contract & Agency staff,261400,HR Temporary & Agency Staff
South Lakeland District Council,http://opendatacommunities.org/id/district-council/south-lakeland,30/11/2016,Development Implementation,Central Services,http://opendatacommunities.org/def/concept/finance/sercop/objective/102,ADECCO UK LIMITED,593232,28/11/2016,63574,68.88,0,Cleaner for SLDC - ,Cleaner for SLDC - Karl Sota,Contract & Agency staff,261400,HR Temporary & Agency Staff
South Lakeland District Council,http://opendatacommunities.org/id/district-council/south-lakeland,30/11/2016,Development Implementation,Central Services,http://opendatacommunities.org/def/concept/finance/sercop/objective/102,ADECCO UK LIMITED,593232,28/11/2016,63575,114.8,0,Cleaner for SLDC - ,Cleaner for SLDC - Karl Sota,Contract & Agency staff,261400,HR Temporary & Agency Staff
South Lakeland District Council,http://opendatacommunities.org/id/district-council/south-lakeland,30/11/2016,Development Implementation,Central Services,http://opendatacommunities.org/def/concept/finance/sercop/objective/102,ADECCO UK LIMITED,593232,28/11/2016,63576,114.8,0,Cleaner for SLDC - ,Cleaner for SLDC - Karl Sota,Contract & Agency staff,261400,HR Temporary & Agency Staff
South Lakeland District Council,http://opendatacommunities.org/id/district-council/south-lakeland,30/11/2016,Development Implementation,Central Services,http://opendatacommunities.org/def/concept/finance/sercop/objective/102,ADECCO UK LIMITED,593232,28/11/2016,63577,114.8,0,Cleaner for SLDC - ,Cleaner for SLDC - Karl Sota,Contract & Agency staff,261400,HR Temporary & Agency Staff
